SERVICE_CODE,ORGANISATION_UNIT,EXPENDITURE_CATEGORY,EXPENDITURE_DESCRIPTION,EXPENDITURE_CODE,NARRATIVE,DATE,TRANSATION_CODE,NET_AMOUNT,SUPPLIER_CODE,SUPPLIER_NAME,FROM_DATE,TO_DATE,FINANCIAL_PERIOD_YEAR
,LEE VALLEY CAMPSITE,PREMISES RELATED EXPENDITURE,LINEN SERVICE,2122,P123805-SERVICE-Increase value to cover invoices,06/02/2024 00:00,282126,753.08,JO0168,JOHNSONS STALBRIDGE LINEN SERVICES,29/01/2024 00:00,25/02/2024 00:00,P11-2024
,LEE VALLEY CAMPSITE,PREMISES RELATED EXPENDITURE,LINEN SERVICE,2122,P123805-SERVICE-Site Laundry Nov- Mar 24,06/02/2024 00:00,282126,0.2,JO0168,JOHNSONS STALBRIDGE LINEN SERVICES,29/01/2024 00:00,25/02/2024 00:00,P11-2024
,LEE VALLEY CARAVAN PARK,PREMISES RELATED EXPENDITURE,LINEN SERVICE,2122,P124889-SERVICE-Linen service,07/02/2024 00:00,282175,981.58,JO0168,JOHNSONS STALBRIDGE LINEN SERVICES,29/01/2024 00:00,25/02/2024 00:00,P11-2024
,LEE VALLEY MARINA STANSTEAD,PREMISES RELATED EXPENDITURE,GM MAIN CONTRACT SCHEDULED,2141,Jan-24,06/02/2024 00:00,282025,328.59,GL0214,GLENDALE GROUNDS MANAGEMENT LIMITED,29/01/2024 00:00,25/02/2024 00:00,P11-2024
,LEE VALLEY WATERWORKS CENTRE,PREMISES RELATED EXPENDITURE,GM MAIN CONTRACT SCHEDULED,2141,Jan-24,06/02/2024 00:00,282025,135.34,GL0214,GLENDALE GROUNDS MANAGEMENT LIMITED,29/01/2024 00:00,25/02/2024 00:00,P11-2024
,LEE VALLEY WATERWORKS CENTRE,PREMISES RELATED EXPENDITURE,GM MAIN CONTRACT SCHEDULED,2141,Jan-24,06/02/2024 00:00,282025,308.7,GL0214,GLENDALE GROUNDS MANAGEMENT LIMITED,29/01/2024 00:00,25/02/2024 00:00,P11-2024
P&V,LEE VALLEY FARM HOLYFIELDHALL,PREMISES RELATED EXPENDITURE,GM MAIN CONTRACT SCHEDULED,2141,Jan-24,06/02/2024 00:00,282025,76.23,GL0214,GLENDALE GROUNDS MANAGEMENT LIMITED,29/01/2024 00:00,25/02/2024 00:00,P11-2024
P&V,EAST INDIA DOCK AND BOW CREEK,PREMISES RELATED EXPENDITURE,GM MAIN CONTRACT SCHEDULED,2141,Jan-24,06/02/2024 00:00,282025,432.85,GL0214,GLENDALE GROUNDS MANAGEMENT LIMITED,29/01/2024 00:00,25/02/2024 00:00,P11-2024
P&V,EAST INDIA DOCK AND BOW CREEK,PREMISES RELATED EXPENDITURE,GM MAIN CONTRACT SCHEDULED,2141,Jan-24,06/02/2024 00:00,282025,483.37,GL0214,GLENDALE GROUNDS MANAGEMENT LIMITED,29/01/2024 00:00,25/02/2024 00:00,P11-2024
P&V,NORTH AREA RANGERS,PREMISES RELATED EXPENDITURE,GM MAIN CONTRACT SCHEDULED,2141,Jan-24,06/02/2024 00:00,282025,2886.54,GL0214,GLENDALE GROUNDS MANAGEMENT LIMITED,29/01/2024 00:00,25/02/2024 00:00,P11-2024
P&V,SOUTH AREA RANGERS,PREMISES RELATED EXPENDITURE,GM MAIN CONTRACT SCHEDULED,2141,Jan-24,06/02/2024 00:00,282025,193.35,GL0214,GLENDALE GROUNDS MANAGEMENT LIMITED,29/01/2024 00:00,25/02/2024 00:00,P11-2024
P&V,SOUTH AREA RANGERS,PREMISES RELATED EXPENDITURE,GM MAIN CONTRACT SCHEDULED,2141,Jan-24,06/02/2024 00:00,282025,3338.71,GL0214,GLENDALE GROUNDS MANAGEMENT LIMITED,29/01/2024 00:00,25/02/2024 00:00,P11-2024
P&V,ABBEY GARDENS,PREMISES RELATED EXPENDITURE,GM MAIN CONTRACT SCHEDULED,2141,Jan-24,06/02/2024 00:00,282025,1474.52,GL0214,GLENDALE GROUNDS MANAGEMENT LIMITED,29/01/2024 00:00,25/02/2024 00:00,P11-2024
P&V,GUNPOWDER PARK,PREMISES RELATED EXPENDITURE,GM MAIN CONTRACT SCHEDULED,2141,Jan-24,06/02/2024 00:00,282025,1451.76,GL0214,GLENDALE GROUNDS MANAGEMENT LIMITED,29/01/2024 00:00,25/02/2024 00:00,P11-2024
P&V,RIVER LEE COUNTRY PARK,PREMISES RELATED EXPENDITURE,GM MAIN CONTRACT SCHEDULED,2141,Jan-24,06/02/2024 00:00,282025,96.67,GL0214,GLENDALE GROUNDS MANAGEMENT LIMITED,29/01/2024 00:00,25/02/2024 00:00,P11-2024
P&V,RIVER LEE COUNTRY PARK,PREMISES RELATED EXPENDITURE,GM MAIN CONTRACT SCHEDULED,2141,Jan-24,06/02/2024 00:00,282025,8489.76,GL0214,GLENDALE GROUNDS MANAGEMENT LIMITED,29/01/2024 00:00,25/02/2024 00:00,P11-2024
,LEE VALLEY VELOPARK,PREMISES RELATED EXPENDITURE,GM MAIN CONTRACT SCHEDULED,2141,Jan-24,06/02/2024 00:00,282025,3689.34,GL0214,GLENDALE GROUNDS MANAGEMENT LIMITED,29/01/2024 00:00,25/02/2024 00:00,P11-2024
,LV HOCKEY AND TENNIS CENTRE,PREMISES RELATED EXPENDITURE,GM MAIN CONTRACT SCHEDULED,2141,Jan-24,06/02/2024 00:00,282025,2262.58,GL0214,GLENDALE GROUNDS MANAGEMENT LIMITED,29/01/2024 00:00,25/02/2024 00:00,P11-2024
P&V,THREE MILLS,PREMISES RELATED EXPENDITURE,GM MAIN CONTRACT SCHEDULED,2141,Jan-24,06/02/2024 00:00,282025,826.92,GL0214,GLENDALE GROUNDS MANAGEMENT LIMITED,29/01/2024 00:00,25/02/2024 00:00,P11-2024
,LEE VALLEY RIDING CENTRE,PREMISES RELATED EXPENDITURE,GM MAIN CONTRACT SCHEDULED,2141,Jan-24,06/02/2024 00:00,282025,286.76,GL0214,GLENDALE GROUNDS MANAGEMENT LIMITED,29/01/2024 00:00,25/02/2024 00:00,P11-2024
,LEE VALLEY ICE CENTRE,PREMISES RELATED EXPENDITURE,GM MAIN CONTRACT SCHEDULED,2141,Jan-24,06/02/2024 00:00,282025,461.99,GL0214,GLENDALE GROUNDS MANAGEMENT LIMITED,29/01/2024 00:00,25/02/2024 00:00,P11-2024
P&V,FORMER LV LIDO SITE,PREMISES RELATED EXPENDITURE,GM MAIN CONTRACT SCHEDULED,2141,Jan-24,06/02/2024 00:00,282025,566.45,GL0214,GLENDALE GROUNDS MANAGEMENT LIMITED,29/01/2024 00:00,25/02/2024 00:00,P11-2024
,LEE VALLEY ATHLETICS CENTRE,PREMISES RELATED EXPENDITURE,GM MAIN CONTRACT SCHEDULED,2141,Jan-24,06/02/2024 00:00,282025,342.66,GL0214,GLENDALE GROUNDS MANAGEMENT LIMITED,29/01/2024 00:00,25/02/2024 00:00,P11-2024
,LEE VALLEY WHITE WATER CENTRE,PREMISES RELATED EXPENDITURE,GM MAIN CONTRACT SCHEDULED,2141,Jan-24,06/02/2024 00:00,282025,1781.46,GL0214,GLENDALE GROUNDS MANAGEMENT LIMITED,29/01/2024 00:00,25/02/2024 00:00,P11-2024
P&V,NORTH AREA RANGERS,PREMISES RELATED EXPENDITURE,GM MAIN CONTRACT UNSCHEDULED,2142,P124858-SERVICE-Gritting Wildlife Discovery Centre & Fishers,07/02/2024 00:00,282242,576,GL0214,GLENDALE GROUNDS MANAGEMENT LIMITED,29/01/2024 00:00,25/02/2024 00:00,P11-2024
,LEE VALLEY WATERWORKS CENTRE,PREMISES RELATED EXPENDITURE,GM HORTICULTURE SCHEDULED,2143,Jan-24,06/02/2024 00:00,282025,86.55,GL0214,GLENDALE GROUNDS MANAGEMENT LIMITED,29/01/2024 00:00,25/02/2024 00:00,P11-2024
P&V,NORTH AREA RANGERS,PREMISES RELATED EXPENDITURE,GM HORTICULTURE SCHEDULED,2143,Jan-24,06/02/2024 00:00,282025,127.58,GL0214,GLENDALE GROUNDS MANAGEMENT LIMITED,29/01/2024 00:00,25/02/2024 00:00,P11-2024
P&V,SOUTH AREA RANGERS,PREMISES RELATED EXPENDITURE,GM HORTICULTURE SCHEDULED,2143,Jan-24,06/02/2024 00:00,282025,73.78,GL0214,GLENDALE GROUNDS MANAGEMENT LIMITED,29/01/2024 00:00,25/02/2024 00:00,P11-2024
P&V,ABBEY GARDENS,PREMISES RELATED EXPENDITURE,GM HORTICULTURE SCHEDULED,2143,Jan-24,06/02/2024 00:00,282025,1005.46,GL0214,GLENDALE GROUNDS MANAGEMENT LIMITED,29/01/2024 00:00,25/02/2024 00:00,P11-2024
P&V,GUNPOWDER PARK,PREMISES RELATED EXPENDITURE,GM HORTICULTURE SCHEDULED,2143,Jan-24,06/02/2024 00:00,282025,131.99,GL0214,GLENDALE GROUNDS MANAGEMENT LIMITED,29/01/2024 00:00,25/02/2024 00:00,P11-2024
P&V,RIVER LEE COUNTRY PARK,PREMISES RELATED EXPENDITURE,GM HORTICULTURE SCHEDULED,2143,Jan-24,06/02/2024 00:00,282025,68.49,GL0214,GLENDALE GROUNDS MANAGEMENT LIMITED,29/01/2024 00:00,25/02/2024 00:00,P11-2024
,LEE VALLEY VELOPARK,PREMISES RELATED EXPENDITURE,GM HORTICULTURE SCHEDULED,2143,Jan-24,06/02/2024 00:00,282025,587.09,GL0214,GLENDALE GROUNDS MANAGEMENT LIMITED,29/01/2024 00:00,25/02/2024 00:00,P11-2024
,LV HOCKEY AND TENNIS CENTRE,PREMISES RELATED EXPENDITURE,GM HORTICULTURE SCHEDULED,2143,Jan-24,06/02/2024 00:00,282025,845.45,GL0214,GLENDALE GROUNDS MANAGEMENT LIMITED,29/01/2024 00:00,25/02/2024 00:00,P11-2024
P&V,THREE MILLS,PREMISES RELATED EXPENDITURE,GM HORTICULTURE SCHEDULED,2143,Jan-24,06/02/2024 00:00,282025,27.44,GL0214,GLENDALE GROUNDS MANAGEMENT LIMITED,29/01/2024 00:00,25/02/2024 00:00,P11-2024
,LEE VALLEY RIDING CENTRE,PREMISES RELATED EXPENDITURE,GM HORTICULTURE SCHEDULED,2143,Jan-24,06/02/2024 00:00,282025,6.86,GL0214,GLENDALE GROUNDS MANAGEMENT LIMITED,29/01/2024 00:00,25/02/2024 00:00,P11-2024
P&V,FORMER LV LIDO SITE,PREMISES RELATED EXPENDITURE,GM HORTICULTURE SCHEDULED,2143,Jan-24,06/02/2024 00:00,282025,6.54,GL0214,GLENDALE GROUNDS MANAGEMENT LIMITED,29/01/2024 00:00,25/02/2024 00:00,P11-2024
,LEE VALLEY WHITE WATER CENTRE,PREMISES RELATED EXPENDITURE,GM HORTICULTURE SCHEDULED,2143,Jan-24,06/02/2024 00:00,282025,14.98,GL0214,GLENDALE GROUNDS MANAGEMENT LIMITED,29/01/2024 00:00,25/02/2024 00:00,P11-2024
P&V,NORTH AREA RANGERS,PREMISES RELATED EXPENDITURE,GM ARBORICULTURE UNSCHEDULED,2146,P124083-SERVICE-Inspect Trees Dobbs Weir Anglers Site,13/02/2024 00:00,281815,450,VE0004,PRINCIPAL TREES LTD,29/01/2024 00:00,25/02/2024 00:00,P11-2024
P&V,NORTH AREA RANGERS,PREMISES RELATED EXPENDITURE,GM ARBORICULTURE UNSCHEDULED,2146,P124185-SERVICE-Tree Inspection - Ware Town Centre & Ware Riv,13/02/2024 00:00,281816,375,VE0004,PRINCIPAL TREES LTD,29/01/2024 00:00,25/02/2024 00:00,P11-2024
P&V,NORTH AREA RANGERS,PREMISES RELATED EXPENDITURE,GM ARBORICULTURE UNSCHEDULED,2146,P124186-SERVICE-Tree Inspection at Ryegate Farm Field Boundar,13/02/2024 00:00,281817,410,VE0004,PRINCIPAL TREES LTD,29/01/2024 00:00,25/02/2024 00:00,P11-2024
P&V,SOUTH AREA RANGERS,PREMISES RELATED EXPENDITURE,GM ARBORICULTURE UNSCHEDULED,2146,P124432-SERVICE-Tree Works at Tottenham Marsh,21/02/2024 00:00,282675,850,PA0222,PARKIN & PARKER TREE SPECIALISTS,29/01/2024 00:00,25/02/2024 00:00,P11-2024
P&V,SOUTH AREA RANGERS,PREMISES RELATED EXPENDITURE,GM ARBORICULTURE UNSCHEDULED,2146,P124543-SERVICE-Tree Works at Tottenham Marshes,21/02/2024 00:00,282718,1100,PA0222,PARKIN & PARKER TREE SPECIALISTS,29/01/2024 00:00,25/02/2024 00:00,P11-2024
P&V,SOUTH AREA RANGERS,PREMISES RELATED EXPENDITURE,GM ARBORICULTURE UNSCHEDULED,2146,P124543-SERVICE-Tree Works at Tottenham Marshes,21/02/2024 00:00,282718,1675,PA0222,PARKIN & PARKER TREE SPECIALISTS,29/01/2024 00:00,25/02/2024 00:00,P11-2024
P&V,SOUTH AREA RANGERS,PREMISES RELATED EXPENDITURE,GM ARBORICULTURE UNSCHEDULED,2146,P124543-SERVICE-Tree Works at Tottenham Marshes,21/02/2024 00:00,282718,1100,PA0222,PARKIN & PARKER TREE SPECIALISTS,29/01/2024 00:00,25/02/2024 00:00,P11-2024
P&V,GUNPOWDER PARK,PREMISES RELATED EXPENDITURE,GM ARBORICULTURE UNSCHEDULED,2146,P124208-SERVICE-Tree Works at Gunpowder Park,06/02/2024 00:00,282093,2475,PA0222,PARKIN & PARKER TREE SPECIALISTS,29/01/2024 00:00,25/02/2024 00:00,P11-2024
P&V,GUNPOWDER PARK,PREMISES RELATED EXPENDITURE,GM ARBORICULTURE UNSCHEDULED,2146,P124210-SERVICE-Tree Works at Gunpowder Park,14/02/2024 00:00,282455,750,PA0222,PARKIN & PARKER TREE SPECIALISTS,29/01/2024 00:00,25/02/2024 00:00,P11-2024
P&V,GUNPOWDER PARK,PREMISES RELATED EXPENDITURE,GM ARBORICULTURE UNSCHEDULED,2146,"P124880-SERVICE-Tree Works at Black Ditch, Gunpowder Park",20/02/2024 00:00,282456,250,PA0222,PARKIN & PARKER TREE SPECIALISTS,29/01/2024 00:00,25/02/2024 00:00,P11-2024
P&V,RIVER LEE COUNTRY PARK,PREMISES RELATED EXPENDITURE,GM ARBORICULTURE UNSCHEDULED,2146,P124333-SERVICE-Tree Works at Turners Hill & Tow Path,07/02/2024 00:00,281916,2495,MU0030,P J MUSK TREES,29/01/2024 00:00,25/02/2024 00:00,P11-2024
P&V,RIVER LEE COUNTRY PARK,PREMISES RELATED EXPENDITURE,GM ARBORICULTURE UNSCHEDULED,2146,P124335-SERVICE-Tree Works at Cheshunt Country Walk,07/02/2024 00:00,281918,3200,MU0030,P J MUSK TREES,29/01/2024 00:00,25/02/2024 00:00,P11-2024
P&V,RIVER LEE COUNTRY PARK,PREMISES RELATED EXPENDITURE,GM ARBORICULTURE UNSCHEDULED,2146,P124332-SERVICE-Tree Works - South Tow Path,21/02/2024 00:00,282232,1690,MU0030,P J MUSK TREES,29/01/2024 00:00,25/02/2024 00:00,P11-2024
P&V,RIVER LEE COUNTRY PARK,PREMISES RELATED EXPENDITURE,GM ARBORICULTURE UNSCHEDULED,2146,P124336-SERVICE-Tree Works - Highbridge St - Disabled Anglers,13/02/2024 00:00,282371,3885,MU0030,P J MUSK TREES,29/01/2024 00:00,25/02/2024 00:00,P11-2024
P&V,RIVER LEE COUNTRY PARK,PREMISES RELATED EXPENDITURE,GM ARBORICULTURE UNSCHEDULED,2146,P124331-SERVICE-Tree Works at Bowyers,20/02/2024 00:00,282492,2400,VE0004,PRINCIPAL TREES LTD,29/01/2024 00:00,25/02/2024 00:00,P11-2024
P&V,RIVER LEE COUNTRY PARK,PREMISES RELATED EXPENDITURE,GM ARBORICULTURE UNSCHEDULED,2146,P124590-SERVICE-Tree Works at Poplars White Water Centre,20/02/2024 00:00,282493,2650,VE0004,PRINCIPAL TREES LTD,29/01/2024 00:00,25/02/2024 00:00,P11-2024
P&V,SPORT AND LEISURE,EMPLOYEES,APPOINTMENT EXPENSES,1301,P124996-SERVICE-Procurement Vacancy advert costs,20/02/2024 00:00,282652,1155,SA0133,SOWERBY ADVERTISING AND COMMUNICATIONS,29/01/2024 00:00,25/02/2024 00:00,P11-2024
R&B,CORPORATE TRAINING,EMPLOYEES,TRAINING EXPENSES,1305,P121077-SERVICE-CONFLICT RESOLUTION & PS TRAINING 13/02/2024,13/02/2024 00:00,282275,850,IK0209,IKON TRAINING LTD,29/01/2024 00:00,25/02/2024 00:00,P11-2024
R&B,CORPORATE TRAINING,EMPLOYEES,TRAINING EXPENSES,1305,P125021-SERVICE-J BIGHAM FAW COURSE 13-15/03/24,25/02/2024 00:00,282757,419,BR0069,BRITISH RED CROSS,29/01/2024 00:00,25/02/2024 00:00,P11-2024
P&V,MYDDELTON HOUSE GARDENS,EMPLOYEES,TRAINING EXPENSES,1305,P124848-SERVICE-Beekeepers course to be attended by Charlie S,06/02/2024 00:00,282166,180,EN0423,ENFIELD AND DISTRICT BEEKEEPERS' ASSOCIATION,29/01/2024 00:00,25/02/2024 00:00,P11-2024
P&V,MYDDELTON HOUSE GARDENS,EMPLOYEES,TRAINING EXPENSES,1305,P124897-SERVICE-fruit pruning training,25/02/2024 00:00,282676,300,KO0174,KORNELIA DEPPE COMMUNITY GARDENER,29/01/2024 00:00,25/02/2024 00:00,P11-2024
R&B,NON DISTRIBUTED COSTS,EMPLOYEES,SUPERANNUATION ADDED YEARS,1310,RESIDUAL LIABILITIES,25/02/2024 00:00,282865,5224.89,LO0031,LONDON PENSIONS FUND AUTHORITY,29/01/2024 00:00,25/02/2024 00:00,P11-2024
P&V,PROJECT & FUNDING DELIVERY,EMPLOYEES,CRB CHECKS,1330,ADMIN FEE,07/02/2024 00:00,282229,20,DD0119,DUE DILIGENCE CHECKING LIMITED,29/01/2024 00:00,25/02/2024 00:00,P11-2024
,LEE VALLEY CAMPSITE,EMPLOYEES,CRB CHECKS,1330,DBS CHECKS,07/02/2024 00:00,282229,20,DD0119,DUE DILIGENCE CHECKING LIMITED,29/01/2024 00:00,25/02/2024 00:00,P11-2024
P&V,YOUTH AND SCHOOLS,EMPLOYEES,CRB CHECKS,1330,ADMIN FEE,07/02/2024 00:00,282229,20,DD0119,DUE DILIGENCE CHECKING LIMITED,29/01/2024 00:00,25/02/2024 00:00,P11-2024
P&V,YOUTH AND SCHOOLS,EMPLOYEES,CRB CHECKS,1330,DBS CHECKS,07/02/2024 00:00,282229,38,DD0119,DUE DILIGENCE CHECKING LIMITED,29/01/2024 00:00,25/02/2024 00:00,P11-2024
P&V,SOUTH AREA RANGERS,EMPLOYEES,CRB CHECKS,1330,ADMIN FEE,07/02/2024 00:00,282229,20,DD0119,DUE DILIGENCE CHECKING LIMITED,29/01/2024 00:00,25/02/2024 00:00,P11-2024
P&V,SOUTH AREA RANGERS,EMPLOYEES,CRB CHECKS,1330,DBS CHECKS,07/02/2024 00:00,282229,38,DD0119,DUE DILIGENCE CHECKING LIMITED,29/01/2024 00:00,25/02/2024 00:00,P11-2024
P&V,SPORT AND LEISURE,EMPLOYEES,DRIVING LICENCE CHECKS,1335,J HOLTUM DRIVING LICENCE CHECK,07/02/2024 00:00,282257,6.25,FI0288,FIRST ADVANTAGE EUROPE LTD,29/01/2024 00:00,25/02/2024 00:00,P11-2024
P&V,VOLUNTEERS (L&E),EMPLOYEES,DRIVING LICENCE CHECKS,1335,J WHITEHEAD DRIVING LICENCE CHECK,07/02/2024 00:00,282257,6.25,FI0288,FIRST ADVANTAGE EUROPE LTD,29/01/2024 00:00,25/02/2024 00:00,P11-2024
R&B,CORPORATE TRAINING,EMPLOYEES,APPRENTICE LEVY,1390,PAYE,07/02/2024 00:00,282197,1020,HM0368,HMRC,29/01/2024 00:00,25/02/2024 00:00,P11-2024
R&B,CORPORATE TRAINING,EMPLOYEES,APPRENTICE LEVY,1390,HMRC,14/02/2024 00:00,282472,-1020,HM0368,HMRC,29/01/2024 00:00,25/02/2024 00:00,P11-2024
R&B,CORPORATE TRAINING,EMPLOYEES,APPRENTICE LEVY,1390,HMRC,14/02/2024 00:00,282473,1016,HM0368,HMRC,29/01/2024 00:00,25/02/2024 00:00,P11-2024
,LEE VALLEY MARINA SPRINGFIELD,PREMISES RELATED EXPENDITURE,SCHEDULED GROUND MAINTENANCE,2111,P124956-SERVICE-Hire 12 Yard Skip,20/02/2024 00:00,282537,344.5,OD0010,O'DONOVAN (WASTE DISPOSAL) LTD,29/01/2024 00:00,25/02/2024 00:00,P11-2024
,LEE VALLEY MARINA SPRINGFIELD,PREMISES RELATED EXPENDITURE,SCHEDULED GROUND MAINTENANCE,2111,P125031-SERVICE-Hire 12 Yard skip,25/02/2024 00:00,282872,344.5,OD0010,O'DONOVAN (WASTE DISPOSAL) LTD,29/01/2024 00:00,25/02/2024 00:00,P11-2024
,LEE VALLEY MARINA STANSTEAD,PREMISES RELATED EXPENDITURE,SCHEDULED GROUND MAINTENANCE,2111,P121961-SERVICE-annual bin pick ups for RH and SA TOP UP,13/02/2024 00:00,282281,402.36,CL0037,VEOLIA ES (UK) LTD,29/01/2024 00:00,25/02/2024 00:00,P11-2024
,LEE VALLEY MARINA STANSTEAD,PREMISES RELATED EXPENDITURE,SCHEDULED GROUND MAINTENANCE,2111,P121961-SERVICE-annual bin pick ups for RH and SA TOP UP,13/02/2024 00:00,282283,897.47,CL0037,VEOLIA ES (UK) LTD,29/01/2024 00:00,25/02/2024 00:00,P11-2024
CEO,LVLC SERVICE CHARGE,PREMISES RELATED EXPENDITURE,SCHEDULED GROUND MAINTENANCE,2111,Jan-24,06/02/2024 00:00,282025,1539.86,GL0214,GLENDALE GROUNDS MANAGEMENT LIMITED,29/01/2024 00:00,25/02/2024 00:00,P11-2024
CEO,LVLC SERVICE CHARGE,PREMISES RELATED EXPENDITURE,SCHEDULED GROUND MAINTENANCE,2111,Jan-24,06/02/2024 00:00,282025,56.16,GL0214,GLENDALE GROUNDS MANAGEMENT LIMITED,29/01/2024 00:00,25/02/2024 00:00,P11-2024
P&V,MYDDELTON HOUSE,PREMISES RELATED EXPENDITURE,CONTRACT CLEANING,2120,P124946-SERVICE-Cafe Window Cleaning,13/02/2024 00:00,282398,65,PH0424,PHOENIX WINDOW CLEANING LTD,29/01/2024 00:00,25/02/2024 00:00,P11-2024
P&V,MYDDELTON HOUSE,PREMISES RELATED EXPENDITURE,CONTRACT CLEANING,2120,P121875-SERVICE-Myddelton House Cleaning,13/02/2024 00:00,282465,1850.16,BR0632,BRITANNIA SERVICES GROUP LTD,29/01/2024 00:00,25/02/2024 00:00,P11-2024
,LEE VALLEY WATERWORKS CENTRE,PREMISES RELATED EXPENDITURE,CONTRACT CLEANING,2120,P124456-SERVICE-Cleaning WaterWorks Centre,13/02/2024 00:00,282463,853.9,BR0632,BRITANNIA SERVICES GROUP LTD,29/01/2024 00:00,25/02/2024 00:00,P11-2024
,LEE VALLEY WATERWORKS CENTRE,PREMISES RELATED EXPENDITURE,CONTRACT CLEANING,2120,P124456-SERVICE-Cleaning WaterWorks Centre,13/02/2024 00:00,282463,0.02,BR0632,BRITANNIA SERVICES GROUP LTD,29/01/2024 00:00,25/02/2024 00:00,P11-2024
,LEE VALLEY CAMPSITE,PREMISES RELATED EXPENDITURE,CONTRACT CLEANING,2120,P124358-SERVICE-Site Cleaning JAN 24,13/02/2024 00:00,282239,2359,LI0305,LIMPIAR CLEANING,29/01/2024 00:00,25/02/2024 00:00,P11-2024
,LEE VALLEY CAMPSITE,PREMISES RELATED EXPENDITURE,CONTRACT CLEANING,2120,P122615-SERVICE-Feb - Mar 24,13/02/2024 00:00,282288,93.56,IN0012,INITIAL WASHROOM HYGIENE,29/01/2024 00:00,25/02/2024 00:00,P11-2024
,LEE VALLEY CARAVAN PARK,PREMISES RELATED EXPENDITURE,CONTRACT CLEANING,2120,P124865-SERVICE-Jan Cleaning,07/02/2024 00:00,282240,3198,LI0305,LIMPIAR CLEANING,29/01/2024 00:00,25/02/2024 00:00,P11-2024
,LEE VALLEY CARAVAN PARK,PREMISES RELATED EXPENDITURE,CONTRACT CLEANING,2120,P125068-SERVICE-Hygiene service,25/02/2024 00:00,282688,98.87,IN0012,INITIAL WASHROOM HYGIENE,29/01/2024 00:00,25/02/2024 00:00,P11-2024
P&V,WILDLIFE DISCOVERY CENTRE,PREMISES RELATED EXPENDITURE,CONTRACT CLEANING,2120,P123372-SERVICE-Cleaning at Wildlife Discovery Centre,21/02/2024 00:00,282464,426.96,BR0632,BRITANNIA SERVICES GROUP LTD,29/01/2024 00:00,25/02/2024 00:00,P11-2024
P&V,GUNPOWDER PARK,PREMISES RELATED EXPENDITURE,CONTRACT CLEANING,2120,Jan-24,06/02/2024 00:00,282025,281.26,GL0214,GLENDALE GROUNDS MANAGEMENT LIMITED,29/01/2024 00:00,25/02/2024 00:00,P11-2024
P&V,RIVER LEE COUNTRY PARK,PREMISES RELATED EXPENDITURE,CONTRACT CLEANING,2120,Jan-24,06/02/2024 00:00,282025,562.53,GL0214,GLENDALE GROUNDS MANAGEMENT LIMITED,29/01/2024 00:00,25/02/2024 00:00,P11-2024
,LV LEISURE CENTRE CAMPSITE,PREMISES RELATED EXPENDITURE,CONTRACT CLEANING,2120,P124893-SERVICE-Cleaning of site facilities,07/02/2024 00:00,282238,1780,LI0305,LIMPIAR CLEANING,29/01/2024 00:00,25/02/2024 00:00,P11-2024
P&V,MYDDLETON HSE HERITAGE CENTRE,PREMISES RELATED EXPENDITURE,CLEANING CONTRACT,2121,P121876-SERVICE-Tea Room Cleaning,21/02/2024 00:00,282466,925.08,BR0632,BRITANNIA SERVICES GROUP LTD,29/01/2024 00:00,25/02/2024 00:00,P11-2024
P&V,NORTH AREA RANGERS,PREMISES RELATED EXPENDITURE,GM NON MAIN CONT UNSCHEDULED,2147,P125090-SERVICE-Showground Meadow Rectification Cut,25/02/2024 00:00,282443,895.96,GL0214,GLENDALE GROUNDS MANAGEMENT LIMITED,29/01/2024 00:00,25/02/2024 00:00,P11-2024
P&V,NORTH AREA RANGERS,PREMISES RELATED EXPENDITURE,GM NON MAIN CONT UNSCHEDULED,2147,P125089-SERVICE-Showground Meadow Cut,25/02/2024 00:00,282444,973.36,GL0214,GLENDALE GROUNDS MANAGEMENT LIMITED,29/01/2024 00:00,25/02/2024 00:00,P11-2024
P&V,SOUTH AREA RANGERS,PREMISES RELATED EXPENDITURE,GM NON MAIN CONT UNSCHEDULED,2147,P125053-SERVICE-Re-hang Gate at Lee Park Way,25/02/2024 00:00,282845,150,JO0019,R G JOYCE,29/01/2024 00:00,25/02/2024 00:00,P11-2024
P&V,RIVER LEE COUNTRY PARK,PREMISES RELATED EXPENDITURE,GM CONSERVATION GRAZING,2148,P122552-SERVICE-Supply of Grazing animals for conservation gr,07/02/2024 00:00,282278,4500,ES0268,ESSEX COUNTY COUNCIL,29/01/2024 00:00,25/02/2024 00:00,P11-2024
P&V,SOUTH AREA RANGERS,PREMISES RELATED EXPENDITURE,HABITAT MANAGEMENT WORKS,2149,P123057-SERVICE-Japanese Knot Weed at Tottenham Marsh,13/02/2024 00:00,282357,357.5,GO0044,S.H.GOSS & CO LTD,29/01/2024 00:00,25/02/2024 00:00,P11-2024
P&V,SOUTH AREA RANGERS,PREMISES RELATED EXPENDITURE,HABITAT MANAGEMENT WORKS,2149,"P124857-SERVICE-Scrub, Cut and Collect - Tottenham Marshes",21/02/2024 00:00,282654,4000,FA0099,FARM & COUNTRY SUPPLIES LTD,29/01/2024 00:00,25/02/2024 00:00,P11-2024
,LEE VALLEY MARINA SPRINGFIELD,PREMISES RELATED EXPENDITURE,GENERAL WASTE,2211,"P124866-SERVICE-General Waste & Recyling Jan,Feb,March 2024",07/02/2024 00:00,282201,1539.99,CL0037,VEOLIA ES (UK) LTD,29/01/2024 00:00,25/02/2024 00:00,P11-2024
,LEE VALLEY MARINA STANSTEAD,PREMISES RELATED EXPENDITURE,GENERAL WASTE,2211,P124841-SERVICE-elite 1st clearance,06/02/2024 00:00,282179,1012.2,EL0385,ELITE RECYCLING SOLUTIONS LTD,29/01/2024 00:00,25/02/2024 00:00,P11-2024
,LEE VALLEY MARINA STANSTEAD,PREMISES RELATED EXPENDITURE,GENERAL WASTE,2211,"P124726-SERVICE-2nd clearance (paint pots, aerosols etc)",06/02/2024 00:00,282179,424.5,EL0385,ELITE RECYCLING SOLUTIONS LTD,29/01/2024 00:00,25/02/2024 00:00,P11-2024
,LEE VALLEY CAMPSITE,PREMISES RELATED EXPENDITURE,GENERAL WASTE,2211,P122977-SERVICE-Skip Collections  Aug- Dec 23,13/02/2024 00:00,282282,381.36,CL0037,VEOLIA ES (UK) LTD,29/01/2024 00:00,25/02/2024 00:00,P11-2024
,LEE VALLEY CARAVAN PARK,PREMISES RELATED EXPENDITURE,GENERAL WASTE,2211,P124971-SERVICE-Waste collection,21/02/2024 00:00,282284,3325.55,CL0037,VEOLIA ES (UK) LTD,29/01/2024 00:00,25/02/2024 00:00,P11-2024
P&V,NORTH AREA RANGERS,PREMISES RELATED EXPENDITURE,GENERAL WASTE,2211,P124952-SERVICE-12yd General Rubbish Skip at Holyfield Hall F,21/02/2024 00:00,282677,323.4,GB0239,GBN SERVICES LTD,29/01/2024 00:00,25/02/2024 00:00,P11-2024
P&V,SOUTH AREA RANGERS,PREMISES RELATED EXPENDITURE,GENERAL WASTE,2211,P124571-SERVICE-Skip at WaterWorks Centre,06/02/2024 00:00,282148,323.4,GB0239,GBN SERVICES LTD,29/01/2024 00:00,25/02/2024 00:00,P11-2024
,LV LEISURE CENTRE CAMPSITE,PREMISES RELATED EXPENDITURE,GENERAL WASTE,2211,P124906-SERVICE-recycling empty,13/02/2024 00:00,282273,301.73,BY0049,BYWATERS (LEYTON) LTD,29/01/2024 00:00,25/02/2024 00:00,P11-2024
,LV LEISURE CENTRE CAMPSITE,PREMISES RELATED EXPENDITURE,GENERAL WASTE,2211,P124907-SERVICE-sanitary bins,13/02/2024 00:00,282279,163.96,PE0015,PHS GROUP PLC,29/01/2024 00:00,25/02/2024 00:00,P11-2024
,LV LEISURE CENTRE CAMPSITE,PREMISES RELATED EXPENDITURE,GENERAL WASTE,2211,P124908-SERVICE-compactor waste,13/02/2024 00:00,282280,706.92,CL0037,VEOLIA ES (UK) LTD,29/01/2024 00:00,25/02/2024 00:00,P11-2024
P&V,GUNPOWDER PARK,PREMISES RELATED EXPENDITURE,FLYTIPPING/WHITE GOOD DISPOSAL,2213,P124969-SERVICE-Remove Fly Tip at Gunpowder Park,21/02/2024 00:00,282518,200,JO0019,R G JOYCE,29/01/2024 00:00,25/02/2024 00:00,P11-2024
P&V,MYDDELTON HOUSE,PREMISES RELATED EXPENDITURE,RECYCLING,2214,P124582-SERVICE-Recycling,06/02/2024 00:00,282124,98.28,CA0341,F & R CAWLEY LTD,29/01/2024 00:00,25/02/2024 00:00,P11-2024
P&V,MYDDELTON HOUSE,PREMISES RELATED EXPENDITURE,RECYCLING,2214,P124582-SERVICE-Recycling,13/02/2024 00:00,282274,273.62,CA0341,F & R CAWLEY LTD,29/01/2024 00:00,25/02/2024 00:00,P11-2024
P&V,MYDDELTON HOUSE,PREMISES RELATED EXPENDITURE,BUILDING SERVICE AGREEMENTS,2220,P124617-SERVICE-Signally Transmission Intruder Alarm 2024,06/02/2024 00:00,281260,761.79,AD0015,ADT FIRE & SECURITY PLC,29/01/2024 00:00,25/02/2024 00:00,P11-2024
P&V,MYDDELTON HOUSE,PREMISES RELATED EXPENDITURE,BUILDING SERVICE AGREEMENTS,2220,P124618-SERVICE-British Telecom Redcare Intruder System 2024,06/02/2024 00:00,281261,736.68,AD0015,ADT FIRE & SECURITY PLC,29/01/2024 00:00,25/02/2024 00:00,P11-2024
P&V,MYDDELTON HOUSE,PREMISES RELATED EXPENDITURE,BUILDING SERVICE AGREEMENTS,2220,P124619-SERVICE-Maintenance of Fire Alarm 2024,06/02/2024 00:00,281262,4125.55,AD0015,ADT FIRE & SECURITY PLC,29/01/2024 00:00,25/02/2024 00:00,P11-2024
P&V,MYDDELTON HOUSE,PREMISES RELATED EXPENDITURE,BUILDING SERVICE AGREEMENTS,2220,P124842-SERVICE-Annual Maintenance Contract AC equipment 2024,13/02/2024 00:00,282287,190,HE0071,HERTS COOLING LIMITED,29/01/2024 00:00,25/02/2024 00:00,P11-2024
P&V,MYDDELTON HOUSE,PREMISES RELATED EXPENDITURE,BUILDING SERVICE AGREEMENTS,2220,P124697-SERVICE-Myddelton House Emergency Lighting Remedial W,21/02/2024 00:00,282698,1785,BR0018,BRADSHAW ELECTRICAL LIMITED,29/01/2024 00:00,25/02/2024 00:00,P11-2024
P&V,MYDDELTON HOUSE,PREMISES RELATED EXPENDITURE,BUILDING SERVICE AGREEMENTS,2220,P121870-SERVICE-Sanitary Services,25/02/2024 00:00,282947,10.09,PE0015,PHS GROUP PLC,29/01/2024 00:00,25/02/2024 00:00,P11-2024
P&V,MYDDELTON HOUSE,PREMISES RELATED EXPENDITURE,BUILDING SERVICE AGREEMENTS,2220,P121870-SERVICE-Sanitary Services,25/02/2024 00:00,282948,24.15,PE0015,PHS GROUP PLC,29/01/2024 00:00,25/02/2024 00:00,P11-2024
P&V,MYDDELTON HOUSE,PREMISES RELATED EXPENDITURE,BUILDING SERVICE AGREEMENTS,2220,P124645-SERVICE-Sanitary Services,25/02/2024 00:00,282950,182.03,PE0015,PHS GROUP PLC,29/01/2024 00:00,25/02/2024 00:00,P11-2024
,LEE VALLEY MARINA SPRINGFIELD,PREMISES RELATED EXPENDITURE,BUILDING SERVICE AGREEMENTS,2220,"P124644-SERVICE-LEV testing,inspection & service",14/02/2024 00:00,282404,730,CL0435,CLEAR THE AIR,29/01/2024 00:00,25/02/2024 00:00,P11-2024
,LEE VALLEY MARINA SPRINGFIELD,PREMISES RELATED EXPENDITURE,BUILDING SERVICE AGREEMENTS,2220,P121657-SERVICE-To Supply pest & Vermin control,20/02/2024 00:00,282424,450,VE0006,VERMINATE CITY & RURAL PEST CONTROL LTD,29/01/2024 00:00,25/02/2024 00:00,P11-2024
,LEE VALLEY MARINA SPRINGFIELD,PREMISES RELATED EXPENDITURE,BUILDING SERVICE AGREEMENTS,2220,"P121662-SERVICE-Sanitary Disposal,Dust Mats,Eco Shield",21/02/2024 00:00,282696,216.54,PE0015,PHS GROUP PLC,29/01/2024 00:00,25/02/2024 00:00,P11-2024
,LEE VALLEY WATERWORKS CENTRE,PREMISES RELATED EXPENDITURE,BUILDING SERVICE AGREEMENTS,2220,P124047-SERVICE-Waterworks Centre - Flood Damage Decorating,21/02/2024 00:00,282702,987,KE0023,KENDALL & SONS LIMITED,29/01/2024 00:00,25/02/2024 00:00,P11-2024
,LEE VALLEY WATERWORKS CENTRE,PREMISES RELATED EXPENDITURE,BUILDING SERVICE AGREEMENTS,2220,P125128-SERVICE-Waterworks Jan 2024 PPM,25/02/2024 00:00,282903,585.05,CO0199,EQUANS FM LIMITED (frmlyENGIE FM LIMITED),29/01/2024 00:00,25/02/2024 00:00,P11-2024
,LEE VALLEY CAMPSITE,PREMISES RELATED EXPENDITURE,BUILDING SERVICE AGREEMENTS,2220,P121646-SERVICE-Nov 23,14/02/2024 00:00,282420,60,VE0006,VERMINATE CITY & RURAL PEST CONTROL LTD,29/01/2024 00:00,25/02/2024 00:00,P11-2024
,LEE VALLEY CAMPSITE,PREMISES RELATED EXPENDITURE,BUILDING SERVICE AGREEMENTS,2220,P121646-SERVICE-Nov 23,14/02/2024 00:00,282420,10,VE0006,VERMINATE CITY & RURAL PEST CONTROL LTD,29/01/2024 00:00,25/02/2024 00:00,P11-2024
,LEE VALLEY CAMPSITE,PREMISES RELATED EXPENDITURE,BUILDING SERVICE AGREEMENTS,2220,P121646-SERVICE-Dec 23,25/02/2024 00:00,282500,50,VE0006,VERMINATE CITY & RURAL PEST CONTROL LTD,29/01/2024 00:00,25/02/2024 00:00,P11-2024
,LEE VALLEY CAMPSITE,PREMISES RELATED EXPENDITURE,BUILDING SERVICE AGREEMENTS,2220,P121646-SERVICE-Nov 23,25/02/2024 00:00,282500,20,VE0006,VERMINATE CITY & RURAL PEST CONTROL LTD,29/01/2024 00:00,25/02/2024 00:00,P11-2024
,LEE VALLEY CARAVAN PARK,PREMISES RELATED EXPENDITURE,BUILDING SERVICE AGREEMENTS,2220,P124978-SERVICE-Pest control,21/02/2024 00:00,282419,70,VE0006,VERMINATE CITY & RURAL PEST CONTROL LTD,29/01/2024 00:00,25/02/2024 00:00,P11-2024
,LEE VALLEY CARAVAN PARK,PREMISES RELATED EXPENDITURE,BUILDING SERVICE AGREEMENTS,2220,P125049-SERVICE-Pest control,25/02/2024 00:00,282499,70,VE0006,VERMINATE CITY & RURAL PEST CONTROL LTD,29/01/2024 00:00,25/02/2024 00:00,P11-2024
P&V,GUNPOWDER PARK,PREMISES RELATED EXPENDITURE,BUILDING SERVICE AGREEMENTS,2220,P121073-SERVICE-Sanitary Disposal - Gunpowder Park - Public T,13/02/2024 00:00,282439,14.3,PE0015,PHS GROUP PLC,29/01/2024 00:00,25/02/2024 00:00,P11-2024
P&V,GUNPOWDER PARK,PREMISES RELATED EXPENDITURE,BUILDING SERVICE AGREEMENTS,2220,P124861-SERVICE-Gunpowder Park Shutter Call Out / Repairs,25/02/2024 00:00,282875,140,ES0392,ESSEX DOORS & SHUTTERS LTD,29/01/2024 00:00,25/02/2024 00:00,P11-2024
P&V,GUNPOWDER PARK,PREMISES RELATED EXPENDITURE,BUILDING SERVICE AGREEMENTS,2220,P124861-SERVICE-Gunpowder Park Shutter Call Out / Repairs,25/02/2024 00:00,282875,210,ES0392,ESSEX DOORS & SHUTTERS LTD,29/01/2024 00:00,25/02/2024 00:00,P11-2024
P&V,RIVER LEE COUNTRY PARK,PREMISES RELATED EXPENDITURE,BUILDING SERVICE AGREEMENTS,2220,P121074-SERVICE-Sanitary Disposal - Fishers Green Toilets,13/02/2024 00:00,282438,10.72,PE0015,PHS GROUP PLC,29/01/2024 00:00,25/02/2024 00:00,P11-2024
P&V,RIVER LEE COUNTRY PARK,PREMISES RELATED EXPENDITURE,BUILDING SERVICE AGREEMENTS,2220,P121071-SERVICE-Sanitary Disposal - Ranger Base Office Holyfi,25/02/2024 00:00,282949,6.47,PE0015,PHS GROUP PLC,29/01/2024 00:00,25/02/2024 00:00,P11-2024
,LV LEISURE CENTRE CAMPSITE,PREMISES RELATED EXPENDITURE,BUILDING SERVICE AGREEMENTS,2220,P125072-SERVICE-Site pest control,25/02/2024 00:00,282421,70,VE0006,VERMINATE CITY & RURAL PEST CONTROL LTD,29/01/2024 00:00,25/02/2024 00:00,P11-2024
,LV LEISURE CENTRE CAMPSITE,PREMISES RELATED EXPENDITURE,BUILDING SERVICE AGREEMENTS,2220,P125075-SERVICE-Site pest control,25/02/2024 00:00,282501,70,VE0006,VERMINATE CITY & RURAL PEST CONTROL LTD,29/01/2024 00:00,25/02/2024 00:00,P11-2024
CEO,RESIDENTIAL ACCOMMODATION,PREMISES RELATED EXPENDITURE,BUILDING REPAIRS & MAINTENANCE,2222,P124798-SERVICE-1 Gate Cottages - Bioler Repair,13/02/2024 00:00,282154,220,RE0094,REACT 2 IT (BUILDING & REFURBISHMENT) LTD,29/01/2024 00:00,25/02/2024 00:00,P11-2024
CEO,RESIDENTIAL ACCOMMODATION,PREMISES RELATED EXPENDITURE,BUILDING REPAIRS & MAINTENANCE,2222,P121557-SERVICE-Maintenance,14/02/2024 00:00,282176,554.17,CA0165,CASTLES,29/01/2024 00:00,25/02/2024 00:00,P11-2024
CEO,RESIDENTIAL ACCOMMODATION,PREMISES RELATED EXPENDITURE,BUILDING REPAIRS & MAINTENANCE,2222,P124881-SERVICE-Gate Lodge Kitchen Clean,07/02/2024 00:00,282236,197,VI0127,VICTORIA SERVICES,29/01/2024 00:00,25/02/2024 00:00,P11-2024
CEO,RESIDENTIAL ACCOMMODATION,PREMISES RELATED EXPENDITURE,BUILDING REPAIRS & MAINTENANCE,2222,P121557-SERVICE-Maintenance,14/02/2024 00:00,282291,82.5,CA0165,CASTLES,29/01/2024 00:00,25/02/2024 00:00,P11-2024
CEO,RESIDENTIAL ACCOMMODATION,PREMISES RELATED EXPENDITURE,BUILDING REPAIRS & MAINTENANCE,2222,P121886-SERVICE-Pest Control Connaught Close,13/02/2024 00:00,282425,70,VE0006,VERMINATE CITY & RURAL PEST CONTROL LTD,29/01/2024 00:00,25/02/2024 00:00,P11-2024
,LEE VALLEY MARINA SPRINGFIELD,PREMISES RELATED EXPENDITURE,BUILDING REPAIRS & MAINTENANCE,2222,P124133-SERVICE-To carry out quote QT00272,20/02/2024 00:00,282651,345,BR0018,BRADSHAW ELECTRICAL LIMITED,29/01/2024 00:00,25/02/2024 00:00,P11-2024
,LEE VALLEY MARINA SPRINGFIELD,PREMISES RELATED EXPENDITURE,BUILDING REPAIRS & MAINTENANCE,2222,P121723-SERVICE-Emergency callout & repairs,21/02/2024 00:00,282720,116,BR0018,BRADSHAW ELECTRICAL LIMITED,29/01/2024 00:00,25/02/2024 00:00,P11-2024
,LEE VALLEY MARINA STANSTEAD,PREMISES RELATED EXPENDITURE,BUILDING REPAIRS & MAINTENANCE,2222,P124716-SERVICE-395.22,06/02/2024 00:00,281989,395.22,FA0269,FAST FUEL SERVICES,29/01/2024 00:00,25/02/2024 00:00,P11-2024
,LEE VALLEY MARINA STANSTEAD,PREMISES RELATED EXPENDITURE,BUILDING REPAIRS & MAINTENANCE,2222,"P124805-SERVICE-2xcash boxes, w/s items, legionella thermomtr",06/02/2024 00:00,282007,6.62,AM0406,AMAZON PAYMENTS UK LIMITED,29/01/2024 00:00,25/02/2024 00:00,P11-2024
,LEE VALLEY MARINA STANSTEAD,PREMISES RELATED EXPENDITURE,BUILDING REPAIRS & MAINTENANCE,2222,"P124805-SERVICE-2xcash boxes, w/s items, legionella thermomtr",06/02/2024 00:00,282008,30.41,AM0406,AMAZON PAYMENTS UK LIMITED,29/01/2024 00:00,25/02/2024 00:00,P11-2024
,LEE VALLEY MARINA STANSTEAD,PREMISES RELATED EXPENDITURE,BUILDING REPAIRS & MAINTENANCE,2222,"P124805-SERVICE-2xcash boxes, w/s items, legionella thermomtr",06/02/2024 00:00,282009,19.57,AM0406,AMAZON PAYMENTS UK LIMITED,29/01/2024 00:00,25/02/2024 00:00,P11-2024
,LEE VALLEY MARINA STANSTEAD,PREMISES RELATED EXPENDITURE,BUILDING REPAIRS & MAINTENANCE,2222,"P124805-SERVICE-2xcash boxes, w/s items, legionella thermomtr",06/02/2024 00:00,282010,9.69,AM0406,AMAZON PAYMENTS UK LIMITED,29/01/2024 00:00,25/02/2024 00:00,P11-2024
,LEE VALLEY MARINA STANSTEAD,PREMISES RELATED EXPENDITURE,BUILDING REPAIRS & MAINTENANCE,2222,"P124805-SERVICE-2xcash boxes, w/s items, legionella thermomtr",06/02/2024 00:00,282094,6.42,AM0406,AMAZON PAYMENTS UK LIMITED,29/01/2024 00:00,25/02/2024 00:00,P11-2024
,LEE VALLEY MARINA STANSTEAD,PREMISES RELATED EXPENDITURE,BUILDING REPAIRS & MAINTENANCE,2222,P124700-SERVICE-ambirad ceiling heaters service,20/02/2024 00:00,282496,1399,IN0203,THE INDEPENDENT HEATING COMPANY LTD,29/01/2024 00:00,25/02/2024 00:00,P11-2024
P&V,LEE VALLEY FARM HOLYFIELDHALL,PREMISES RELATED EXPENDITURE,BUILDING REPAIRS & MAINTENANCE,2222,P124797-SERVICE-Building Sundries,25/02/2024 00:00,282638,95.87,JE0011,SAINT-GOBAIN BUILDING DISTRIBUTION,29/01/2024 00:00,25/02/2024 00:00,P11-2024
P&V,LEE VALLEY FARM HOLYFIELDHALL,PREMISES RELATED EXPENDITURE,BUILDING REPAIRS & MAINTENANCE,2222,P121497-SERVICE-Building Repairs,25/02/2024 00:00,282639,83.87,JE0011,SAINT-GOBAIN BUILDING DISTRIBUTION,29/01/2024 00:00,25/02/2024 00:00,P11-2024
P&V,LEE VALLEY FARM HOLYFIELDHALL,PREMISES RELATED EXPENDITURE,BUILDING REPAIRS & MAINTENANCE,2222,P124797-SERVICE-Building Sundries,25/02/2024 00:00,282640,58.02,JE0011,SAINT-GOBAIN BUILDING DISTRIBUTION,29/01/2024 00:00,25/02/2024 00:00,P11-2024
P&V,LEE VALLEY FARM HOLYFIELDHALL,PREMISES RELATED EXPENDITURE,BUILDING REPAIRS & MAINTENANCE,2222,P124797-SERVICE-Building Sundries,25/02/2024 00:00,282642,27.22,JE0011,SAINT-GOBAIN BUILDING DISTRIBUTION,29/01/2024 00:00,25/02/2024 00:00,P11-2024
P&V,LEE VALLEY FARM HOLYFIELDHALL,PREMISES RELATED EXPENDITURE,BUILDING REPAIRS & MAINTENANCE,2222,P124272-SERVICE-Roller Door Service,20/02/2024 00:00,282689,335,ES0392,ESSEX DOORS & SHUTTERS LTD,29/01/2024 00:00,25/02/2024 00:00,P11-2024
,LEE VALLEY CARAVAN PARK,PREMISES RELATED EXPENDITURE,BUILDING REPAIRS & MAINTENANCE,2222,P125064-SERVICE-Reception water heater descale,25/02/2024 00:00,282852,130,SO0400,SOUTHERN GREEN SERVICES LIMITED,29/01/2024 00:00,25/02/2024 00:00,P11-2024
,LEE VALLEY CARAVAN PARK,PREMISES RELATED EXPENDITURE,BUILDING REPAIRS & MAINTENANCE,2222,P125063-SERVICE-Descale 3 water heaters,25/02/2024 00:00,282853,480,SO0400,SOUTHERN GREEN SERVICES LIMITED,29/01/2024 00:00,25/02/2024 00:00,P11-2024
,LEE VALLEY CARAVAN PARK,PREMISES RELATED EXPENDITURE,BUILDING REPAIRS & MAINTENANCE,2222,P125062-SERVICE-Replace TMV in family room,25/02/2024 00:00,282854,140,SO0400,SOUTHERN GREEN SERVICES LIMITED,29/01/2024 00:00,25/02/2024 00:00,P11-2024
,LEE VALLEY CARAVAN PARK,PREMISES RELATED EXPENDITURE,BUILDING REPAIRS & MAINTENANCE,2222,P125061-SERVICE-Service and test TMV's on site,25/02/2024 00:00,282855,480,SO0400,SOUTHERN GREEN SERVICES LIMITED,29/01/2024 00:00,25/02/2024 00:00,P11-2024
,LEE VALLEY CARAVAN PARK,PREMISES RELATED EXPENDITURE,BUILDING REPAIRS & MAINTENANCE,2222,P125060-SERVICE-Remove dead legs & cisterns,25/02/2024 00:00,282856,390,SO0400,SOUTHERN GREEN SERVICES LIMITED,29/01/2024 00:00,25/02/2024 00:00,P11-2024
,LEE VALLEY CARAVAN PARK,PREMISES RELATED EXPENDITURE,BUILDING REPAIRS & MAINTENANCE,2222,P125059-SERVICE-Facilities immersion heater,25/02/2024 00:00,282857,425,SO0400,SOUTHERN GREEN SERVICES LIMITED,29/01/2024 00:00,25/02/2024 00:00,P11-2024
,LEE VALLEY CARAVAN PARK,PREMISES RELATED EXPENDITURE,BUILDING REPAIRS & MAINTENANCE,2222,P125058-SERVICE-Hot water valve replacement,25/02/2024 00:00,282858,330,SO0400,SOUTHERN GREEN SERVICES LIMITED,29/01/2024 00:00,25/02/2024 00:00,P11-2024
,LEE VALLEY CARAVAN PARK,PREMISES RELATED EXPENDITURE,BUILDING REPAIRS & MAINTENANCE,2222,P125057-SERVICE-Cap cold storage tank,25/02/2024 00:00,282859,340,SO0400,SOUTHERN GREEN SERVICES LIMITED,29/01/2024 00:00,25/02/2024 00:00,P11-2024
,LEE VALLEY CARAVAN PARK,PREMISES RELATED EXPENDITURE,BUILDING REPAIRS & MAINTENANCE,2222,P125056-SERVICE-Annual Chlorination,25/02/2024 00:00,282860,1245,SO0400,SOUTHERN GREEN SERVICES LIMITED,29/01/2024 00:00,25/02/2024 00:00,P11-2024
P&V,MYDDELTON HOUSE GARDENS,PREMISES RELATED EXPENDITURE,BUILDING REPAIRS & MAINTENANCE,2222,P124682-SERVICE-signage for myddelton HG,07/02/2024 00:00,281944,278,MA0167,MARTIN DANNELL & CO LTD,29/01/2024 00:00,25/02/2024 00:00,P11-2024
P&V,MYDDELTON HOUSE GARDENS,PREMISES RELATED EXPENDITURE,BUILDING REPAIRS & MAINTENANCE,2222,P123948-SERVICE-Metal Gate required at head office (EN29HG),20/02/2024 00:00,282504,2185,RB0221,R 'n' B ENGINEERING LTD,29/01/2024 00:00,25/02/2024 00:00,P11-2024
P&V,NORTH AREA RANGERS,PREMISES RELATED EXPENDITURE,BUILDING REPAIRS & MAINTENANCE,2222,P124904-SERVICE-Replace Emergency Lights Ranger Base,25/02/2024 00:00,282649,295,BR0018,BRADSHAW ELECTRICAL LIMITED,29/01/2024 00:00,25/02/2024 00:00,P11-2024
P&V,GUNPOWDER PARK,PREMISES RELATED EXPENDITURE,BUILDING REPAIRS & MAINTENANCE,2222,P124554-SERVICE-Roof Structure Repairs at Gunpowder Park,13/02/2024 00:00,282409,660,RE0094,REACT 2 IT (BUILDING & REFURBISHMENT) LTD,29/01/2024 00:00,25/02/2024 00:00,P11-2024
P&V,GUNPOWDER PARK,PREMISES RELATED EXPENDITURE,BUILDING REPAIRS & MAINTENANCE,2222,P124868-SERVICE-Toilet Repairs at Gunpowder Park,25/02/2024 00:00,282755,120,RE0094,REACT 2 IT (BUILDING & REFURBISHMENT) LTD,29/01/2024 00:00,25/02/2024 00:00,P11-2024
P&V,GUNPOWDER PARK,PREMISES RELATED EXPENDITURE,BUILDING REPAIRS & MAINTENANCE,2222,P124947-SERVICE-Remove Flood Lights at Gunpowder Park,25/02/2024 00:00,282901,96.74,CO0199,EQUANS FM LIMITED (frmlyENGIE FM LIMITED),29/01/2024 00:00,25/02/2024 00:00,P11-2024
P&V,GUNPOWDER PARK,PREMISES RELATED EXPENDITURE,BUILDING REPAIRS & MAINTENANCE,2222,P123821-SERVICE-PPM - Oct 2023 to Mar 2024 at Gunpowder Park,25/02/2024 00:00,282902,154.6,CO0199,EQUANS FM LIMITED (frmlyENGIE FM LIMITED),29/01/2024 00:00,25/02/2024 00:00,P11-2024
P&V,RIVER LEE COUNTRY PARK,PREMISES RELATED EXPENDITURE,BUILDING REPAIRS & MAINTENANCE,2222,P123884-SERVICE-Unblock Toilet at Fishers Green,21/02/2024 00:00,282703,98,KE0023,KENDALL & SONS LIMITED,29/01/2024 00:00,25/02/2024 00:00,P11-2024
CEO,LVLC SERVICE CHARGE,PREMISES RELATED EXPENDITURE,BUILDING REPAIRS & MAINTENANCE,2222,P124541-SERVICE-Remove Fallen Tree at Picketts Lock Car Park,13/02/2024 00:00,282023,961.87,GL0214,GLENDALE GROUNDS MANAGEMENT LIMITED,29/01/2024 00:00,25/02/2024 00:00,P11-2024
P&V,SOUTH AREA RANGERS,SUPPLIES AND SERVICES,PARK SIGNS AND BOARDS,2236,P124268-SERVICE-10x A4 Lockable Snap Frames - Black,06/02/2024 00:00,282130,400,DI0136,DISPLAY DEVELOPMENTS LTD,29/01/2024 00:00,25/02/2024 00:00,P11-2024
CEO,COMMERCIAL ACCOMMODATION,PREMISES RELATED EXPENDITURE,EAST HALE ALLOTMENTS,2261,P121887-SERVICE-Allotment Bins,14/02/2024 00:00,282202,278.56,CL0037,VEOLIA ES (UK) LTD,29/01/2024 00:00,25/02/2024 00:00,P11-2024
P&V,MYDDELTON HOUSE,PREMISES RELATED EXPENDITURE,ENERGY COSTS (ELECTRICITY),2332,MD HOUSE-ELECTRIC-JAN 0224,20/02/2024 00:00,282525,3404.21,KE0007,KENT COUNTY COUNCIL (KCS),29/01/2024 00:00,25/02/2024 00:00,P11-2024
CEO,RESIDENTIAL ACCOMMODATION,PREMISES RELATED EXPENDITURE,ENERGY COSTS (ELECTRICITY),2332,"1 BUNGALOW, WHARF RD - 11/01/23-30/01/23",13/02/2024 00:00,281092,273.68,OC0132,OCTOPUS ENERGY,29/01/2024 00:00,25/02/2024 00:00,P11-2024
CEO,RESIDENTIAL ACCOMMODATION,PREMISES RELATED EXPENDITURE,ENERGY COSTS (ELECTRICITY),2332,"1 BUNGALOW, WHARF RD - 02/02/23-15/02/23",13/02/2024 00:00,281093,194.25,OC0132,OCTOPUS ENERGY,29/01/2024 00:00,25/02/2024 00:00,P11-2024
CEO,RESIDENTIAL ACCOMMODATION,PREMISES RELATED EXPENDITURE,ENERGY COSTS (ELECTRICITY),2332,"1 BUNGALOW, WHARF RD - 16/02/23-01/03/23",13/02/2024 00:00,281094,188.35,OC0132,OCTOPUS ENERGY,29/01/2024 00:00,25/02/2024 00:00,P11-2024
CEO,RESIDENTIAL ACCOMMODATION,PREMISES RELATED EXPENDITURE,ENERGY COSTS (ELECTRICITY),2332,"1 BUNGALOW, WHARF RD - 02/03/23-15/03/23",13/02/2024 00:00,281095,213.25,OC0132,OCTOPUS ENERGY,29/01/2024 00:00,25/02/2024 00:00,P11-2024
CEO,RESIDENTIAL ACCOMMODATION,PREMISES RELATED EXPENDITURE,ENERGY COSTS (ELECTRICITY),2332,"1 BUNGALOW, WHARF RD - 16/03/23-29/03/23",13/02/2024 00:00,281096,181.4,OC0132,OCTOPUS ENERGY,29/01/2024 00:00,25/02/2024 00:00,P11-2024
CEO,RESIDENTIAL ACCOMMODATION,PREMISES RELATED EXPENDITURE,ENERGY COSTS (ELECTRICITY),2332,"1 BUNGALOW, WHARF RD - 30/03/23-12/04/23",13/02/2024 00:00,281097,173.95,OC0132,OCTOPUS ENERGY,29/01/2024 00:00,25/02/2024 00:00,P11-2024
CEO,RESIDENTIAL ACCOMMODATION,PREMISES RELATED EXPENDITURE,ENERGY COSTS (ELECTRICITY),2332,"1 BUNGALOW, WHARF RD - 13/04/23-26/04/23",13/02/2024 00:00,281098,158.58,OC0132,OCTOPUS ENERGY,29/01/2024 00:00,25/02/2024 00:00,P11-2024
CEO,RESIDENTIAL ACCOMMODATION,PREMISES RELATED EXPENDITURE,ENERGY COSTS (ELECTRICITY),2332,"1 BUNGALOW, WHARF RD - 27/04/23-10/05/23",13/02/2024 00:00,281099,119.33,OC0132,OCTOPUS ENERGY,29/01/2024 00:00,25/02/2024 00:00,P11-2024
CEO,RESIDENTIAL ACCOMMODATION,PREMISES RELATED EXPENDITURE,ENERGY COSTS (ELECTRICITY),2332,"1 BUNGALOW, WHARF RD - 11/05/23-24/05/23",13/02/2024 00:00,281100,132.9,OC0132,OCTOPUS ENERGY,29/01/2024 00:00,25/02/2024 00:00,P11-2024
CEO,RESIDENTIAL ACCOMMODATION,PREMISES RELATED EXPENDITURE,ENERGY COSTS (ELECTRICITY),2332,"1 BUNGALOW, WHARF RD - 25/05/23-07/06/23",13/02/2024 00:00,281101,125.4,OC0132,OCTOPUS ENERGY,29/01/2024 00:00,25/02/2024 00:00,P11-2024
CEO,RESIDENTIAL ACCOMMODATION,PREMISES RELATED EXPENDITURE,ENERGY COSTS (ELECTRICITY),2332,"1 BUNGALOW, WHARF RD - 08/06/23-21/06/23",13/02/2024 00:00,281102,114.58,OC0132,OCTOPUS ENERGY,29/01/2024 00:00,25/02/2024 00:00,P11-2024
CEO,RESIDENTIAL ACCOMMODATION,PREMISES RELATED EXPENDITURE,ENERGY COSTS (ELECTRICITY),2332,"1 BUNGALOW, WHARF RD - 22/06/23-05/07/23",13/02/2024 00:00,281103,111.71,OC0132,OCTOPUS ENERGY,29/01/2024 00:00,25/02/2024 00:00,P11-2024
CEO,RESIDENTIAL ACCOMMODATION,PREMISES RELATED EXPENDITURE,ENERGY COSTS (ELECTRICITY),2332,"1 BUNGALOW, WHARF RD - 06/07/23-19/07/23",13/02/2024 00:00,281104,105.13,OC0132,OCTOPUS ENERGY,29/01/2024 00:00,25/02/2024 00:00,P11-2024
CEO,RESIDENTIAL ACCOMMODATION,PREMISES RELATED EXPENDITURE,ENERGY COSTS (ELECTRICITY),2332,"1 BUNGALOW, WHARF RD - 20/07/23-02/08/23",13/02/2024 00:00,281105,103.93,OC0132,OCTOPUS ENERGY,29/01/2024 00:00,25/02/2024 00:00,P11-2024
CEO,RESIDENTIAL ACCOMMODATION,PREMISES RELATED EXPENDITURE,ENERGY COSTS (ELECTRICITY),2332,"1 BUNGALOW, WHARF RD - 03/08/23-16/08/23",13/02/2024 00:00,281106,100.96,OC0132,OCTOPUS ENERGY,29/01/2024 00:00,25/02/2024 00:00,P11-2024
CEO,RESIDENTIAL ACCOMMODATION,PREMISES RELATED EXPENDITURE,ENERGY COSTS (ELECTRICITY),2332,"1 BUNGALOW, WHARF RD - 17/08/23-30/08/23",13/02/2024 00:00,281107,102.4,OC0132,OCTOPUS ENERGY,29/01/2024 00:00,25/02/2024 00:00,P11-2024
CEO,RESIDENTIAL ACCOMMODATION,PREMISES RELATED EXPENDITURE,ENERGY COSTS (ELECTRICITY),2332,"1 BUNGALOW, WHARF RD - 31/08/23-13/09/23",13/02/2024 00:00,281108,97.12,OC0132,OCTOPUS ENERGY,29/01/2024 00:00,25/02/2024 00:00,P11-2024
CEO,RESIDENTIAL ACCOMMODATION,PREMISES RELATED EXPENDITURE,ENERGY COSTS (ELECTRICITY),2332,"1 BUNGALOW, WHARF RD - 14/09/23-13/10/23",13/02/2024 00:00,281109,218.67,OC0132,OCTOPUS ENERGY,29/01/2024 00:00,25/02/2024 00:00,P11-2024
CEO,RESIDENTIAL ACCOMMODATION,PREMISES RELATED EXPENDITURE,ENERGY COSTS (ELECTRICITY),2332,"1 BUNGALOW, WHARF RD - 14/10/23-13/11/23",13/02/2024 00:00,281110,203.51,OC0132,OCTOPUS ENERGY,29/01/2024 00:00,25/02/2024 00:00,P11-2024
CEO,RESIDENTIAL ACCOMMODATION,PREMISES RELATED EXPENDITURE,ENERGY COSTS (ELECTRICITY),2332,"1 BUNGALOW, WHARF RD - 14/11/23-13/12/23",13/02/2024 00:00,281111,331.26,OC0132,OCTOPUS ENERGY,29/01/2024 00:00,25/02/2024 00:00,P11-2024
CEO,RESIDENTIAL ACCOMMODATION,PREMISES RELATED EXPENDITURE,ENERGY COSTS (ELECTRICITY),2332,"1 BUNGALOW, WHARF RD - 14/12/23-13/01/24",13/02/2024 00:00,281563,329.92,OC0132,OCTOPUS ENERGY,29/01/2024 00:00,25/02/2024 00:00,P11-2024
CEO,RESIDENTIAL ACCOMMODATION,PREMISES RELATED EXPENDITURE,ENERGY COSTS (ELECTRICITY),2332,17/06/21-24/01/24,13/02/2024 00:00,282188,2407.24,EO0420,E-ON NEXT ENERGY LTD,29/01/2024 00:00,25/02/2024 00:00,P11-2024
CEO,RESIDENTIAL ACCOMMODATION,PREMISES RELATED EXPENDITURE,ENERGY COSTS (ELECTRICITY),2332,17/06/21-24/01/24,13/02/2024 00:00,282188,40,EO0420,E-ON NEXT ENERGY LTD,29/01/2024 00:00,25/02/2024 00:00,P11-2024
CEO,RESIDENTIAL ACCOMMODATION,PREMISES RELATED EXPENDITURE,ENERGY COSTS (ELECTRICITY),2332,14/09/21-03/01/24,13/02/2024 00:00,282189,-2293.53,EO0420,E-ON NEXT ENERGY LTD,29/01/2024 00:00,25/02/2024 00:00,P11-2024
CEO,RESIDENTIAL ACCOMMODATION,PREMISES RELATED EXPENDITURE,ENERGY COSTS (ELECTRICITY),2332,GATE LODGE-GAS/ELECTRIC-25/01/24-31/01/2,13/02/2024 00:00,282272,110.56,EO0422,E-ON NEXT ENERGY LTD,29/01/2024 00:00,25/02/2024 00:00,P11-2024
CEO,RESIDENTIAL ACCOMMODATION,PREMISES RELATED EXPENDITURE,ENERGY COSTS (ELECTRICITY),2332,Jan-24,13/02/2024 00:00,282376,31.18,EO0419,E-ON NEXT ENERGY LTD,29/01/2024 00:00,25/02/2024 00:00,P11-2024
CEO,RESIDENTIAL ACCOMMODATION,PREMISES RELATED EXPENDITURE,ENERGY COSTS (ELECTRICITY),2332,GATE LODGE-GAS/ELECTRIC-25/01/24-31/01/2,13/02/2024 00:00,282396,-110.56,EO0422,E-ON NEXT ENERGY LTD,29/01/2024 00:00,25/02/2024 00:00,P11-2024
CEO,RESIDENTIAL ACCOMMODATION,PREMISES RELATED EXPENDITURE,ENERGY COSTS (ELECTRICITY),2332,FINAL BILL,13/02/2024 00:00,282397,77.58,EO0422,E-ON NEXT ENERGY LTD,29/01/2024 00:00,25/02/2024 00:00,P11-2024
CEO,RESIDENTIAL ACCOMMODATION,PREMISES RELATED EXPENDITURE,ENERGY COSTS (ELECTRICITY),2332,HM GOV. ENERGY DISCOUNT,13/02/2024 00:00,282399,-67,OC0132,OCTOPUS ENERGY,29/01/2024 00:00,25/02/2024 00:00,P11-2024
CEO,RESIDENTIAL ACCOMMODATION,PREMISES RELATED EXPENDITURE,ENERGY COSTS (ELECTRICITY),2332,HM GOV. ENERGY DISCOUNT,13/02/2024 00:00,282400,-67,OC0132,OCTOPUS ENERGY,29/01/2024 00:00,25/02/2024 00:00,P11-2024
CEO,RESIDENTIAL ACCOMMODATION,PREMISES RELATED EXPENDITURE,ENERGY COSTS (ELECTRICITY),2332,"1 BUNGALOW, WHARF RD - 11/01/23-22/01/24",13/02/2024 00:00,282401,1573.33,OC0132,OCTOPUS ENERGY,29/01/2024 00:00,25/02/2024 00:00,P11-2024
CEO,RESIDENTIAL ACCOMMODATION,PREMISES RELATED EXPENDITURE,ENERGY COSTS (ELECTRICITY),2332,"1 BUNGALOW, WHARF RD - 11/01/23-11/01/24",13/02/2024 00:00,282402,-3580.28,OC0132,OCTOPUS ENERGY,29/01/2024 00:00,25/02/2024 00:00,P11-2024
CEO,RESIDENTIAL ACCOMMODATION,PREMISES RELATED EXPENDITURE,ENERGY COSTS (ELECTRICITY),2332,12/01/24-11/02/24-ELECTRICITY,13/02/2024 00:00,282458,15.81,EO0418,E-ON NEXT ENERGY LTD,29/01/2024 00:00,25/02/2024 00:00,P11-2024
,LEE VALLEY MARINA SPRINGFIELD,PREMISES RELATED EXPENDITURE,ENERGY COSTS (ELECTRICITY),2332,PRINGFIELD-ELECTRIC-JAN24,20/02/2024 00:00,282522,7011.39,KE0007,KENT COUNTY COUNCIL (KCS),29/01/2024 00:00,25/02/2024 00:00,P11-2024
,LEE VALLEY WATERWORKS CENTRE,PREMISES RELATED EXPENDITURE,ENERGY COSTS (ELECTRICITY),2332,WATERWORKS-ELECTRIC-JAN 24,25/02/2024 00:00,282693,1450.33,NP0123,NPOWER LIMITED,29/01/2024 00:00,25/02/2024 00:00,P11-2024
P&V,LEE VALLEY FARM HOLYFIELDHALL,PREMISES RELATED EXPENDITURE,ENERGY COSTS (ELECTRICITY),2332,HOLYFIELD-ELECTRIC-JAN 24,20/02/2024 00:00,282527,39.58,KE0007,KENT COUNTY COUNCIL (KCS),29/01/2024 00:00,25/02/2024 00:00,P11-2024
,LEE VALLEY CAMPSITE,PREMISES RELATED EXPENDITURE,ENERGY COSTS (ELECTRICITY),2332,SEWRDSTONE-ELECTRIC-JAN 24,20/02/2024 00:00,282519,5561.55,KE0007,KENT COUNTY COUNCIL (KCS),29/01/2024 00:00,25/02/2024 00:00,P11-2024
,LEE VALLEY CAMPSITE,PREMISES RELATED EXPENDITURE,ENERGY COSTS (ELECTRICITY),2332,SEWARDSTONE-ELECTRIC-JAN24,20/02/2024 00:00,282524,4976.37,KE0007,KENT COUNTY COUNCIL (KCS),29/01/2024 00:00,25/02/2024 00:00,P11-2024
,LEE VALLEY CARAVAN PARK,PREMISES RELATED EXPENDITURE,ENERGY COSTS (ELECTRICITY),2332,DW- ELECTRIC - JAN 24,25/02/2024 00:00,282526,18222.47,KE0007,KENT COUNTY COUNCIL (KCS),29/01/2024 00:00,25/02/2024 00:00,P11-2024
P&V,GUNPOWDER PARK,PREMISES RELATED EXPENDITURE,ENERGY COSTS (ELECTRICITY),2332,Gunpowder-Containment Cel -Sept23-Nov23,20/02/2024 00:00,280792,146.39,KE0007,KENT COUNTY COUNCIL (KCS),29/01/2024 00:00,25/02/2024 00:00,P11-2024
P&V,GUNPOWDER PARK,PREMISES RELATED EXPENDITURE,ENERGY COSTS (ELECTRICITY),2332,FIELD STATION-ELECTRIC-JAN 24,20/02/2024 00:00,282523,765.46,KE0007,KENT COUNTY COUNCIL (KCS),29/01/2024 00:00,25/02/2024 00:00,P11-2024
P&V,QUEEN ELIZABETH OLYMPIC PARK,PREMISES RELATED EXPENDITURE,ENERGY COSTS (ELECTRICITY),2332,VELO-FEEDER PILLAR- L05 FPI-JAN24,20/02/2024 00:00,282520,1.02,KE0007,KENT COUNTY COUNCIL (KCS),29/01/2024 00:00,25/02/2024 00:00,P11-2024
P&V,QUEEN ELIZABETH OLYMPIC PARK,PREMISES RELATED EXPENDITURE,ENERGY COSTS (ELECTRICITY),2332,VELO-FEEDER PILLAR- L05 FPI-JAN24,20/02/2024 00:00,282520,157.65,KE0007,KENT COUNTY COUNCIL (KCS),29/01/2024 00:00,25/02/2024 00:00,P11-2024
P&V,QUEEN ELIZABETH OLYMPIC PARK,PREMISES RELATED EXPENDITURE,ENERGY COSTS (ELECTRICITY),2332,VELO-FEEDER PILLAR-E13 U05-JAN24,20/02/2024 00:00,282521,339.18,KE0007,KENT COUNTY COUNCIL (KCS),29/01/2024 00:00,25/02/2024 00:00,P11-2024
P&V,CAR PARK INCOME,PREMISES RELATED EXPENDITURE,ENERGY COSTS (ELECTRICITY),2332,CORNMILL MEAD- ELECTRIC-JAN 24,21/02/2024 00:00,282691,62.97,NP0123,NPOWER LIMITED,29/01/2024 00:00,25/02/2024 00:00,P11-2024
P&V,CAR PARK INCOME,PREMISES RELATED EXPENDITURE,ENERGY COSTS (ELECTRICITY),2332,CLAYTON HILL-ELECTRIC-JAN24,21/02/2024 00:00,282692,44.6,NP0123,NPOWER LIMITED,29/01/2024 00:00,25/02/2024 00:00,P11-2024
P&V,FORMER LV LIDO SITE,PREMISES RELATED EXPENDITURE,ENERGY COSTS (ELECTRICITY),2332,LV Leisure Pool-June23,20/02/2024 00:00,276161,142.59,KE0007,KENT COUNTY COUNCIL (KCS),29/01/2024 00:00,25/02/2024 00:00,P11-2024
P&V,FORMER LV LIDO SITE,PREMISES RELATED EXPENDITURE,ENERGY COSTS (ELECTRICITY),2332,LEISURE POOL-SEE REF 276161,20/02/2024 00:00,282528,-142.59,KE0007,KENT COUNTY COUNCIL (KCS),29/01/2024 00:00,25/02/2024 00:00,P11-2024
,LV LEISURE CENTRE CAMPSITE,PREMISES RELATED EXPENDITURE,ENERGY COSTS (ELECTRICITY),2332,EMD-ELECTRIC-JAN 2024,25/02/2024 00:00,282690,13815.58,NP0123,NPOWER LIMITED,29/01/2024 00:00,25/02/2024 00:00,P11-2024
,LEE VALLEY MARINA SPRINGFIELD,PREMISES RELATED EXPENDITURE,ENERGY COSTS (GAS),2333,GAS SUPPLY JANUARY 2024,20/02/2024 00:00,282636,2335.73,KE0007,KENT COUNTY COUNCIL (KCS),29/01/2024 00:00,25/02/2024 00:00,P11-2024
,LEE VALLEY MARINA STANSTEAD,PREMISES RELATED EXPENDITURE,ENERGY COSTS (GAS),2333,GAS SUPPLY JANUARY 2024,20/02/2024 00:00,282634,200.97,KE0007,KENT COUNTY COUNCIL (KCS),29/01/2024 00:00,25/02/2024 00:00,P11-2024
,LEE VALLEY MARINA STANSTEAD,PREMISES RELATED EXPENDITURE,ENERGY COSTS (GAS),2333,GAS SUPPLY JANUARY 2024,20/02/2024 00:00,282637,1671.63,KE0007,KENT COUNTY COUNCIL (KCS),29/01/2024 00:00,25/02/2024 00:00,P11-2024
,LEE VALLEY WATERWORKS CENTRE,PREMISES RELATED EXPENDITURE,ENERGY COSTS (GAS),2333,refer to comp 278659-3108-300923,25/02/2024 00:00,282737,-657.97,KE0007,KENT COUNTY COUNCIL (KCS),29/01/2024 00:00,25/02/2024 00:00,P11-2024
,LEE VALLEY WATERWORKS CENTRE,PREMISES RELATED EXPENDITURE,ENERGY COSTS (GAS),2333,WATERWORKS-GAS=310823-300923,25/02/2024 00:00,282738,657.97,KE0007,KENT COUNTY COUNCIL (KCS),29/01/2024 00:00,25/02/2024 00:00,P11-2024
,LEE VALLEY WATERWORKS CENTRE,PREMISES RELATED EXPENDITURE,ENERGY COSTS (GAS),2333,REFER TO COMP 279752-3009-311023,25/02/2024 00:00,282746,-753.36,KE0007,KENT COUNTY COUNCIL (KCS),29/01/2024 00:00,25/02/2024 00:00,P11-2024
,LEE VALLEY WATERWORKS CENTRE,PREMISES RELATED EXPENDITURE,ENERGY COSTS (GAS),2333,WATERWORKS-GAS-300923-311023,25/02/2024 00:00,282747,238.41,KE0007,KENT COUNTY COUNCIL (KCS),29/01/2024 00:00,25/02/2024 00:00,P11-2024
,LEE VALLEY WATERWORKS CENTRE,PREMISES RELATED EXPENDITURE,ENERGY COSTS (GAS),2333,REFER TO COMP 280812-3110-311123,25/02/2024 00:00,282748,-985.92,KE0007,KENT COUNTY COUNCIL (KCS),29/01/2024 00:00,25/02/2024 00:00,P11-2024
,LEE VALLEY WATERWORKS CENTRE,PREMISES RELATED EXPENDITURE,ENERGY COSTS (GAS),2333,WATERWORKS-3110-301123,25/02/2024 00:00,282749,231.16,KE0007,KENT COUNTY COUNCIL (KCS),29/01/2024 00:00,25/02/2024 00:00,P11-2024
,LEE VALLEY WATERWORKS CENTRE,PREMISES RELATED EXPENDITURE,ENERGY COSTS (GAS),2333,REFER TO COMP-281644-3011-311223,25/02/2024 00:00,282750,-1056.08,KE0007,KENT COUNTY COUNCIL (KCS),29/01/2024 00:00,25/02/2024 00:00,P11-2024
,LEE VALLEY WATERWORKS CENTRE,PREMISES RELATED EXPENDITURE,ENERGY COSTS (GAS),2333,WATERWORKS-3011-3111223,25/02/2024 00:00,282751,237.81,KE0007,KENT COUNTY COUNCIL (KCS),29/01/2024 00:00,25/02/2024 00:00,P11-2024
,LEE VALLEY WATERWORKS CENTRE,PREMISES RELATED EXPENDITURE,ENERGY COSTS (GAS),2333,WATERWORKS-GAS-311223-310124,25/02/2024 00:00,282752,630.54,KE0007,KENT COUNTY COUNCIL (KCS),29/01/2024 00:00,25/02/2024 00:00,P11-2024
,LEE VALLEY CAMPSITE,PREMISES RELATED EXPENDITURE,ENERGY COSTS (GAS),2333,GAS SUPPLY JANUARY 2024,20/02/2024 00:00,282635,1516.74,KE0007,KENT COUNTY COUNCIL (KCS),29/01/2024 00:00,25/02/2024 00:00,P11-2024
,LEE VALLEY CAMPSITE,PREMISES RELATED EXPENDITURE,ENERGY COSTS (GAS),2333,GAS SUPPLY 15/01/24-15/02/24,20/02/2024 00:00,282660,10.55,BR0654,BRITISH GAS ENERGY,29/01/2024 00:00,25/02/2024 00:00,P11-2024
,LEE VALLEY CARAVAN PARK,PREMISES RELATED EXPENDITURE,ENERGY COSTS (GAS),2333,P124864-SERVICE-Gas delivery,06/02/2024 00:00,282151,94,AV0327,AVANTI GAS LIMITED,29/01/2024 00:00,25/02/2024 00:00,P11-2024
,LEE VALLEY CARAVAN PARK,PREMISES RELATED EXPENDITURE,ENERGY COSTS (GAS),2333,P124975-SERVICE-Gas delivery,14/02/2024 00:00,282385,6367.61,AV0327,AVANTI GAS LIMITED,29/01/2024 00:00,25/02/2024 00:00,P11-2024
,LEE VALLEY CARAVAN PARK,PREMISES RELATED EXPENDITURE,ENERGY COSTS (GAS),2333,P124976-SERVICE-Gas delivery,14/02/2024 00:00,282386,345.07,AV0327,AVANTI GAS LIMITED,29/01/2024 00:00,25/02/2024 00:00,P11-2024
P&V,GUNPOWDER PARK,PREMISES RELATED EXPENDITURE,ENERGY COSTS (GAS),2333,GAS SUPPLY JANUARY 2024,20/02/2024 00:00,282632,91.71,KE0007,KENT COUNTY COUNCIL (KCS),29/01/2024 00:00,25/02/2024 00:00,P11-2024
,LV LEISURE CENTRE CAMPSITE,PREMISES RELATED EXPENDITURE,ENERGY COSTS (GAS),2333,GAS SUPPLY JANUARY 2024,20/02/2024 00:00,282633,4880.39,KE0007,KENT COUNTY COUNCIL (KCS),29/01/2024 00:00,25/02/2024 00:00,P11-2024
,LEE VALLEY MARINA STANSTEAD,PREMISES RELATED EXPENDITURE,RENT (EXTERNAL),2442,AGREEMENT-25-324=230624,20/02/2024 00:00,282514,13450,BR0036,CANAL & RIVER TRUST,29/01/2024 00:00,25/02/2024 00:00,P11-2024
CEO,RESIDENTIAL ACCOMMODATION,PREMISES RELATED EXPENDITURE,PROPERTY MANAGEMT/LETTING FEES,2447,P124827-SERVICE-2 Bungalow 6 Month Management Fee,06/02/2024 00:00,281914,945,WA0315,PAUL WALLACE ESTATE AGENTS,29/01/2024 00:00,25/02/2024 00:00,P11-2024
P&V,MYDDELTON HOUSE,PREMISES RELATED EXPENDITURE,WATER,2555,Md Hse-water Jan 2024,12/02/2024 00:00,282368,936.89,CA0625,CASTLE WATER LIMITED,29/01/2024 00:00,25/02/2024 00:00,P11-2024
,LEE VALLEY MARINA SPRINGFIELD,PREMISES RELATED EXPENDITURE,WATER,2555,01/01/24-31/01/24,06/02/2024 00:00,282186,2294.03,CA0625,CASTLE WATER LIMITED,29/01/2024 00:00,25/02/2024 00:00,P11-2024
,LEE VALLEY MARINA SPRINGFIELD,PREMISES RELATED EXPENDITURE,WATER,2555,01/01/24-31/01/24,06/02/2024 00:00,282186,1409.01,CA0625,CASTLE WATER LIMITED,29/01/2024 00:00,25/02/2024 00:00,P11-2024
,LEE VALLEY MARINA STANSTEAD,PREMISES RELATED EXPENDITURE,WATER,2555,Stanstead-water- Jan 2024,06/02/2024 00:00,282164,223.48,CA0625,CASTLE WATER LIMITED,29/01/2024 00:00,25/02/2024 00:00,P11-2024
,LEE VALLEY MARINA STANSTEAD,PREMISES RELATED EXPENDITURE,WATER,2555,Stanstead-water- Jan 2024,06/02/2024 00:00,282164,217.32,CA0625,CASTLE WATER LIMITED,29/01/2024 00:00,25/02/2024 00:00,P11-2024
,LEE VALLEY WATERWORKS CENTRE,PREMISES RELATED EXPENDITURE,WATER,2555,Waterworks-water - Jan 2024,07/02/2024 00:00,282206,72.89,CA0625,CASTLE WATER LIMITED,29/01/2024 00:00,25/02/2024 00:00,P11-2024
,LEE VALLEY WATERWORKS CENTRE,PREMISES RELATED EXPENDITURE,WATER,2555,WATERWORKS-ADJ-DEC 23,25/02/2024 00:00,282733,-2.92,CA0625,CASTLE WATER LIMITED,29/01/2024 00:00,25/02/2024 00:00,P11-2024
P&V,LEE VALLEY FARM HOLYFIELDHALL,PREMISES RELATED EXPENDITURE,WATER,2555,Jan-24,20/02/2024 00:00,282388,221.25,CA0625,CASTLE WATER LIMITED,29/01/2024 00:00,25/02/2024 00:00,P11-2024
,LEE VALLEY CAMPSITE,PREMISES RELATED EXPENDITURE,WATER,2555,Sewardstone-water-Jan 2024,07/02/2024 00:00,282165,2031.39,CA0625,CASTLE WATER LIMITED,29/01/2024 00:00,25/02/2024 00:00,P11-2024
,LEE VALLEY CAMPSITE,PREMISES RELATED EXPENDITURE,WATER,2555,SEWARDSTONE-ADJ-JAN24,25/02/2024 00:00,282734,-82.62,CA0625,CASTLE WATER LIMITED,29/01/2024 00:00,25/02/2024 00:00,P11-2024
,LEE VALLEY CARAVAN PARK,PREMISES RELATED EXPENDITURE,WATER,2555,DW-water-January 2024,06/02/2024 00:00,282163,1907.02,CA0625,CASTLE WATER LIMITED,29/01/2024 00:00,25/02/2024 00:00,P11-2024
,LEE VALLEY CARAVAN PARK,PREMISES RELATED EXPENDITURE,WATER,2555,DW-water-January 2024,06/02/2024 00:00,282163,3157.68,CA0625,CASTLE WATER LIMITED,29/01/2024 00:00,25/02/2024 00:00,P11-2024
,LEE VALLEY CARAVAN PARK,PREMISES RELATED EXPENDITURE,WATER,2555,DW-ADJUSTMENTS-JAN 24,25/02/2024 00:00,282735,-73.75,CA0625,CASTLE WATER LIMITED,29/01/2024 00:00,25/02/2024 00:00,P11-2024
,LEE VALLEY CARAVAN PARK,PREMISES RELATED EXPENDITURE,WATER,2555,DW-ADJUSTMENTS-JAN 24,25/02/2024 00:00,282735,-42.53,CA0625,CASTLE WATER LIMITED,29/01/2024 00:00,25/02/2024 00:00,P11-2024
P&V,RIVER LEE COUNTRY PARK,PREMISES RELATED EXPENDITURE,WATER,2555,Jan-24,12/02/2024 00:00,282387,70.64,CA0625,CASTLE WATER LIMITED,29/01/2024 00:00,25/02/2024 00:00,P11-2024
P&V,RIVER LEE COUNTRY PARK,PREMISES RELATED EXPENDITURE,WATER,2555,Jan-24,12/02/2024 00:00,282389,50.46,CA0625,CASTLE WATER LIMITED,29/01/2024 00:00,25/02/2024 00:00,P11-2024
P&V,RIVER LEE COUNTRY PARK,PREMISES RELATED EXPENDITURE,WATER,2555,NETHERFIELD-JAN 2024,25/02/2024 00:00,282890,66.14,CA0625,CASTLE WATER LIMITED,29/01/2024 00:00,25/02/2024 00:00,P11-2024
P&V,FORMER LV LIDO SITE,PREMISES RELATED EXPENDITURE,WATER,2555,Brox-water-Jan 2024,21/02/2024 00:00,282369,230.96,CA0625,CASTLE WATER LIMITED,29/01/2024 00:00,25/02/2024 00:00,P11-2024
P&V,FORMER LV LIDO SITE,PREMISES RELATED EXPENDITURE,WATER,2555,Brox-water-Jan 2024,21/02/2024 00:00,282369,327.31,CA0625,CASTLE WATER LIMITED,29/01/2024 00:00,25/02/2024 00:00,P11-2024
,LV LEISURE CENTRE CAMPSITE,PREMISES RELATED EXPENDITURE,WATER,2555,01/01/24-31/01/24,06/02/2024 00:00,282184,256.18,CA0625,CASTLE WATER LIMITED,29/01/2024 00:00,25/02/2024 00:00,P11-2024
,LV LEISURE CENTRE CAMPSITE,PREMISES RELATED EXPENDITURE,WATER,2555,01/01/24-31/01/24,06/02/2024 00:00,282184,492.94,CA0625,CASTLE WATER LIMITED,29/01/2024 00:00,25/02/2024 00:00,P11-2024
,LV LEISURE CENTRE CAMPSITE,PREMISES RELATED EXPENDITURE,WATER,2555,01/01/24-31/01/24,06/02/2024 00:00,282185,42.61,CA0625,CASTLE WATER LIMITED,29/01/2024 00:00,25/02/2024 00:00,P11-2024
,LV LEISURE CENTRE CAMPSITE,PREMISES RELATED EXPENDITURE,WATER,2555,01/01/24-31/01/24,06/02/2024 00:00,282185,36.94,CA0625,CASTLE WATER LIMITED,29/01/2024 00:00,25/02/2024 00:00,P11-2024
P&V,MYDDELTON HOUSE,PREMISES RELATED EXPENDITURE,CLEANING & DOMESTIC SUPPLIES,2666,P124012-SERVICE-amazon cleaning supplies,07/02/2024 00:00,281784,47.46,AM0406,AMAZON PAYMENTS UK LIMITED,29/01/2024 00:00,25/02/2024 00:00,P11-2024
P&V,MYDDELTON HOUSE,PREMISES RELATED EXPENDITURE,CLEANING & DOMESTIC SUPPLIES,2666,P124012-SERVICE-amazon cleaning supplies,07/02/2024 00:00,281904,11.65,AM0406,AMAZON PAYMENTS UK LIMITED,29/01/2024 00:00,25/02/2024 00:00,P11-2024
P&V,MYDDELTON HOUSE,PREMISES RELATED EXPENDITURE,CLEANING & DOMESTIC SUPPLIES,2666,P124012-SERVICE-amazon cleaning supplies,07/02/2024 00:00,281905,35.59,AM0406,AMAZON PAYMENTS UK LIMITED,29/01/2024 00:00,25/02/2024 00:00,P11-2024
P&V,MYDDELTON HOUSE,PREMISES RELATED EXPENDITURE,CLEANING & DOMESTIC SUPPLIES,2666,P124012-SERVICE-amazon cleaning supplies,07/02/2024 00:00,281906,7.99,AM0406,AMAZON PAYMENTS UK LIMITED,29/01/2024 00:00,25/02/2024 00:00,P11-2024
P&V,MYDDELTON HOUSE,PREMISES RELATED EXPENDITURE,CLEANING & DOMESTIC SUPPLIES,2666,P124012-SERVICE-amazon cleaning supplies,13/02/2024 00:00,282366,16.66,AM0406,AMAZON PAYMENTS UK LIMITED,29/01/2024 00:00,25/02/2024 00:00,P11-2024
P&V,MYDDELTON HOUSE,PREMISES RELATED EXPENDITURE,CLEANING & DOMESTIC SUPPLIES,2666,P124012-SERVICE-amazon cleaning supplies,25/02/2024 00:00,282726,2.91,AM0406,AMAZON PAYMENTS UK LIMITED,29/01/2024 00:00,25/02/2024 00:00,P11-2024
,LEE VALLEY MARINA SPRINGFIELD,PREMISES RELATED EXPENDITURE,CLEANING & DOMESTIC SUPPLIES,2666,P124634-SERVICE-Site cleaning December to March,07/02/2024 00:00,282228,1070.52,MA0015,MAYFAIR CLEANING COMPANY LIMITED,29/01/2024 00:00,25/02/2024 00:00,P11-2024
,LEE VALLEY MARINA SPRINGFIELD,PREMISES RELATED EXPENDITURE,CLEANING & DOMESTIC SUPPLIES,2666,P124869-SERVICE-To supply items as requested,14/02/2024 00:00,282405,310.91,HY0043,HYGIENE SYSTEMS LTD,29/01/2024 00:00,25/02/2024 00:00,P11-2024
,LEE VALLEY CAMPSITE,PREMISES RELATED EXPENDITURE,CLEANING & DOMESTIC SUPPLIES,2666,P124279-SERVICE-Site cleaning  materials,13/02/2024 00:00,281913,365.53,HY0043,HYGIENE SYSTEMS LTD,29/01/2024 00:00,25/02/2024 00:00,P11-2024
P&V,RIVER LEE COUNTRY PARK,PREMISES RELATED EXPENDITURE,CLEANING & DOMESTIC SUPPLIES,2666,P124825-SERVICE-1x Value Toilet Rolls Pk36 - 78285CP,20/02/2024 00:00,282647,15.77,TH0008,JKL SOLUTIONS LTD,29/01/2024 00:00,25/02/2024 00:00,P11-2024
,LV LEISURE CENTRE CAMPSITE,PREMISES RELATED EXPENDITURE,CLEANING & DOMESTIC SUPPLIES,2666,P124809-SERVICE-Litter picker and pens,06/02/2024 00:00,282026,38.86,HY0043,HYGIENE SYSTEMS LTD,29/01/2024 00:00,25/02/2024 00:00,P11-2024
,LV LEISURE CENTRE CAMPSITE,PREMISES RELATED EXPENDITURE,CLEANING & DOMESTIC SUPPLIES,2666,P124888-SERVICE-Cleaning supplies,20/02/2024 00:00,282467,412.83,HY0043,HYGIENE SYSTEMS LTD,29/01/2024 00:00,25/02/2024 00:00,P11-2024
CEO,COMMERCIAL ACCOMMODATION,TRANSPORT RELATED EXPENDITURE,TRANSPORT RUNNING EXPENSES,3333,P124826-SERVICE-LV Forge Gas,06/02/2024 00:00,281922,19.61,CA0006,CALOR GAS LIMITED,29/01/2024 00:00,25/02/2024 00:00,P11-2024
P&V,LEE VALLEY FARM HOLYFIELDHALL,TRANSPORT RELATED EXPENDITURE,TRANSPORT RUNNING EXPENSES,3333,P124501-SERVICE-Feeder Parts,13/02/2024 00:00,282378,1184.55,BO0292,R C BOREHAM & CO LTD,29/01/2024 00:00,25/02/2024 00:00,P11-2024
P&V,LEE VALLEY FARM HOLYFIELDHALL,TRANSPORT RELATED EXPENDITURE,TRANSPORT RUNNING EXPENSES,3333,P124931-SERVICE-Tyres,13/02/2024 00:00,282379,232,KB0006,CITY 1ST LTD (frmly KB TYRES LTD),29/01/2024 00:00,25/02/2024 00:00,P11-2024
P&V,LEE VALLEY FARM HOLYFIELDHALL,TRANSPORT RELATED EXPENDITURE,TRANSPORT RUNNING EXPENSES,3333,P122797-SERVICE-Tilly Testing (3 Trailers),25/02/2024 00:00,282427,150.3,TU0006,P TUCKWELL LTD,29/01/2024 00:00,25/02/2024 00:00,P11-2024
P&V,LEE VALLEY FARM HOLYFIELDHALL,TRANSPORT RELATED EXPENDITURE,TRANSPORT RUNNING EXPENSES,3333,P122797-SERVICE-Tilly Testing (3 Trailers),25/02/2024 00:00,282428,425.6,TU0006,P TUCKWELL LTD,29/01/2024 00:00,25/02/2024 00:00,P11-2024
P&V,LEE VALLEY FARM HOLYFIELDHALL,TRANSPORT RELATED EXPENDITURE,TRANSPORT RUNNING EXPENSES,3333,P122797-SERVICE-Tilly Testing (3 Trailers),25/02/2024 00:00,282429,150.3,TU0006,P TUCKWELL LTD,29/01/2024 00:00,25/02/2024 00:00,P11-2024
P&V,LEE VALLEY FARM HOLYFIELDHALL,TRANSPORT RELATED EXPENDITURE,TRANSPORT RUNNING EXPENSES,3333,P122797-SERVICE-Tilly Testing (3 Trailers),25/02/2024 00:00,282430,435.6,TU0006,P TUCKWELL LTD,29/01/2024 00:00,25/02/2024 00:00,P11-2024
P&V,LEE VALLEY FARM HOLYFIELDHALL,TRANSPORT RELATED EXPENDITURE,TRANSPORT RUNNING EXPENSES,3333,P122797-SERVICE-Tilly Testing (3 Trailers),25/02/2024 00:00,282431,425.6,TU0006,P TUCKWELL LTD,29/01/2024 00:00,25/02/2024 00:00,P11-2024
P&V,LEE VALLEY FARM HOLYFIELDHALL,TRANSPORT RELATED EXPENDITURE,TRANSPORT RUNNING EXPENSES,3333,P122797-SERVICE-Tilly Testing (3 Trailers),25/02/2024 00:00,282432,142.6,TU0006,P TUCKWELL LTD,29/01/2024 00:00,25/02/2024 00:00,P11-2024
P&V,LEE VALLEY FARM HOLYFIELDHALL,TRANSPORT RELATED EXPENDITURE,TRANSPORT RUNNING EXPENSES,3333,P125045-SERVICE-Welding Sundries,21/02/2024 00:00,282436,70.01,BO0015,BOC LTD,29/01/2024 00:00,25/02/2024 00:00,P11-2024
,LEE VALLEY CARAVAN PARK,TRANSPORT RELATED EXPENDITURE,TRANSPORT RUNNING EXPENSES,3333,P125043-SERVICE-Transport 125 DW,20/02/2024 00:00,282479,1400,SH0693,SH CARAVANS,29/01/2024 00:00,25/02/2024 00:00,P11-2024
P&V,FISHERIES MANAGEMENT,TRANSPORT RELATED EXPENDITURE,VEHICLE FUEL,3335,FUEL CARD- Jan 2024,06/02/2024 00:00,282153,4.98,AR0035,ALLSTAR BUSINESS SOLUTIONS LTD,29/01/2024 00:00,25/02/2024 00:00,P11-2024
P&V,FISHERIES MANAGEMENT,TRANSPORT RELATED EXPENDITURE,VEHICLE FUEL,3335,ALLSTAR BUSINESS SOLUTIONS LTD,09/02/2024 00:00,282382,-4.98,AR0035,ALLSTAR BUSINESS SOLUTIONS LTD,29/01/2024 00:00,25/02/2024 00:00,P11-2024
P&V,FISHERIES MANAGEMENT,TRANSPORT RELATED EXPENDITURE,VEHICLE FUEL,3335,ALLSTAR BUSINESS SOLUTIONS LTD,09/02/2024 00:00,282383,4.98,AR0035,ALLSTAR BUSINESS SOLUTIONS LTD,29/01/2024 00:00,25/02/2024 00:00,P11-2024
,LEE VALLEY MARINA STANSTEAD,TRANSPORT RELATED EXPENDITURE,VEHICLE FUEL,3335,FUEL CARD- Jan 2024,06/02/2024 00:00,282153,71.83,AR0035,ALLSTAR BUSINESS SOLUTIONS LTD,29/01/2024 00:00,25/02/2024 00:00,P11-2024
,LEE VALLEY MARINA STANSTEAD,TRANSPORT RELATED EXPENDITURE,VEHICLE FUEL,3335,FUEL CARD- Jan 2024,06/02/2024 00:00,282153,4.98,AR0035,ALLSTAR BUSINESS SOLUTIONS LTD,29/01/2024 00:00,25/02/2024 00:00,P11-2024
,LEE VALLEY MARINA STANSTEAD,TRANSPORT RELATED EXPENDITURE,VEHICLE FUEL,3335,ALLSTAR BUSINESS SOLUTIONS LTD,09/02/2024 00:00,282382,-4.98,AR0035,ALLSTAR BUSINESS SOLUTIONS LTD,29/01/2024 00:00,25/02/2024 00:00,P11-2024
,LEE VALLEY MARINA STANSTEAD,TRANSPORT RELATED EXPENDITURE,VEHICLE FUEL,3335,ALLSTAR BUSINESS SOLUTIONS LTD,09/02/2024 00:00,282382,-71.83,AR0035,ALLSTAR BUSINESS SOLUTIONS LTD,29/01/2024 00:00,25/02/2024 00:00,P11-2024
,LEE VALLEY MARINA STANSTEAD,TRANSPORT RELATED EXPENDITURE,VEHICLE FUEL,3335,ALLSTAR BUSINESS SOLUTIONS LTD,09/02/2024 00:00,282383,71.83,AR0035,ALLSTAR BUSINESS SOLUTIONS LTD,29/01/2024 00:00,25/02/2024 00:00,P11-2024
,LEE VALLEY MARINA STANSTEAD,TRANSPORT RELATED EXPENDITURE,VEHICLE FUEL,3335,ALLSTAR BUSINESS SOLUTIONS LTD,09/02/2024 00:00,282383,4.98,AR0035,ALLSTAR BUSINESS SOLUTIONS LTD,29/01/2024 00:00,25/02/2024 00:00,P11-2024
P&V,LEE VALLEY FARM HOLYFIELDHALL,TRANSPORT RELATED EXPENDITURE,VEHICLE FUEL,3335,FUEL CARD- Jan 2024,06/02/2024 00:00,282153,4.98,AR0035,ALLSTAR BUSINESS SOLUTIONS LTD,29/01/2024 00:00,25/02/2024 00:00,P11-2024
P&V,LEE VALLEY FARM HOLYFIELDHALL,TRANSPORT RELATED EXPENDITURE,VEHICLE FUEL,3335,FUEL CARD- Jan 2024,06/02/2024 00:00,282153,164.99,AR0035,ALLSTAR BUSINESS SOLUTIONS LTD,29/01/2024 00:00,25/02/2024 00:00,P11-2024
P&V,LEE VALLEY FARM HOLYFIELDHALL,TRANSPORT RELATED EXPENDITURE,VEHICLE FUEL,3335,ALLSTAR BUSINESS SOLUTIONS LTD,09/02/2024 00:00,282382,-164.99,AR0035,ALLSTAR BUSINESS SOLUTIONS LTD,29/01/2024 00:00,25/02/2024 00:00,P11-2024
P&V,LEE VALLEY FARM HOLYFIELDHALL,TRANSPORT RELATED EXPENDITURE,VEHICLE FUEL,3335,ALLSTAR BUSINESS SOLUTIONS LTD,09/02/2024 00:00,282382,-4.98,AR0035,ALLSTAR BUSINESS SOLUTIONS LTD,29/01/2024 00:00,25/02/2024 00:00,P11-2024
P&V,LEE VALLEY FARM HOLYFIELDHALL,TRANSPORT RELATED EXPENDITURE,VEHICLE FUEL,3335,ALLSTAR BUSINESS SOLUTIONS LTD,09/02/2024 00:00,282383,4.98,AR0035,ALLSTAR BUSINESS SOLUTIONS LTD,29/01/2024 00:00,25/02/2024 00:00,P11-2024
P&V,LEE VALLEY FARM HOLYFIELDHALL,TRANSPORT RELATED EXPENDITURE,VEHICLE FUEL,3335,ALLSTAR BUSINESS SOLUTIONS LTD,09/02/2024 00:00,282383,164.99,AR0035,ALLSTAR BUSINESS SOLUTIONS LTD,29/01/2024 00:00,25/02/2024 00:00,P11-2024
,LEE VALLEY CAMPSITE,TRANSPORT RELATED EXPENDITURE,VEHICLE FUEL,3335,FUEL CARD- Jan 2024,06/02/2024 00:00,282153,22.95,AR0035,ALLSTAR BUSINESS SOLUTIONS LTD,29/01/2024 00:00,25/02/2024 00:00,P11-2024
,LEE VALLEY CAMPSITE,TRANSPORT RELATED EXPENDITURE,VEHICLE FUEL,3335,FUEL CARD- Jan 2024,06/02/2024 00:00,282153,4.98,AR0035,ALLSTAR BUSINESS SOLUTIONS LTD,29/01/2024 00:00,25/02/2024 00:00,P11-2024
,LEE VALLEY CAMPSITE,TRANSPORT RELATED EXPENDITURE,VEHICLE FUEL,3335,ALLSTAR BUSINESS SOLUTIONS LTD,09/02/2024 00:00,282382,-22.95,AR0035,ALLSTAR BUSINESS SOLUTIONS LTD,29/01/2024 00:00,25/02/2024 00:00,P11-2024
,LEE VALLEY CAMPSITE,TRANSPORT RELATED EXPENDITURE,VEHICLE FUEL,3335,ALLSTAR BUSINESS SOLUTIONS LTD,09/02/2024 00:00,282382,-4.98,AR0035,ALLSTAR BUSINESS SOLUTIONS LTD,29/01/2024 00:00,25/02/2024 00:00,P11-2024
,LEE VALLEY CAMPSITE,TRANSPORT RELATED EXPENDITURE,VEHICLE FUEL,3335,ALLSTAR BUSINESS SOLUTIONS LTD,09/02/2024 00:00,282383,4.98,AR0035,ALLSTAR BUSINESS SOLUTIONS LTD,29/01/2024 00:00,25/02/2024 00:00,P11-2024
,LEE VALLEY CAMPSITE,TRANSPORT RELATED EXPENDITURE,VEHICLE FUEL,3335,ALLSTAR BUSINESS SOLUTIONS LTD,09/02/2024 00:00,282383,22.95,AR0035,ALLSTAR BUSINESS SOLUTIONS LTD,29/01/2024 00:00,25/02/2024 00:00,P11-2024
,LEE VALLEY CARAVAN PARK,TRANSPORT RELATED EXPENDITURE,VEHICLE FUEL,3335,FUEL CARD- Jan 2024,06/02/2024 00:00,282153,4.98,AR0035,ALLSTAR BUSINESS SOLUTIONS LTD,29/01/2024 00:00,25/02/2024 00:00,P11-2024
,LEE VALLEY CARAVAN PARK,TRANSPORT RELATED EXPENDITURE,VEHICLE FUEL,3335,FUEL CARD- Jan 2024,06/02/2024 00:00,282153,40.01,AR0035,ALLSTAR BUSINESS SOLUTIONS LTD,29/01/2024 00:00,25/02/2024 00:00,P11-2024
,LEE VALLEY CARAVAN PARK,TRANSPORT RELATED EXPENDITURE,VEHICLE FUEL,3335,ALLSTAR BUSINESS SOLUTIONS LTD,09/02/2024 00:00,282382,-4.98,AR0035,ALLSTAR BUSINESS SOLUTIONS LTD,29/01/2024 00:00,25/02/2024 00:00,P11-2024
,LEE VALLEY CARAVAN PARK,TRANSPORT RELATED EXPENDITURE,VEHICLE FUEL,3335,ALLSTAR BUSINESS SOLUTIONS LTD,09/02/2024 00:00,282382,-40.01,AR0035,ALLSTAR BUSINESS SOLUTIONS LTD,29/01/2024 00:00,25/02/2024 00:00,P11-2024
,LEE VALLEY CARAVAN PARK,TRANSPORT RELATED EXPENDITURE,VEHICLE FUEL,3335,ALLSTAR BUSINESS SOLUTIONS LTD,09/02/2024 00:00,282383,4.98,AR0035,ALLSTAR BUSINESS SOLUTIONS LTD,29/01/2024 00:00,25/02/2024 00:00,P11-2024
,LEE VALLEY CARAVAN PARK,TRANSPORT RELATED EXPENDITURE,VEHICLE FUEL,3335,ALLSTAR BUSINESS SOLUTIONS LTD,09/02/2024 00:00,282383,40.01,AR0035,ALLSTAR BUSINESS SOLUTIONS LTD,29/01/2024 00:00,25/02/2024 00:00,P11-2024
P&V,MYDDELTON HOUSE GARDENS,TRANSPORT RELATED EXPENDITURE,VEHICLE FUEL,3335,FUEL CARD- Jan 2024,06/02/2024 00:00,282153,2.49,AR0035,ALLSTAR BUSINESS SOLUTIONS LTD,29/01/2024 00:00,25/02/2024 00:00,P11-2024
P&V,MYDDELTON HOUSE GARDENS,TRANSPORT RELATED EXPENDITURE,VEHICLE FUEL,3335,ALLSTAR BUSINESS SOLUTIONS LTD,09/02/2024 00:00,282382,-2.49,AR0035,ALLSTAR BUSINESS SOLUTIONS LTD,29/01/2024 00:00,25/02/2024 00:00,P11-2024
P&V,MYDDELTON HOUSE GARDENS,TRANSPORT RELATED EXPENDITURE,VEHICLE FUEL,3335,ALLSTAR BUSINESS SOLUTIONS LTD,09/02/2024 00:00,282383,2.49,AR0035,ALLSTAR BUSINESS SOLUTIONS LTD,29/01/2024 00:00,25/02/2024 00:00,P11-2024
P&V,NORTH AREA RANGERS,TRANSPORT RELATED EXPENDITURE,VEHICLE FUEL,3335,FUEL CARD- Jan 2024,06/02/2024 00:00,282153,168.12,AR0035,ALLSTAR BUSINESS SOLUTIONS LTD,29/01/2024 00:00,25/02/2024 00:00,P11-2024
P&V,NORTH AREA RANGERS,TRANSPORT RELATED EXPENDITURE,VEHICLE FUEL,3335,FUEL CARD- Jan 2024,06/02/2024 00:00,282153,29.88,AR0035,ALLSTAR BUSINESS SOLUTIONS LTD,29/01/2024 00:00,25/02/2024 00:00,P11-2024
P&V,NORTH AREA RANGERS,TRANSPORT RELATED EXPENDITURE,VEHICLE FUEL,3335,ALLSTAR BUSINESS SOLUTIONS LTD,09/02/2024 00:00,282382,-29.88,AR0035,ALLSTAR BUSINESS SOLUTIONS LTD,29/01/2024 00:00,25/02/2024 00:00,P11-2024
P&V,NORTH AREA RANGERS,TRANSPORT RELATED EXPENDITURE,VEHICLE FUEL,3335,ALLSTAR BUSINESS SOLUTIONS LTD,09/02/2024 00:00,282382,-168.12,AR0035,ALLSTAR BUSINESS SOLUTIONS LTD,29/01/2024 00:00,25/02/2024 00:00,P11-2024
P&V,NORTH AREA RANGERS,TRANSPORT RELATED EXPENDITURE,VEHICLE FUEL,3335,ALLSTAR BUSINESS SOLUTIONS LTD,09/02/2024 00:00,282383,29.88,AR0035,ALLSTAR BUSINESS SOLUTIONS LTD,29/01/2024 00:00,25/02/2024 00:00,P11-2024
P&V,NORTH AREA RANGERS,TRANSPORT RELATED EXPENDITURE,VEHICLE FUEL,3335,ALLSTAR BUSINESS SOLUTIONS LTD,09/02/2024 00:00,282383,168.12,AR0035,ALLSTAR BUSINESS SOLUTIONS LTD,29/01/2024 00:00,25/02/2024 00:00,P11-2024
P&V,SOUTH AREA RANGERS,TRANSPORT RELATED EXPENDITURE,VEHICLE FUEL,3335,FUEL CARD- Jan 2024,06/02/2024 00:00,282153,12.45,AR0035,ALLSTAR BUSINESS SOLUTIONS LTD,29/01/2024 00:00,25/02/2024 00:00,P11-2024
P&V,SOUTH AREA RANGERS,TRANSPORT RELATED EXPENDITURE,VEHICLE FUEL,3335,FUEL CARD- Jan 2024,06/02/2024 00:00,282153,6,AR0035,ALLSTAR BUSINESS SOLUTIONS LTD,29/01/2024 00:00,25/02/2024 00:00,P11-2024
P&V,SOUTH AREA RANGERS,TRANSPORT RELATED EXPENDITURE,VEHICLE FUEL,3335,FUEL CARD- Jan 2024,06/02/2024 00:00,282153,484.04,AR0035,ALLSTAR BUSINESS SOLUTIONS LTD,29/01/2024 00:00,25/02/2024 00:00,P11-2024
P&V,SOUTH AREA RANGERS,TRANSPORT RELATED EXPENDITURE,VEHICLE FUEL,3335,ALLSTAR BUSINESS SOLUTIONS LTD,09/02/2024 00:00,282382,-484.04,AR0035,ALLSTAR BUSINESS SOLUTIONS LTD,29/01/2024 00:00,25/02/2024 00:00,P11-2024
P&V,SOUTH AREA RANGERS,TRANSPORT RELATED EXPENDITURE,VEHICLE FUEL,3335,ALLSTAR BUSINESS SOLUTIONS LTD,09/02/2024 00:00,282382,-12.45,AR0035,ALLSTAR BUSINESS SOLUTIONS LTD,29/01/2024 00:00,25/02/2024 00:00,P11-2024
P&V,SOUTH AREA RANGERS,TRANSPORT RELATED EXPENDITURE,VEHICLE FUEL,3335,ALLSTAR BUSINESS SOLUTIONS LTD,09/02/2024 00:00,282382,-6,AR0035,ALLSTAR BUSINESS SOLUTIONS LTD,29/01/2024 00:00,25/02/2024 00:00,P11-2024
P&V,SOUTH AREA RANGERS,TRANSPORT RELATED EXPENDITURE,VEHICLE FUEL,3335,ALLSTAR BUSINESS SOLUTIONS LTD,09/02/2024 00:00,282383,484.04,AR0035,ALLSTAR BUSINESS SOLUTIONS LTD,29/01/2024 00:00,25/02/2024 00:00,P11-2024
P&V,SOUTH AREA RANGERS,TRANSPORT RELATED EXPENDITURE,VEHICLE FUEL,3335,ALLSTAR BUSINESS SOLUTIONS LTD,09/02/2024 00:00,282383,6,AR0035,ALLSTAR BUSINESS SOLUTIONS LTD,29/01/2024 00:00,25/02/2024 00:00,P11-2024
P&V,SOUTH AREA RANGERS,TRANSPORT RELATED EXPENDITURE,VEHICLE FUEL,3335,ALLSTAR BUSINESS SOLUTIONS LTD,09/02/2024 00:00,282383,12.45,AR0035,ALLSTAR BUSINESS SOLUTIONS LTD,29/01/2024 00:00,25/02/2024 00:00,P11-2024
P&V,NORTH AREA RANGERS,TRANSPORT RELATED EXPENDITURE,VEHICLE REPAIRS & MAINTENANCE,3338,P123779-SERVICE-Service - GL16 WJZ,20/02/2024 00:00,282536,209.36,GA0165,GATES HARLOW,29/01/2024 00:00,25/02/2024 00:00,P11-2024
P&V,NORTH AREA RANGERS,TRANSPORT RELATED EXPENDITURE,VEHICLE REPAIRS & MAINTENANCE,3338,P123779-SERVICE-MOT - GL16 WJZ Ford Tipper Truck,20/02/2024 00:00,282536,54.85,GA0165,GATES HARLOW,29/01/2024 00:00,25/02/2024 00:00,P11-2024
P&V,NORTH AREA RANGERS,TRANSPORT RELATED EXPENDITURE,VEHICLE REPAIRS & MAINTENANCE,3338,P123779-SERVICE-Service - GL16 WJZ,20/02/2024 00:00,282536,389.76,GA0165,GATES HARLOW,29/01/2024 00:00,25/02/2024 00:00,P11-2024
P&V,SOUTH AREA RANGERS,TRANSPORT RELATED EXPENDITURE,VEHICLE REPAIRS & MAINTENANCE,3338,FUEL CARD- Jan 2024,06/02/2024 00:00,282152,166.76,AR0035,ALLSTAR BUSINESS SOLUTIONS LTD,29/01/2024 00:00,25/02/2024 00:00,P11-2024
P&V,RIVER LEE COUNTRY PARK,TRANSPORT RELATED EXPENDITURE,TRAVELLING EXPENSES,3344,PARKING,06/02/2024 00:00,282020,14.96,FI0001,DIRECTOR OF FINANCE - CASH,29/01/2024 00:00,25/02/2024 00:00,P11-2024
P&V,VOLUNTEERS (L&E),TRANSPORT RELATED EXPENDITURE,TRAVELLING EXPENSES,3344,TRAVEL EXPENSE-021223-270124,25/02/2024 00:00,282695,123.3,CH0762,MRS BRENDA CHANTER,29/01/2024 00:00,25/02/2024 00:00,P11-2024
P&V,VOLUNTEERS (L&E),TRANSPORT RELATED EXPENDITURE,TRAVELLING EXPENSES,3344,VOLUNTEER TRAVEL EXP-15/10-19/11/23,25/02/2024 00:00,282771,31.4,LI0485,BEN LISH,29/01/2024 00:00,25/02/2024 00:00,P11-2024
P&V,FISHERIES MANAGEMENT,SUPPLIES AND SERVICES,EQUIPMENT & MATERIALS,4111,P124862-SERVICE-2x Bulk Bags MOT Type 1,20/02/2024 00:00,282416,115.22,TR0031,TRAVIS PERKINS TRADING CO LTD,29/01/2024 00:00,25/02/2024 00:00,P11-2024
,LEE VALLEY MARINA SPRINGFIELD,SUPPLIES AND SERVICES,EQUIPMENT & MATERIALS,4111,P124927-SERVICE-Call out for leak on Diesel Nozzle new nozzel,20/02/2024 00:00,282490,320,FA0269,FAST FUEL SERVICES,29/01/2024 00:00,25/02/2024 00:00,P11-2024
,STANSTEAD RECHARGEABLE WORKS,SUPPLIES AND SERVICES,EQUIPMENT & MATERIALS,4111,P124840-SERVICE-blacking,13/02/2024 00:00,282243,456.06,MA0008,AXALTA COATING SYSTEMS HUTHWAITE UK LTD,29/01/2024 00:00,25/02/2024 00:00,P11-2024
,STANSTEAD RECHARGEABLE WORKS,SUPPLIES AND SERVICES,EQUIPMENT & MATERIALS,4111,P124840-SERVICE-blacking,20/02/2024 00:00,282372,1616.94,MA0008,AXALTA COATING SYSTEMS HUTHWAITE UK LTD,29/01/2024 00:00,25/02/2024 00:00,P11-2024
,LEE VALLEY CAMPSITE,SUPPLIES AND SERVICES,EQUIPMENT & MATERIALS,4111,P124731-SERVICE-Litter Picker,06/02/2024 00:00,281908,5.98,AM0406,AMAZON PAYMENTS UK LIMITED,29/01/2024 00:00,25/02/2024 00:00,P11-2024
,LEE VALLEY CAMPSITE,SUPPLIES AND SERVICES,EQUIPMENT & MATERIALS,4111,P124731-SERVICE-Large mop and handle,06/02/2024 00:00,281908,8.6,AM0406,AMAZON PAYMENTS UK LIMITED,29/01/2024 00:00,25/02/2024 00:00,P11-2024
,LEE VALLEY CAMPSITE,SUPPLIES AND SERVICES,EQUIPMENT & MATERIALS,4111,P124103-SERVICE-site materials and equipment,06/02/2024 00:00,281956,7.12,BQ0164,TRADE UK ACCOUNT,29/01/2024 00:00,25/02/2024 00:00,P11-2024
,LEE VALLEY CAMPSITE,SUPPLIES AND SERVICES,EQUIPMENT & MATERIALS,4111,P123909-SERVICE-Site  materials & Equipment,06/02/2024 00:00,281957,9.99,SC0057,SCREWFIX DIRECT LTD,29/01/2024 00:00,25/02/2024 00:00,P11-2024
,LEE VALLEY CAMPSITE,SUPPLIES AND SERVICES,EQUIPMENT & MATERIALS,4111,P124103-SERVICE-site materials and equipment,06/02/2024 00:00,282162,145.46,BQ0164,TRADE UK ACCOUNT,29/01/2024 00:00,25/02/2024 00:00,P11-2024
,LEE VALLEY CAMPSITE,SUPPLIES AND SERVICES,EQUIPMENT & MATERIALS,4111,P124957-SERVICE-Long handle Rake,20/02/2024 00:00,282449,18.32,AM0406,AMAZON PAYMENTS UK LIMITED,29/01/2024 00:00,25/02/2024 00:00,P11-2024
,LEE VALLEY CAMPSITE,SUPPLIES AND SERVICES,EQUIPMENT & MATERIALS,4111,P124957-SERVICE-6x Padded folding chairs for Cabins/Cocoons,20/02/2024 00:00,282450,63.33,AM0406,AMAZON PAYMENTS UK LIMITED,29/01/2024 00:00,25/02/2024 00:00,P11-2024
,LEE VALLEY CAMPSITE,SUPPLIES AND SERVICES,EQUIPMENT & MATERIALS,4111,P124957-SERVICE-Extendable tree loppers,20/02/2024 00:00,282454,16.66,AM0406,AMAZON PAYMENTS UK LIMITED,29/01/2024 00:00,25/02/2024 00:00,P11-2024
,LEE VALLEY CAMPSITE,SUPPLIES AND SERVICES,EQUIPMENT & MATERIALS,4111,P124958-SERVICE-2x Double bed frames for Cocoons,20/02/2024 00:00,282468,227.02,AM0406,AMAZON PAYMENTS UK LIMITED,29/01/2024 00:00,25/02/2024 00:00,P11-2024
,LEE VALLEY CAMPSITE,SUPPLIES AND SERVICES,EQUIPMENT & MATERIALS,4111,P124957-SERVICE-Grid/Paving Protectors x24,20/02/2024 00:00,282505,56.98,AM0406,AMAZON PAYMENTS UK LIMITED,29/01/2024 00:00,25/02/2024 00:00,P11-2024
,LEE VALLEY CAMPSITE,SUPPLIES AND SERVICES,EQUIPMENT & MATERIALS,4111,P124957-SERVICE-Telescopic Tree pruner,20/02/2024 00:00,282511,18.75,AM0406,AMAZON PAYMENTS UK LIMITED,29/01/2024 00:00,25/02/2024 00:00,P11-2024
,LEE VALLEY CAMPSITE,SUPPLIES AND SERVICES,EQUIPMENT & MATERIALS,4111,P124957-SERVICE-showe caddys x2   Ladies A Block,20/02/2024 00:00,282626,17.98,AM0406,AMAZON PAYMENTS UK LIMITED,29/01/2024 00:00,25/02/2024 00:00,P11-2024
,LEE VALLEY CARAVAN PARK,SUPPLIES AND SERVICES,EQUIPMENT & MATERIALS,4111,P124691-SERVICE-Grates for various ground works - Amelia,06/02/2024 00:00,281980,87.48,LE0012,LEASIDE TIMBER & BUILDERS MERCHANTS LTD,29/01/2024 00:00,25/02/2024 00:00,P11-2024
,LEE VALLEY CARAVAN PARK,SUPPLIES AND SERVICES,EQUIPMENT & MATERIALS,4111,P124900-SERVICE-Emergency lighting,13/02/2024 00:00,282362,24.17,AM0406,AMAZON PAYMENTS UK LIMITED,29/01/2024 00:00,25/02/2024 00:00,P11-2024
,LEE VALLEY CARAVAN PARK,SUPPLIES AND SERVICES,EQUIPMENT & MATERIALS,4111,P124900-SERVICE-Emergency lighting,13/02/2024 00:00,282363,10.82,AM0406,AMAZON PAYMENTS UK LIMITED,29/01/2024 00:00,25/02/2024 00:00,P11-2024
,LEE VALLEY CARAVAN PARK,SUPPLIES AND SERVICES,EQUIPMENT & MATERIALS,4111,P124900-SERVICE-Emergency lighting,13/02/2024 00:00,282365,102.78,AM0406,AMAZON PAYMENTS UK LIMITED,29/01/2024 00:00,25/02/2024 00:00,P11-2024
,LEE VALLEY CARAVAN PARK,SUPPLIES AND SERVICES,EQUIPMENT & MATERIALS,4111,P124900-SERVICE-Emergency lighting,14/02/2024 00:00,282407,54.96,AM0406,AMAZON PAYMENTS UK LIMITED,29/01/2024 00:00,25/02/2024 00:00,P11-2024
,LEE VALLEY CARAVAN PARK,SUPPLIES AND SERVICES,EQUIPMENT & MATERIALS,4111,P125067-SERVICE-Garden gate ring latch,25/02/2024 00:00,282670,17.08,SC0057,SCREWFIX DIRECT LTD,29/01/2024 00:00,25/02/2024 00:00,P11-2024
,LEE VALLEY CARAVAN PARK,SUPPLIES AND SERVICES,EQUIPMENT & MATERIALS,4111,P124900-SERVICE-Emergency lighting,25/02/2024 00:00,282673,61.96,AM0406,AMAZON PAYMENTS UK LIMITED,29/01/2024 00:00,25/02/2024 00:00,P11-2024
,LEE VALLEY CARAVAN PARK,SUPPLIES AND SERVICES,EQUIPMENT & MATERIALS,4111,P125070-SERVICE-Paint and brushes,25/02/2024 00:00,282717,199.56,SC0057,SCREWFIX DIRECT LTD,29/01/2024 00:00,25/02/2024 00:00,P11-2024
P&V,MYDDELTON HOUSE GARDENS,SUPPLIES AND SERVICES,EQUIPMENT & MATERIALS,4111,P124813-SERVICE-new lockers gardeners,07/02/2024 00:00,282205,166.1,BI0638,BIGDUG LTD,29/01/2024 00:00,25/02/2024 00:00,P11-2024
P&V,MYDDELTON HOUSE GARDENS,SUPPLIES AND SERVICES,EQUIPMENT & MATERIALS,4111,Md Gardens-VAT only,13/02/2024 00:00,282403,0,BI0638,BIGDUG LTD,29/01/2024 00:00,25/02/2024 00:00,P11-2024
P&V,NORTH AREA RANGERS,SUPPLIES AND SERVICES,EQUIPMENT & MATERIALS,4111,"P124624-SERVICE-15x Safety Glasses, Clear Lens",21/02/2024 00:00,282678,52.5,SA0449,THE SAFETY SUPPLY COMPANY,29/01/2024 00:00,25/02/2024 00:00,P11-2024
P&V,NORTH AREA RANGERS,SUPPLIES AND SERVICES,EQUIPMENT & MATERIALS,4111,P124624-SERVICE-1x Foam Disposable Ear Plugs - Pk 200,21/02/2024 00:00,282678,17.45,SA0449,THE SAFETY SUPPLY COMPANY,29/01/2024 00:00,25/02/2024 00:00,P11-2024
P&V,NORTH AREA RANGERS,SUPPLIES AND SERVICES,EQUIPMENT & MATERIALS,4111,P124624-SERVICE-Delivery,21/02/2024 00:00,282678,3.25,SA0449,THE SAFETY SUPPLY COMPANY,29/01/2024 00:00,25/02/2024 00:00,P11-2024
P&V,SOUTH AREA RANGERS,SUPPLIES AND SERVICES,EQUIPMENT & MATERIALS,4111,P123590-SERVICE-2x Faithfull Scythe Stone - Round 305mm,06/02/2024 00:00,281757,12.5,PO0478,POWER TOOLS DIRECT ONLINE LTD,29/01/2024 00:00,25/02/2024 00:00,P11-2024
P&V,SOUTH AREA RANGERS,SUPPLIES AND SERVICES,EQUIPMENT & MATERIALS,4111,P123590-SERVICE-2 x Sealey SCSS2 Combination Sharpening Stone,06/02/2024 00:00,281757,11.12,PO0478,POWER TOOLS DIRECT ONLINE LTD,29/01/2024 00:00,25/02/2024 00:00,P11-2024
P&V,SOUTH AREA RANGERS,SUPPLIES AND SERVICES,EQUIPMENT & MATERIALS,4111,P123590-SERVICE-Increase in costs,06/02/2024 00:00,281757,6.62,PO0478,POWER TOOLS DIRECT ONLINE LTD,29/01/2024 00:00,25/02/2024 00:00,P11-2024
P&V,SOUTH AREA RANGERS,SUPPLIES AND SERVICES,EQUIPMENT & MATERIALS,4111,P123590-SERVICE-3 x Hyundai JCB Professional Manure  4 Prong,06/02/2024 00:00,281757,72.69,PO0478,POWER TOOLS DIRECT ONLINE LTD,29/01/2024 00:00,25/02/2024 00:00,P11-2024
P&V,SOUTH AREA RANGERS,SUPPLIES AND SERVICES,EQUIPMENT & MATERIALS,4111,P124579-SERVICE-4x Chainsaw Chains - 36900000067,06/02/2024 00:00,282105,112.16,AP0245,APS LIMITED,29/01/2024 00:00,25/02/2024 00:00,P11-2024
P&V,SOUTH AREA RANGERS,SUPPLIES AND SERVICES,EQUIPMENT & MATERIALS,4111,P124788-SERVICE-10x Compactor Black Sacks - 746653,06/02/2024 00:00,282131,365.8,GR0020,GREENHAM TRADING LIMITED,29/01/2024 00:00,25/02/2024 00:00,P11-2024
P&V,WILDLIFE DISCOVERY CENTRE,SUPPLIES AND SERVICES,EQUIPMENT & MATERIALS,4111,P124770-SERVICE-1x Post-it Note Cube 76x75mm Yellow - 3M23162,06/02/2024 00:00,281999,5.43,TH0008,JKL SOLUTIONS LTD,29/01/2024 00:00,25/02/2024 00:00,P11-2024
P&V,RIVER LEE COUNTRY PARK,SUPPLIES AND SERVICES,EQUIPMENT & MATERIALS,4111,P124915-SERVICE-Blue Poly Rope - 6mm x 220m,13/02/2024 00:00,282112,38.45,JE0011,SAINT-GOBAIN BUILDING DISTRIBUTION,29/01/2024 00:00,25/02/2024 00:00,P11-2024
P&V,RIVER LEE COUNTRY PARK,SUPPLIES AND SERVICES,EQUIPMENT & MATERIALS,4111,P121655-SERVICE-Materials & Equipment as required,07/02/2024 00:00,282114,33.91,JE0011,SAINT-GOBAIN BUILDING DISTRIBUTION,29/01/2024 00:00,25/02/2024 00:00,P11-2024
P&V,RIVER LEE COUNTRY PARK,SUPPLIES AND SERVICES,EQUIPMENT & MATERIALS,4111,P121655-SERVICE-Materials & Equipment as required,20/02/2024 00:00,282641,8.82,JE0011,SAINT-GOBAIN BUILDING DISTRIBUTION,29/01/2024 00:00,25/02/2024 00:00,P11-2024
P&V,RIVER LEE COUNTRY PARK,SUPPLIES AND SERVICES,EQUIPMENT & MATERIALS,4111,P124835-SERVICE-Delivery,25/02/2024 00:00,282715,6.5,LS0469,L & S ENGINEERS LTD,29/01/2024 00:00,25/02/2024 00:00,P11-2024
P&V,RIVER LEE COUNTRY PARK,SUPPLIES AND SERVICES,EQUIPMENT & MATERIALS,4111,P124835-SERVICE-3x File angle plate - 0000 750 9900,25/02/2024 00:00,282715,17.1,LS0469,L & S ENGINEERS LTD,29/01/2024 00:00,25/02/2024 00:00,P11-2024
P&V,RIVER LEE COUNTRY PARK,SUPPLIES AND SERVICES,EQUIPMENT & MATERIALS,4111,P124835-SERVICE-2x Stihl Synthplus Chainsaw Chain Oil 5L - 35,25/02/2024 00:00,282715,41.6,LS0469,L & S ENGINEERS LTD,29/01/2024 00:00,25/02/2024 00:00,P11-2024
P&V,RIVER LEE COUNTRY PARK,SUPPLIES AND SERVICES,EQUIPMENT & MATERIALS,4111,P124835-SERVICE-10x Sprocket Cover Nut M8 for Stihl Chainsaws,25/02/2024 00:00,282715,15.8,LS0469,L & S ENGINEERS LTD,29/01/2024 00:00,25/02/2024 00:00,P11-2024
,LV LEISURE CENTRE CAMPSITE,SUPPLIES AND SERVICES,EQUIPMENT & MATERIALS,4111,"P125073-SERVICE-Tape, masonry brush, solvent",25/02/2024 00:00,282487,40.61,SC0057,SCREWFIX DIRECT LTD,29/01/2024 00:00,25/02/2024 00:00,P11-2024
,LV LEISURE CENTRE CAMPSITE,SUPPLIES AND SERVICES,EQUIPMENT & MATERIALS,4111,"P125074-SERVICE-Grout, dust sheet, decorating set",25/02/2024 00:00,282488,31.23,SC0057,SCREWFIX DIRECT LTD,29/01/2024 00:00,25/02/2024 00:00,P11-2024
,LV LEISURE CENTRE GOLF COURSE,SUPPLIES AND SERVICES,EQUIPMENT & MATERIALS,4111,P124810-SERVICE-GY Body Harness Strimmer Ken,07/02/2024 00:00,282150,62.73,AM0406,AMAZON PAYMENTS UK LIMITED,29/01/2024 00:00,25/02/2024 00:00,P11-2024
CEO,RESIDENTIAL ACCOMMODATION,SUPPLIES AND SERVICES,EQUIPMENT MAINTENANCE,4112,P124776-SERVICE-5 x Chimney Sweeps at Residential Properties,06/02/2024 00:00,281994,110,ES0397,ESSEX STOVES AND CHIMNEYS,29/01/2024 00:00,25/02/2024 00:00,P11-2024
CEO,RESIDENTIAL ACCOMMODATION,SUPPLIES AND SERVICES,EQUIPMENT MAINTENANCE,4112,P124776-SERVICE-5 x Chimney Sweeps at Residential Properties,06/02/2024 00:00,281995,110,ES0397,ESSEX STOVES AND CHIMNEYS,29/01/2024 00:00,25/02/2024 00:00,P11-2024
CEO,RESIDENTIAL ACCOMMODATION,SUPPLIES AND SERVICES,EQUIPMENT MAINTENANCE,4112,P124776-SERVICE-5 x Chimney Sweeps at Residential Properties,06/02/2024 00:00,281996,110,ES0397,ESSEX STOVES AND CHIMNEYS,29/01/2024 00:00,25/02/2024 00:00,P11-2024
,LEE VALLEY CAMPSITE,SUPPLIES AND SERVICES,EQUIPMENT MAINTENANCE,4112,P124759-SERVICE-B Block hot water boiler   - pressure valves,06/02/2024 00:00,281962,685,SO0400,SOUTHERN GREEN SERVICES LIMITED,29/01/2024 00:00,25/02/2024 00:00,P11-2024
,LEE VALLEY CAMPSITE,SUPPLIES AND SERVICES,EQUIPMENT MAINTENANCE,4112,P124760-SERVICE-Sterling repairs,06/02/2024 00:00,281963,880,SO0400,SOUTHERN GREEN SERVICES LIMITED,29/01/2024 00:00,25/02/2024 00:00,P11-2024
,LEE VALLEY CAMPSITE,SUPPLIES AND SERVICES,EQUIPMENT MAINTENANCE,4112,"P124759-SERVICE-A Block boiler Faulty pump,under warranty, at",06/02/2024 00:00,281964,195,SO0400,SOUTHERN GREEN SERVICES LIMITED,29/01/2024 00:00,25/02/2024 00:00,P11-2024
,LEE VALLEY CAMPSITE,SUPPLIES AND SERVICES,EQUIPMENT MAINTENANCE,4112,P124531-SERVICE-fitting compliant basin mixer,06/02/2024 00:00,281965,520,SO0400,SOUTHERN GREEN SERVICES LIMITED,29/01/2024 00:00,25/02/2024 00:00,P11-2024
,LEE VALLEY CAMPSITE,SUPPLIES AND SERVICES,EQUIPMENT MAINTENANCE,4112,P124532-SERVICE-gas safety inspection,06/02/2024 00:00,281966,220,SO0400,SOUTHERN GREEN SERVICES LIMITED,29/01/2024 00:00,25/02/2024 00:00,P11-2024
,LEE VALLEY CAMPSITE,SUPPLIES AND SERVICES,EQUIPMENT MAINTENANCE,4112,P124534-SERVICE-boiler check in A block,06/02/2024 00:00,281967,60,SO0400,SOUTHERN GREEN SERVICES LIMITED,29/01/2024 00:00,25/02/2024 00:00,P11-2024
,LEE VALLEY CAMPSITE,SUPPLIES AND SERVICES,EQUIPMENT MAINTENANCE,4112,P124535-SERVICE-temperture faults,06/02/2024 00:00,281968,85,SO0400,SOUTHERN GREEN SERVICES LIMITED,29/01/2024 00:00,25/02/2024 00:00,P11-2024
,LEE VALLEY CAMPSITE,SUPPLIES AND SERVICES,EQUIPMENT MAINTENANCE,4112,P124536-SERVICE-replace shower riser rail,06/02/2024 00:00,281969,145,SO0400,SOUTHERN GREEN SERVICES LIMITED,29/01/2024 00:00,25/02/2024 00:00,P11-2024
,LEE VALLEY CAMPSITE,SUPPLIES AND SERVICES,EQUIPMENT MAINTENANCE,4112,P124761-SERVICE-model 511248733 service,06/02/2024 00:00,282107,133.36,AP0245,APS LIMITED,29/01/2024 00:00,25/02/2024 00:00,P11-2024
,LEE VALLEY CAMPSITE,SUPPLIES AND SERVICES,EQUIPMENT MAINTENANCE,4112,P124761-SERVICE-model 514169054 service,06/02/2024 00:00,282108,153.35,AP0245,APS LIMITED,29/01/2024 00:00,25/02/2024 00:00,P11-2024
,LEE VALLEY CAMPSITE,SUPPLIES AND SERVICES,EQUIPMENT MAINTENANCE,4112,P124910-SERVICE-Servicing of hire cycles x16,25/02/2024 00:00,282701,541.15,HA0457,HANCOCKS CYCLES LTD,29/01/2024 00:00,25/02/2024 00:00,P11-2024
,LEE VALLEY CARAVAN PARK,SUPPLIES AND SERVICES,EQUIPMENT MAINTENANCE,4112,P123495-SERVICE-Annual Fee for Monthly Hot Tub testing,06/02/2024 00:00,281909,133.77,KI0090,KINGFISHER ENVIRONMENTAL SERVICES LTD,29/01/2024 00:00,25/02/2024 00:00,P11-2024
,LEE VALLEY CARAVAN PARK,SUPPLIES AND SERVICES,EQUIPMENT MAINTENANCE,4112,P124819-SERVICE-Replace faulty meter HH94,06/02/2024 00:00,281974,122,BR0018,BRADSHAW ELECTRICAL LIMITED,29/01/2024 00:00,25/02/2024 00:00,P11-2024
,LEE VALLEY CARAVAN PARK,SUPPLIES AND SERVICES,EQUIPMENT MAINTENANCE,4112,P124820-SERVICE-Touring field lighting,06/02/2024 00:00,281975,290,BR0018,BRADSHAW ELECTRICAL LIMITED,29/01/2024 00:00,25/02/2024 00:00,P11-2024
,LEE VALLEY CARAVAN PARK,SUPPLIES AND SERVICES,EQUIPMENT MAINTENANCE,4112,P124821-SERVICE-Various electrical works,06/02/2024 00:00,281976,154,BR0018,BRADSHAW ELECTRICAL LIMITED,29/01/2024 00:00,25/02/2024 00:00,P11-2024
,LEE VALLEY CARAVAN PARK,SUPPLIES AND SERVICES,EQUIPMENT MAINTENANCE,4112,P124824-SERVICE-Toilet block lighting,06/02/2024 00:00,281977,215,BR0018,BRADSHAW ELECTRICAL LIMITED,29/01/2024 00:00,25/02/2024 00:00,P11-2024
,LEE VALLEY CARAVAN PARK,SUPPLIES AND SERVICES,EQUIPMENT MAINTENANCE,4112,P124895-SERVICE-Paint and brushes,07/02/2024 00:00,282231,176.58,SC0057,SCREWFIX DIRECT LTD,29/01/2024 00:00,25/02/2024 00:00,P11-2024
,LEE VALLEY CARAVAN PARK,SUPPLIES AND SERVICES,EQUIPMENT MAINTENANCE,4112,"P125048-SERVICE-Paint, batteries",21/02/2024 00:00,282486,204.23,SC0057,SCREWFIX DIRECT LTD,29/01/2024 00:00,25/02/2024 00:00,P11-2024
,LEE VALLEY CARAVAN PARK,SUPPLIES AND SERVICES,EQUIPMENT MAINTENANCE,4112,P125050-SERVICE-Blades & screws,25/02/2024 00:00,282669,48.14,SC0057,SCREWFIX DIRECT LTD,29/01/2024 00:00,25/02/2024 00:00,P11-2024
P&V,SOUTH AREA RANGERS,SUPPLIES AND SERVICES,EQUIPMENT MAINTENANCE,4112,P124609-SERVICE-Chainsaw Oil - Sthil Bio Plus 5Lt,06/02/2024 00:00,282106,32.42,AP0245,APS LIMITED,29/01/2024 00:00,25/02/2024 00:00,P11-2024
,LV LEISURE CENTRE CAMPSITE,SUPPLIES AND SERVICES,EQUIPMENT MAINTENANCE,4112,P124766-SERVICE-Strimmer repairs,06/02/2024 00:00,282118,147.68,AP0245,APS LIMITED,29/01/2024 00:00,25/02/2024 00:00,P11-2024
,LV LEISURE CENTRE CAMPSITE,SUPPLIES AND SERVICES,EQUIPMENT MAINTENANCE,4112,P124766-SERVICE-Strimmer repairs,06/02/2024 00:00,282118,58.73,AP0245,APS LIMITED,29/01/2024 00:00,25/02/2024 00:00,P11-2024
,LV LEISURE CENTRE CAMPSITE,SUPPLIES AND SERVICES,EQUIPMENT MAINTENANCE,4112,P124766-SERVICE-strimmer maintenance,06/02/2024 00:00,282119,21.91,AP0245,APS LIMITED,29/01/2024 00:00,25/02/2024 00:00,P11-2024
,LV LEISURE CENTRE CAMPSITE,SUPPLIES AND SERVICES,EQUIPMENT MAINTENANCE,4112,P124766-SERVICE-Strimmer repairs,06/02/2024 00:00,282119,97.64,AP0245,APS LIMITED,29/01/2024 00:00,25/02/2024 00:00,P11-2024
,LV LEISURE CENTRE CAMPSITE,SUPPLIES AND SERVICES,EQUIPMENT MAINTENANCE,4112,P124766-SERVICE-strimmer maintenance,13/02/2024 00:00,282120,114.32,AP0245,APS LIMITED,29/01/2024 00:00,25/02/2024 00:00,P11-2024
,LV LEISURE CENTRE CAMPSITE,SUPPLIES AND SERVICES,EQUIPMENT MAINTENANCE,4112,"P124894-SERVICE-sand,cement,bricks,filler",07/02/2024 00:00,282230,164.78,BQ0164,TRADE UK ACCOUNT,29/01/2024 00:00,25/02/2024 00:00,P11-2024
,LV LEISURE CENTRE CAMPSITE,SUPPLIES AND SERVICES,EQUIPMENT MAINTENANCE,4112,P124874-SERVICE-fire blankets,13/02/2024 00:00,282370,196,MO0478,MORGAN FIRE PROTECTION LTD,29/01/2024 00:00,25/02/2024 00:00,P11-2024
,LV LEISURE CENTRE CAMPSITE,SUPPLIES AND SERVICES,EQUIPMENT MAINTENANCE,4112,P124955-SERVICE-dryer repair,20/02/2024 00:00,282627,235.55,JL0014,JLA LIMITED,29/01/2024 00:00,25/02/2024 00:00,P11-2024
R&B,INFORMATION TECHNOLOGY,SUPPLIES AND SERVICES,IT CORE SYSTEMS,4113,P121421-SERVICE-CIPHR Payroll April 2023 - March 2024 @ 569.,06/02/2024 00:00,282138,598,CI0721,CIPHR,29/01/2024 00:00,25/02/2024 00:00,P11-2024
R&B,INFORMATION TECHNOLOGY,SUPPLIES AND SERVICES,IT CORE SYSTEMS,4113,P123573-SERVICE-ArcGIS Online Migration Proposal,13/02/2024 00:00,282434,-654.95,ES0361,ESRI (UK) LTD,29/01/2024 00:00,25/02/2024 00:00,P11-2024
R&B,INFORMATION TECHNOLOGY,SUPPLIES AND SERVICES,IT CORE SYSTEMS,4113,P123573-SERVICE-ArcGIS Online Migration Proposal,13/02/2024 00:00,282435,36000,ES0361,ESRI (UK) LTD,29/01/2024 00:00,25/02/2024 00:00,P11-2024
R&B,INFORMATION TECHNOLOGY,SUPPLIES AND SERVICES,IT NETWORK & TELECOMS COSTS,4114,P121559-SERVICE-Campsites Circuits 1GB for Public WiFi - Apri,13/02/2024 00:00,282244,835,PP0200,PPSNET LIMITED,29/01/2024 00:00,25/02/2024 00:00,P11-2024
R&B,INFORMATION TECHNOLOGY,SUPPLIES AND SERVICES,IT NETWORK & TELECOMS COSTS,4114,P123560-SERVICE-MPLS for all sites October 23 - March 24,13/02/2024 00:00,282245,10146.67,PP0200,PPSNET LIMITED,29/01/2024 00:00,25/02/2024 00:00,P11-2024
R&B,INFORMATION TECHNOLOGY,SUPPLIES AND SERVICES,IT NETWORK & TELECOMS COSTS,4114,IT-FIBRE PRO-MONTHLY CHARGE,14/02/2024 00:00,282441,38,ZE0007,ZEN INTERNET LTD,29/01/2024 00:00,25/02/2024 00:00,P11-2024
R&B,INFORMATION TECHNOLOGY,SUPPLIES AND SERVICES,IT NETWORK & TELECOMS COSTS,4114,IT-STANSTEAD MONTHLY SERV CHG,13/02/2024 00:00,282460,31.32,ZE0007,ZEN INTERNET LTD,29/01/2024 00:00,25/02/2024 00:00,P11-2024
R&B,INFORMATION TECHNOLOGY,SUPPLIES AND SERVICES,IT HARDWARE & SOFTWARE COSTS,4116,P124044-SERVICE-VLAN Setup & Support along with provision of,07/02/2024 00:00,282256,790,IQ0022,IQUAL,29/01/2024 00:00,25/02/2024 00:00,P11-2024
R&B,INFORMATION TECHNOLOGY,SUPPLIES AND SERVICES,IT HARDWARE & SOFTWARE COSTS,4116,P124913-SERVICE-EssCable LC- LC 1m Multimode Duplex LSZH Fibr,13/02/2024 00:00,282380,2.11,BR0650,BROADBANDBUYER.COM,29/01/2024 00:00,25/02/2024 00:00,P11-2024
R&B,INFORMATION TECHNOLOGY,SUPPLIES AND SERVICES,IT HARDWARE & SOFTWARE COSTS,4116,P124913-SERVICE-WD WD64PURZ Purple 6TB SATA Hard Drive,13/02/2024 00:00,282380,419.14,BR0650,BROADBANDBUYER.COM,29/01/2024 00:00,25/02/2024 00:00,P11-2024
R&B,INFORMATION TECHNOLOGY,SUPPLIES AND SERVICES,IT HARDWARE & SOFTWARE COSTS,4116,P124913-SERVICE-TP-Link MC220L 1000Base-T to 1000Base-SX/LX/L,13/02/2024 00:00,282380,12.63,BR0650,BROADBANDBUYER.COM,29/01/2024 00:00,25/02/2024 00:00,P11-2024
R&B,INFORMATION TECHNOLOGY,SUPPLIES AND SERVICES,IT HARDWARE & SOFTWARE COSTS,4116,P124913-SERVICE-TP-Link TL-SM311LM Gigabit 1000BASE-SX Multim,13/02/2024 00:00,282380,25.26,BR0650,BROADBANDBUYER.COM,29/01/2024 00:00,25/02/2024 00:00,P11-2024
R&B,INFORMATION TECHNOLOGY,SUPPLIES AND SERVICES,IT HARDWARE & SOFTWARE COSTS,4116,P124913-SERVICE-Hikvision DS-7616NXI-K2/16P AcuSense 2-Bay,13/02/2024 00:00,282380,211.29,BR0650,BROADBANDBUYER.COM,29/01/2024 00:00,25/02/2024 00:00,P11-2024
R&B,INFORMATION TECHNOLOGY,SUPPLIES AND SERVICES,IT HARDWARE & SOFTWARE COSTS,4116,P124913-SERVICE-Delivery,13/02/2024 00:00,282380,6,BR0650,BROADBANDBUYER.COM,29/01/2024 00:00,25/02/2024 00:00,P11-2024
R&B,INFORMATION TECHNOLOGY,SUPPLIES AND SERVICES,IT HARDWARE & SOFTWARE COSTS,4116,P124003-SERVICE-Mimecast S1 remaining 6 months payment includ,13/02/2024 00:00,282440,1193,IQ0022,IQUAL,29/01/2024 00:00,25/02/2024 00:00,P11-2024
R&B,INFORMATION TECHNOLOGY,SUPPLIES AND SERVICES,IT HARDWARE & SOFTWARE COSTS,4116,P124542-SERVICE-Dell 27 Monitor - SE2722H - 68.5cm (27),14/02/2024 00:00,282452,97,DE0011,DELL CORPORATION LIMITED,29/01/2024 00:00,25/02/2024 00:00,P11-2024
R&B,INFORMATION TECHNOLOGY,SUPPLIES AND SERVICES,IT HARDWARE & SOFTWARE COSTS,4116,P125005-SERVICE-4youquality (3-Pack(Full Coverage),21/02/2024 00:00,282674,4.16,AM0406,AMAZON PAYMENTS UK LIMITED,29/01/2024 00:00,25/02/2024 00:00,P11-2024
R&B,INFORMATION TECHNOLOGY,SUPPLIES AND SERVICES,IT HARDWARE & SOFTWARE COSTS,4116,P125029-SERVICE-Ubiquiti PBE-5AC-Gen2 PowerBeam,25/02/2024 00:00,282719,178.54,BR0650,BROADBANDBUYER.COM,29/01/2024 00:00,25/02/2024 00:00,P11-2024
R&B,INFORMATION TECHNOLOGY,SUPPLIES AND SERVICES,IT HARDWARE & SOFTWARE COSTS,4116,P125082-SERVICE-Keyboard,25/02/2024 00:00,282877,74.7,AM0406,AMAZON PAYMENTS UK LIMITED,29/01/2024 00:00,25/02/2024 00:00,P11-2024
R&B,INFORMATION TECHNOLOGY,SUPPLIES AND SERVICES,IT MAINTENANCE AGREEMENTS,4119,"P124847-SERVICE-USG - Managed (Ser) Stanstead, Dobbs, Sewards",13/02/2024 00:00,282110,7865.76,RE0354,RENOVOTEC LTD,29/01/2024 00:00,25/02/2024 00:00,P11-2024
R&B,INFORMATION TECHNOLOGY,SUPPLIES AND SERVICES,IT MAINTENANCE AGREEMENTS,4119,P121793-SERVICE-Digiticket monthly ticketing service,06/02/2024 00:00,282137,526.2,DI0304,DIGITAL TICKETING SYSTEMS LTD (DIGITICKETS),29/01/2024 00:00,25/02/2024 00:00,P11-2024
R&B,INFORMATION TECHNOLOGY,SUPPLIES AND SERVICES,IT MAINTENANCE AGREEMENTS,4119,P123928-SERVICE-Support & Data Oct 23 - Mar24,13/02/2024 00:00,282234,171.29,CY0653,CYBERTILL,29/01/2024 00:00,25/02/2024 00:00,P11-2024
R&B,INFORMATION TECHNOLOGY,SUPPLIES AND SERVICES,IT MAINTENANCE AGREEMENTS,4119,P124842-SERVICE-Annual Maintenance Contract AC equipment 2024,13/02/2024 00:00,282287,190,HE0071,HERTS COOLING LIMITED,29/01/2024 00:00,25/02/2024 00:00,P11-2024
R&B,INFORMATION TECHNOLOGY,SUPPLIES AND SERVICES,IT MAINTENANCE AGREEMENTS,4119,P124580-SERVICE-DigitalAir Service Contract renewal Software,25/02/2024 00:00,282661,3700.9,RE0354,RENOVOTEC LTD,29/01/2024 00:00,25/02/2024 00:00,P11-2024
R&B,INFORMATION TECHNOLOGY,SUPPLIES AND SERVICES,IT MAINTENANCE AGREEMENTS,4119,P124020-SERVICE-Gemaparks Gema parks Campsite monthly subs De,21/02/2024 00:00,282680,739.67,NE0218,NETGUIDES LIMITED,29/01/2024 00:00,25/02/2024 00:00,P11-2024
P&V,SOUTH AREA RANGERS,SUPPLIES AND SERVICES,MATERIALS (LOCKS),4124,P125001-SERVICE-4x Squire Combi Locks,20/02/2024 00:00,282485,83.3,SC0057,SCREWFIX DIRECT LTD,29/01/2024 00:00,25/02/2024 00:00,P11-2024
P&V,SOUTH AREA RANGERS,SUPPLIES AND SERVICES,MATERIALS (LOCKS),4124,P125124-SERVICE-1x Combi Lock,25/02/2024 00:00,282671,21.33,SC0057,SCREWFIX DIRECT LTD,29/01/2024 00:00,25/02/2024 00:00,P11-2024
P&V,RIVER LEE COUNTRY PARK,SUPPLIES AND SERVICES,MATERIALS (LOCKS),4124,COUNTY CARE CLEANER-KEY CUTTING,06/02/2024 00:00,282020,8,FI0001,DIRECTOR OF FINANCE - CASH,29/01/2024 00:00,25/02/2024 00:00,P11-2024
P&V,RIVER LEE COUNTRY PARK,SUPPLIES AND SERVICES,MATERIALS (LOCKS),4124,TIMPSON-KEY CUTTING,06/02/2024 00:00,282020,7.5,FI0001,DIRECTOR OF FINANCE - CASH,29/01/2024 00:00,25/02/2024 00:00,P11-2024
,LEE VALLEY CAMPSITE,SUPPLIES AND SERVICES,MATERIALS (GROUNDS MAINT),4125,P124920-SERVICE-6X 20MM Shingle dumpy bags for HH Paths,21/02/2024 00:00,282433,318.33,TH0051,THOMPSONS OF CREWS HILL LTD,29/01/2024 00:00,25/02/2024 00:00,P11-2024
P&V,MYDDELTON HOUSE GARDENS,SUPPLIES AND SERVICES,MATERIALS (GROUNDS MAINT),4125,P124602-SERVICE-gardens equipment 2024,07/02/2024 00:00,281785,9.57,AM0406,AMAZON PAYMENTS UK LIMITED,29/01/2024 00:00,25/02/2024 00:00,P11-2024
P&V,MYDDELTON HOUSE GARDENS,SUPPLIES AND SERVICES,MATERIALS (GROUNDS MAINT),4125,P124602-SERVICE-gardens equipment 2024,07/02/2024 00:00,281786,9.58,AM0406,AMAZON PAYMENTS UK LIMITED,29/01/2024 00:00,25/02/2024 00:00,P11-2024
P&V,MYDDELTON HOUSE GARDENS,SUPPLIES AND SERVICES,MATERIALS (GROUNDS MAINT),4125,P124602-SERVICE-gardens equipment 2024,07/02/2024 00:00,281787,19.98,AM0406,AMAZON PAYMENTS UK LIMITED,29/01/2024 00:00,25/02/2024 00:00,P11-2024
P&V,MYDDELTON HOUSE GARDENS,SUPPLIES AND SERVICES,MATERIALS (GROUNDS MAINT),4125,P124602-SERVICE-gardens equipment 2024,07/02/2024 00:00,281961,43.1,AM0406,AMAZON PAYMENTS UK LIMITED,29/01/2024 00:00,25/02/2024 00:00,P11-2024
P&V,MYDDELTON HOUSE GARDENS,SUPPLIES AND SERVICES,MATERIALS (GROUNDS MAINT),4125,P124602-SERVICE-gardens equipment 2024,07/02/2024 00:00,282021,23.87,AM0406,AMAZON PAYMENTS UK LIMITED,29/01/2024 00:00,25/02/2024 00:00,P11-2024
P&V,MYDDELTON HOUSE GARDENS,SUPPLIES AND SERVICES,MATERIALS (GROUNDS MAINT),4125,P124602-SERVICE-gardens equipment 2024,07/02/2024 00:00,282098,11.64,AM0406,AMAZON PAYMENTS UK LIMITED,29/01/2024 00:00,25/02/2024 00:00,P11-2024
P&V,MYDDELTON HOUSE GARDENS,SUPPLIES AND SERVICES,MATERIALS (GROUNDS MAINT),4125,P124602-SERVICE-gardens equipment 2024,07/02/2024 00:00,282207,16.58,AM0406,AMAZON PAYMENTS UK LIMITED,29/01/2024 00:00,25/02/2024 00:00,P11-2024
P&V,MYDDELTON HOUSE GARDENS,SUPPLIES AND SERVICES,MATERIALS (GROUNDS MAINT),4125,P124602-SERVICE-gardens equipment 2024,07/02/2024 00:00,282208,11.66,AM0406,AMAZON PAYMENTS UK LIMITED,29/01/2024 00:00,25/02/2024 00:00,P11-2024
P&V,MYDDELTON HOUSE GARDENS,SUPPLIES AND SERVICES,MATERIALS (GROUNDS MAINT),4125,P124602-SERVICE-gardens equipment 2024,07/02/2024 00:00,282209,12.49,AM0406,AMAZON PAYMENTS UK LIMITED,29/01/2024 00:00,25/02/2024 00:00,P11-2024
P&V,MYDDELTON HOUSE GARDENS,SUPPLIES AND SERVICES,MATERIALS (GROUNDS MAINT),4125,P124602-SERVICE-gardens equipment 2024,13/02/2024 00:00,282267,14.16,AM0406,AMAZON PAYMENTS UK LIMITED,29/01/2024 00:00,25/02/2024 00:00,P11-2024
P&V,MYDDELTON HOUSE GARDENS,SUPPLIES AND SERVICES,MATERIALS (GROUNDS MAINT),4125,P124602-SERVICE-gardens equipment 2024,13/02/2024 00:00,282367,16.44,AM0406,AMAZON PAYMENTS UK LIMITED,29/01/2024 00:00,25/02/2024 00:00,P11-2024
P&V,MYDDELTON HOUSE GARDENS,SUPPLIES AND SERVICES,MATERIALS (GROUNDS MAINT),4125,P124602-SERVICE-gardens equipment 2024,14/02/2024 00:00,282459,21.64,AM0406,AMAZON PAYMENTS UK LIMITED,29/01/2024 00:00,25/02/2024 00:00,P11-2024
P&V,MYDDELTON HOUSE GARDENS,SUPPLIES AND SERVICES,MATERIALS (GROUNDS MAINT),4125,P124791-SERVICE-tree works MH gardens,14/02/2024 00:00,282462,4725,PA0222,PARKIN & PARKER TREE SPECIALISTS,29/01/2024 00:00,25/02/2024 00:00,P11-2024
P&V,ABBEY GARDENS,SUPPLIES AND SERVICES,MATERIALS (GROUNDS MAINT),4125,P125078-SERVICE-10c 40cam Tree Ties,25/02/2024 00:00,282892,10.75,CL0093,CLOCKHOUSE NURSERY,29/01/2024 00:00,25/02/2024 00:00,P11-2024
P&V,ABBEY GARDENS,SUPPLIES AND SERVICES,MATERIALS (GROUNDS MAINT),4125,P125078-SERVICE-10c 50cam Tree Ties,25/02/2024 00:00,282892,20.75,CL0093,CLOCKHOUSE NURSERY,29/01/2024 00:00,25/02/2024 00:00,P11-2024
,LV LEISURE CENTRE GOLF COURSE,SUPPLIES AND SERVICES,MATERIALS (GROUNDS MAINT),4125,P124953-SERVICE-Urgent Step Repairs on Tee's,20/02/2024 00:00,281214,2655.75,KE0023,KENDALL & SONS LIMITED,29/01/2024 00:00,25/02/2024 00:00,P11-2024
,LV LEISURE CENTRE GOLF COURSE,SUPPLIES AND SERVICES,MATERIALS (GROUNDS MAINT),4125,P124334-SERVICE-Extra funds to repair Cushman,07/02/2024 00:00,282180,25.93,DO0027,ERNEST DOE & SONS LTD,29/01/2024 00:00,25/02/2024 00:00,P11-2024
,LV LEISURE CENTRE GOLF COURSE,SUPPLIES AND SERVICES,MATERIALS (GROUNDS MAINT),4125,P124334-SERVICE-Extra funds to repair Cushman,07/02/2024 00:00,282181,356.91,DO0027,ERNEST DOE & SONS LTD,29/01/2024 00:00,25/02/2024 00:00,P11-2024
,LV LEISURE CENTRE GOLF COURSE,SUPPLIES AND SERVICES,MATERIALS (GROUNDS MAINT),4125,P124334-SERVICE-Extra funds to repair Cushman,07/02/2024 00:00,282182,170.49,DO0027,ERNEST DOE & SONS LTD,29/01/2024 00:00,25/02/2024 00:00,P11-2024
,LV LEISURE CENTRE GOLF COURSE,SUPPLIES AND SERVICES,MATERIALS (GROUNDS MAINT),4125,P124334-SERVICE-Extra funds to repair Cushman,07/02/2024 00:00,282183,81.37,DO0027,ERNEST DOE & SONS LTD,29/01/2024 00:00,25/02/2024 00:00,P11-2024
,LV LEISURE CENTRE GOLF COURSE,SUPPLIES AND SERVICES,MATERIALS (GROUNDS MAINT),4125,P124334-SERVICE-Extra funds to repair Cushman,07/02/2024 00:00,282191,-356.91,DO0027,ERNEST DOE & SONS LTD,29/01/2024 00:00,25/02/2024 00:00,P11-2024
P&V,MYDDELTON HOUSE GARDENS,SUPPLIES AND SERVICES,MATERIALS (PLANTS & SHRUBS),4126,MD garden-plants,07/02/2024 00:00,282129,64.78,CL0093,CLOCKHOUSE NURSERY,29/01/2024 00:00,25/02/2024 00:00,P11-2024
P&V,MYDDELTON HOUSE GARDENS,SUPPLIES AND SERVICES,MATERIALS (PLANTS & SHRUBS),4126,P124828-SERVICE-seeds order jan 2024,07/02/2024 00:00,282129,193.34,CL0093,CLOCKHOUSE NURSERY,29/01/2024 00:00,25/02/2024 00:00,P11-2024
P&V,MYDDELTON HOUSE GARDENS,SUPPLIES AND SERVICES,MATERIALS (PLANTS & SHRUBS),4126,MD garden-plants,07/02/2024 00:00,282129,128.56,CL0093,CLOCKHOUSE NURSERY,29/01/2024 00:00,25/02/2024 00:00,P11-2024
P&V,MYDDELTON HOUSE GARDENS,SUPPLIES AND SERVICES,MATERIALS (PLANTS & SHRUBS),4126,MD garden-plants,07/02/2024 00:00,282129,-193.34,CL0093,CLOCKHOUSE NURSERY,29/01/2024 00:00,25/02/2024 00:00,P11-2024
,STANSTEAD RECHARGEABLE WORKS,SUPPLIES AND SERVICES,MATERIALS (ENG OTHER),4130,P124884-SERVICE-hooks and nitrile w/s gloves,13/02/2024 00:00,282265,22.28,AM0406,AMAZON PAYMENTS UK LIMITED,29/01/2024 00:00,25/02/2024 00:00,P11-2024
,STANSTEAD RECHARGEABLE WORKS,SUPPLIES AND SERVICES,MATERIALS (ENG OTHER),4130,P124884-SERVICE-hooks and nitrile w/s gloves,13/02/2024 00:00,282266,44.52,AM0406,AMAZON PAYMENTS UK LIMITED,29/01/2024 00:00,25/02/2024 00:00,P11-2024
,STANSTEAD RECHARGEABLE WORKS,SUPPLIES AND SERVICES,MATERIALS (ENG OTHER),4130,"P124814-SERVICE-parts - gear box, skin tank & 2xshot blast",20/02/2024 00:00,282411,550,EN0309,PRH ENGINEERING LIMITED,29/01/2024 00:00,25/02/2024 00:00,P11-2024
,STANSTEAD RECHARGEABLE WORKS,SUPPLIES AND SERVICES,MATERIALS (ENG OTHER),4130,P124972-SERVICE-supply service kit - paul PRH,20/02/2024 00:00,282630,88.48,EN0309,PRH ENGINEERING LIMITED,29/01/2024 00:00,25/02/2024 00:00,P11-2024
P&V,LEE VALLEY FARM HOLYFIELDHALL,SUPPLIES AND SERVICES,DAIRY SUNDRIES,4138,P121501-SERVICE-Plumbing Fittings,13/02/2024 00:00,282258,162.85,WO0076,E J WOOLLARD LTD,29/01/2024 00:00,25/02/2024 00:00,P11-2024
,LV CAMPSITE CARAVAN SALES,SUPPLIES AND SERVICES,CARAVAN PURCHASES,4171,P122492-SERVICE-Valley Lodge,20/02/2024 00:00,282478,29492.81,SH0693,SH CARAVANS,29/01/2024 00:00,25/02/2024 00:00,P11-2024
,LEE VALLEY CARAVAN PARK,SUPPLIES AND SERVICES,MISCELLANEOUS CARAVAN COSTS,4174,P125065-SERVICE-Supply new taps for 3 hot tubs,25/02/2024 00:00,282851,1215,SO0400,SOUTHERN GREEN SERVICES LIMITED,29/01/2024 00:00,25/02/2024 00:00,P11-2024
,LEE VALLEY CARAVAN PARK,SUPPLIES AND SERVICES,MISCELLANEOUS CARAVAN COSTS,4174,P125055-SERVICE-Descale Peaky pods,25/02/2024 00:00,282861,340,SO0400,SOUTHERN GREEN SERVICES LIMITED,29/01/2024 00:00,25/02/2024 00:00,P11-2024
,LEE VALLEY CARAVAN PARK,SUPPLIES AND SERVICES,MISCELLANEOUS CARAVAN COSTS,4174,P125054-SERVICE-Cottage gas safety,25/02/2024 00:00,282862,190,SO0400,SOUTHERN GREEN SERVICES LIMITED,29/01/2024 00:00,25/02/2024 00:00,P11-2024
,LEE VALLEY CARAVAN PARK,SUPPLIES AND SERVICES,MISCELLANEOUS CARAVAN COSTS,4174,P125052-SERVICE-Gas checks x 4 lodges,25/02/2024 00:00,282863,985,SO0400,SOUTHERN GREEN SERVICES LIMITED,29/01/2024 00:00,25/02/2024 00:00,P11-2024
,LEE VALLEY CARAVAN PARK,SUPPLIES AND SERVICES,MISCELLANEOUS CARAVAN COSTS,4174,P125051-SERVICE-Staff static,25/02/2024 00:00,282864,620,SO0400,SOUTHERN GREEN SERVICES LIMITED,29/01/2024 00:00,25/02/2024 00:00,P11-2024
,LEE VALLEY CARAVAN PARK,SUPPLIES AND SERVICES,CONSUMABLES - LODGES,4181,P124704-SERVICE-Oven gloves for Lodges,13/02/2024 00:00,282011,12.72,AM0406,AMAZON PAYMENTS UK LIMITED,29/01/2024 00:00,25/02/2024 00:00,P11-2024
,LEE VALLEY CARAVAN PARK,SUPPLIES AND SERVICES,CONSUMABLES - LODGES,4181,P124704-SERVICE-Oven gloves for Lodges,13/02/2024 00:00,282012,57.9,AM0406,AMAZON PAYMENTS UK LIMITED,29/01/2024 00:00,25/02/2024 00:00,P11-2024
,LEE VALLEY CARAVAN PARK,SUPPLIES AND SERVICES,CONSUMABLES - LODGES,4181,P124945-SERVICE-116737,20/02/2024 00:00,282513,16.67,CU0759,CURRYS BUSINESS,29/01/2024 00:00,25/02/2024 00:00,P11-2024
,LEE VALLEY CARAVAN PARK,SUPPLIES AND SERVICES,CONSUMABLES - LODGES,4181,P124945-SERVICE-577329,20/02/2024 00:00,282513,307.5,CU0759,CURRYS BUSINESS,29/01/2024 00:00,25/02/2024 00:00,P11-2024
,LEE VALLEY CARAVAN PARK,SUPPLIES AND SERVICES,CONSUMABLES - LODGES,4181,P124945-SERVICE-N251316W,20/02/2024 00:00,282645,33.32,CU0759,CURRYS BUSINESS,29/01/2024 00:00,25/02/2024 00:00,P11-2024
,LEE VALLEY CARAVAN PARK,SUPPLIES AND SERVICES,CONSUMABLES - LODGES,4181,P124945-SERVICE-N373477W,20/02/2024 00:00,282645,149.16,CU0759,CURRYS BUSINESS,29/01/2024 00:00,25/02/2024 00:00,P11-2024
,LEE VALLEY CARAVAN PARK,SUPPLIES AND SERVICES,CONSUMABLES - LODGES,4181,P124945-SERVICE-N373472W,20/02/2024 00:00,282645,430,CU0759,CURRYS BUSINESS,29/01/2024 00:00,25/02/2024 00:00,P11-2024
P&V,"ASSET PROTECTION, MAINT, DEVEL",SUPPLIES AND SERVICES,CLOTHING & UNIFORMS,4225,P125006-SERVICE-Safety uniform,25/02/2024 00:00,282878,110,DI0017,DIRECT BOOT & SHOE SUPPLIES,29/01/2024 00:00,25/02/2024 00:00,P11-2024
,LEE VALLEY CAMPSITE,SUPPLIES AND SERVICES,CLOTHING & UNIFORMS,4225,P123909-SERVICE- ga boots x2,25/02/2024 00:00,282644,117.98,SC0057,SCREWFIX DIRECT LTD,29/01/2024 00:00,25/02/2024 00:00,P11-2024
P&V,MYDDELTON HOUSE GARDENS,SUPPLIES AND SERVICES,CLOTHING & UNIFORMS,4225,P124713-SERVICE-boots for volunteer,07/02/2024 00:00,281804,33.95,DI0017,DIRECT BOOT & SHOE SUPPLIES,29/01/2024 00:00,25/02/2024 00:00,P11-2024
P&V,MYDDELTON HOUSE GARDENS,SUPPLIES AND SERVICES,CLOTHING & UNIFORMS,4225,P124875-SERVICE-volunteers work boots,14/02/2024 00:00,282448,22.94,DI0017,DIRECT BOOT & SHOE SUPPLIES,29/01/2024 00:00,25/02/2024 00:00,P11-2024
P&V,NORTH AREA RANGERS,SUPPLIES AND SERVICES,CLOTHING & UNIFORMS,4225,P123399-SERVICE-2x Chainsaw Wellies,06/02/2024 00:00,280265,181.9,TU0006,P TUCKWELL LTD,29/01/2024 00:00,25/02/2024 00:00,P11-2024
P&V,NORTH AREA RANGERS,SUPPLIES AND SERVICES,CLOTHING & UNIFORMS,4225,Rangers- rubber boots-see credit 278080,06/02/2024 00:00,280265,-181.9,TU0006,P TUCKWELL LTD,29/01/2024 00:00,25/02/2024 00:00,P11-2024
P&V,NORTH AREA RANGERS,SUPPLIES AND SERVICES,CLOTHING & UNIFORMS,4225,Rangers- rubber boots-see credit 278080,06/02/2024 00:00,280265,90.95,TU0006,P TUCKWELL LTD,29/01/2024 00:00,25/02/2024 00:00,P11-2024
P&V,NORTH AREA RANGERS,SUPPLIES AND SERVICES,CLOTHING & UNIFORMS,4225,Rangers- rubber boots-see credit 278080,06/02/2024 00:00,280265,90.95,TU0006,P TUCKWELL LTD,29/01/2024 00:00,25/02/2024 00:00,P11-2024
P&V,NORTH AREA RANGERS,SUPPLIES AND SERVICES,CLOTHING & UNIFORMS,4225,P125044-SERVICE-ATV Helmets,25/02/2024 00:00,282876,49.46,LI0320,LINGS HONDA,29/01/2024 00:00,25/02/2024 00:00,P11-2024
P&V,SOUTH AREA RANGERS,SUPPLIES AND SERVICES,CLOTHING & UNIFORMS,4225,P125044-SERVICE-Delivery,25/02/2024 00:00,282876,21.88,LI0320,LINGS HONDA,29/01/2024 00:00,25/02/2024 00:00,P11-2024
,LEE VALLEY MARINA SPRINGFIELD,SUPPLIES AND SERVICES,OFFICE EXPENSES,4311,P125014-SERVICE-To supply items as requested,25/02/2024 00:00,282723,87.79,TH0008,JKL SOLUTIONS LTD,29/01/2024 00:00,25/02/2024 00:00,P11-2024
,LEE VALLEY CAMPSITE,SUPPLIES AND SERVICES,OFFICE EXPENSES,4311,P124957-SERVICE-paper record storage boxes,20/02/2024 00:00,282510,18.99,AM0406,AMAZON PAYMENTS UK LIMITED,29/01/2024 00:00,25/02/2024 00:00,P11-2024
,LEE VALLEY CAMPSITE,SUPPLIES AND SERVICES,OFFICE EXPENSES,4311,P124979-SERVICE-Laminate pouches x100,20/02/2024 00:00,282646,3.15,TH0008,JKL SOLUTIONS LTD,29/01/2024 00:00,25/02/2024 00:00,P11-2024
,LEE VALLEY CARAVAN PARK,SUPPLIES AND SERVICES,OFFICE EXPENSES,4311,P124792-SERVICE-Stationery,06/02/2024 00:00,282017,134.79,TH0008,JKL SOLUTIONS LTD,29/01/2024 00:00,25/02/2024 00:00,P11-2024
P&V,SOUTH AREA RANGERS,SUPPLIES AND SERVICES,OFFICE EXPENSES,4311,P124663-SERVICE-25x Portable Chargers,06/02/2024 00:00,281828,249.79,AM0406,AMAZON PAYMENTS UK LIMITED,29/01/2024 00:00,25/02/2024 00:00,P11-2024
P&V,RIVER LEE COUNTRY PARK,SUPPLIES AND SERVICES,OFFICE EXPENSES,4311,P124825-SERVICE-2x A4 Laminating Pounches - 36019FE,20/02/2024 00:00,282647,32.46,TH0008,JKL SOLUTIONS LTD,29/01/2024 00:00,25/02/2024 00:00,P11-2024
P&V,RIVER LEE COUNTRY PARK,SUPPLIES AND SERVICES,OFFICE EXPENSES,4311,P124825-SERVICE-9x Antibacterial & Virucidal Wipes - PP5010,20/02/2024 00:00,282647,22.05,TH0008,JKL SOLUTIONS LTD,29/01/2024 00:00,25/02/2024 00:00,P11-2024
,LV LEISURE CENTRE CAMPSITE,SUPPLIES AND SERVICES,OFFICE EXPENSES,4311,P124807-SERVICE-Snap frames and pens,06/02/2024 00:00,282115,128.71,TH0008,JKL SOLUTIONS LTD,29/01/2024 00:00,25/02/2024 00:00,P11-2024
CEO,CHIEF EXECUTIVE,SUPPLIES AND SERVICES,SUBSCRIPTIONS,4334,P125118-SERVICE-MJ Subscription,25/02/2024 00:00,282925,199,HE0021,HEMMING GROUP LIMITED,29/01/2024 00:00,25/02/2024 00:00,P11-2024
R&B,DEMOCRATIC REPRESENTATION & MA,SUPPLIES AND SERVICES,SUBSCRIPTIONS,4334,P123201-SERVICE-Docustore Subscription,06/02/2024 00:00,277382,360,ME0034,MERLIN DOCUMENT MANAGEMENT SOLUTIONS,29/01/2024 00:00,25/02/2024 00:00,P11-2024
R&B,DEMOCRATIC REPRESENTATION & MA,SUPPLIES AND SERVICES,SUBSCRIPTIONS,4334,P123202-SERVICE-SSL Encryption Certificate - Annual,06/02/2024 00:00,277383,150,ME0034,MERLIN DOCUMENT MANAGEMENT SOLUTIONS,29/01/2024 00:00,25/02/2024 00:00,P11-2024
CEO,LEGAL SERVICES,SUPPLIES AND SERVICES,SUBSCRIPTIONS,4334,P124968-SERVICE-Land North Mollison Road Searches,14/02/2024 00:00,282469,1598.34,SE0705,SEARCHFLOW LIMITED,29/01/2024 00:00,25/02/2024 00:00,P11-2024
P&V,LEE VALLEY FARM HOLYFIELDHALL,SUPPLIES AND SERVICES,SUBSCRIPTIONS,4334,P124879-SERVICE-Annual Subscription,13/02/2024 00:00,282132,185,FA0046,FARMERS WEEKLY,29/01/2024 00:00,25/02/2024 00:00,P11-2024
P&V,MYDDELTON HOUSE GARDENS,SUPPLIES AND SERVICES,SUBSCRIPTIONS,4334,P124985-SERVICE-gardens to visit annual fee,20/02/2024 00:00,282482,325,GA0282,GARDENS TO VISIT,29/01/2024 00:00,25/02/2024 00:00,P11-2024
R&B,INFORMATION TECHNOLOGY,SUPPLIES AND SERVICES,TELEPHONES (OFFICE),4481,P123882-SERVICE-Monthly SIP - Oct 23 - Mar 24,13/02/2024 00:00,282149,126.2,FR0131,VOICEFLEX LTD,29/01/2024 00:00,25/02/2024 00:00,P11-2024
R&B,INFORMATION TECHNOLOGY,SUPPLIES AND SERVICES,TELEPHONES (OFFICE),4481,IT-TELEPHONE CHG-Jan/Feb 2024,12/02/2024 00:00,282195,1164.67,ID0002,DAISY COMMUNICATIONS LTD,29/01/2024 00:00,25/02/2024 00:00,P11-2024
R&B,INFORMATION TECHNOLOGY,SUPPLIES AND SERVICES,TELEPHONES (OFFICE),4481,P124921-SERVICE-CallSwitch Licence & Calls Dec 2023,21/02/2024 00:00,282233,860.65,IQ0022,IQUAL,29/01/2024 00:00,25/02/2024 00:00,P11-2024
R&B,INFORMATION TECHNOLOGY,SUPPLIES AND SERVICES,TELEPHONES (MOBILE),4484,IT-MONTHLY MOBILE CHARGE,25/02/2024 00:00,282844,15,VO0010,VODAFONE  LIMITED (CORPORATE),29/01/2024 00:00,25/02/2024 00:00,P11-2024
R&B,INFORMATION TECHNOLOGY,SUPPLIES AND SERVICES,TELEPHONES (MOBILE),4484,IT-MONTHLY MOBILE CHARGE,25/02/2024 00:00,282844,968.49,VO0010,VODAFONE  LIMITED (CORPORATE),29/01/2024 00:00,25/02/2024 00:00,P11-2024
P&V,RIVER LEE COUNTRY PARK,SUPPLIES AND SERVICES,HOSPITALITY,4505,REFRESHMENTS(MILK),06/02/2024 00:00,282020,1.2,FI0001,DIRECTOR OF FINANCE - CASH,29/01/2024 00:00,25/02/2024 00:00,P11-2024
P&V,RIVER LEE COUNTRY PARK,SUPPLIES AND SERVICES,HOSPITALITY,4505,REFRESHMENTS (MILK),06/02/2024 00:00,282020,1.2,FI0001,DIRECTOR OF FINANCE - CASH,29/01/2024 00:00,25/02/2024 00:00,P11-2024
P&V,RIVER LEE COUNTRY PARK,SUPPLIES AND SERVICES,HOSPITALITY,4505,REFRESHMENTS (MILK),06/02/2024 00:00,282020,2.6,FI0001,DIRECTOR OF FINANCE - CASH,29/01/2024 00:00,25/02/2024 00:00,P11-2024
P&V,RIVER LEE COUNTRY PARK,SUPPLIES AND SERVICES,HOSPITALITY,4505,REFRESHMENTS (MILK),06/02/2024 00:00,282020,2.4,FI0001,DIRECTOR OF FINANCE - CASH,29/01/2024 00:00,25/02/2024 00:00,P11-2024
P&V,RIVER LEE COUNTRY PARK,SUPPLIES AND SERVICES,HOSPITALITY,4505,REFRESHMENTS (MILK),06/02/2024 00:00,282020,2.4,FI0001,DIRECTOR OF FINANCE - CASH,29/01/2024 00:00,25/02/2024 00:00,P11-2024
P&V,RIVER LEE COUNTRY PARK,SUPPLIES AND SERVICES,HOSPITALITY,4505,REFRESHMENTS (MILK),06/02/2024 00:00,282020,2.4,FI0001,DIRECTOR OF FINANCE - CASH,29/01/2024 00:00,25/02/2024 00:00,P11-2024
P&V,RIVER LEE COUNTRY PARK,SUPPLIES AND SERVICES,VOLUNTEERS EXPENSES,4506,VOLUNTEER REFRESHMENTS,06/02/2024 00:00,282020,3.15,FI0001,DIRECTOR OF FINANCE - CASH,29/01/2024 00:00,25/02/2024 00:00,P11-2024
P&V,RIVER LEE COUNTRY PARK,SUPPLIES AND SERVICES,VOLUNTEERS EXPENSES,4506,VOLUNTEER REFRESHMENTS,06/02/2024 00:00,282020,5.3,FI0001,DIRECTOR OF FINANCE - CASH,29/01/2024 00:00,25/02/2024 00:00,P11-2024
P&V,RIVER LEE COUNTRY PARK,SUPPLIES AND SERVICES,VOLUNTEERS EXPENSES,4506,VOLUNTEER REFRESHMENTS,06/02/2024 00:00,282020,4.4,FI0001,DIRECTOR OF FINANCE - CASH,29/01/2024 00:00,25/02/2024 00:00,P11-2024
P&V,RIVER LEE COUNTRY PARK,SUPPLIES AND SERVICES,VOLUNTEERS EXPENSES,4506,VOLUNTEER REFRESHMENTS,06/02/2024 00:00,282020,5.54,FI0001,DIRECTOR OF FINANCE - CASH,29/01/2024 00:00,25/02/2024 00:00,P11-2024
,LEE VALLEY MARINA STANSTEAD,INTERNAL HOSPITALITY,INTERNAL HOSPITALITY,4507,P123533-SERVICE-milk covering oct23-apr 24,13/02/2024 00:00,282235,28,HA0259,STUART BARTON-HAGGER LIMITED,29/01/2024 00:00,25/02/2024 00:00,P11-2024
P&V,FISHERIES MANAGEMENT,SUPPLIES AND SERVICES,MARKETING,4603,P124923-SERVICE-Global Birdfair - 2024,25/02/2024 00:00,282653,848.25,GL0453,GLOBAL BIRDFAIR LTD,29/01/2024 00:00,25/02/2024 00:00,P11-2024
,LEE VALLEY CAMPSITE,SUPPLIES AND SERVICES,MARKETING,4603,P124832-SERVICE-SC Park Finder Yearly Subscription,07/02/2024 00:00,281210,167,WA0063,WARNERS GROUP PUBLICATIONS PLC,29/01/2024 00:00,25/02/2024 00:00,P11-2024
,LEE VALLEY CARAVAN PARK,SUPPLIES AND SERVICES,MARKETING,4603,P124832-SERVICE-DW Park Finder Yearly Subscription,07/02/2024 00:00,281210,167,WA0063,WARNERS GROUP PUBLICATIONS PLC,29/01/2024 00:00,25/02/2024 00:00,P11-2024
,LEE VALLEY CARAVAN PARK,SUPPLIES AND SERVICES,MARKETING,4603,P124831-SERVICE-DW Yearly Subscription,07/02/2024 00:00,281327,125.87,NE0195,NEDCAMP,29/01/2024 00:00,25/02/2024 00:00,P11-2024
,LEE VALLEY CARAVAN PARK,SUPPLIES AND SERVICES,MARKETING,4603,P124831-SERVICE-EDM Yearly Subscription,07/02/2024 00:00,281328,125.86,NE0195,NEDCAMP,29/01/2024 00:00,25/02/2024 00:00,P11-2024
P&V,ALMOST WILD CAMPSITE,SUPPLIES AND SERVICES,MARKETING,4603,P124832-SERVICE-AW Park Finder Yearly Subscription,07/02/2024 00:00,281210,167,WA0063,WARNERS GROUP PUBLICATIONS PLC,29/01/2024 00:00,25/02/2024 00:00,P11-2024
,LV LEISURE CENTRE CAMPSITE,SUPPLIES AND SERVICES,MARKETING,4603,P124832-SERVICE-EC Park Finder Yearly Subscription,07/02/2024 00:00,281210,167,WA0063,WARNERS GROUP PUBLICATIONS PLC,29/01/2024 00:00,25/02/2024 00:00,P11-2024
,LEE VALLEY WATERWORKS CENTRE,SUPPLIES AND SERVICES,PEST CONTROL,4625,P124943-SERVICE-Pest Control - WaterWorks - Jan - Mar 2024,13/02/2024 00:00,282426,165,VE0006,VERMINATE CITY & RURAL PEST CONTROL LTD,29/01/2024 00:00,25/02/2024 00:00,P11-2024
P&V,LEE VALLEY FARM HOLYFIELDHALL,SUPPLIES AND SERVICES,PEST CONTROL,4625,P123697-SERVICE-Rats & Mice Control,20/02/2024 00:00,282423,125,VE0006,VERMINATE CITY & RURAL PEST CONTROL LTD,29/01/2024 00:00,25/02/2024 00:00,P11-2024
P&V,LEE VALLEY FARM HOLYFIELDHALL,SUPPLIES AND SERVICES,PEST CONTROL,4625,P123697-SERVICE-Rats & Mice Control,20/02/2024 00:00,282503,125,VE0006,VERMINATE CITY & RURAL PEST CONTROL LTD,29/01/2024 00:00,25/02/2024 00:00,P11-2024
P&V,NORTH AREA RANGERS,SUPPLIES AND SERVICES,PEST CONTROL,4625,P122082-SERVICE-Pest Control - North Sites - Feb,06/02/2024 00:00,282029,73.33,VE0006,VERMINATE CITY & RURAL PEST CONTROL LTD,29/01/2024 00:00,25/02/2024 00:00,P11-2024
P&V,NORTH AREA RANGERS,SUPPLIES AND SERVICES,PEST CONTROL,4625,P122082-SERVICE-Pest Control - North Sites - Mar,14/02/2024 00:00,282417,73.33,VE0006,VERMINATE CITY & RURAL PEST CONTROL LTD,29/01/2024 00:00,25/02/2024 00:00,P11-2024
P&V,NORTH AREA RANGERS,SUPPLIES AND SERVICES,PEST CONTROL,4625,P122060-SERVICE-Pest Control - Ware Town Centre - Jan,14/02/2024 00:00,282418,70,VE0006,VERMINATE CITY & RURAL PEST CONTROL LTD,29/01/2024 00:00,25/02/2024 00:00,P11-2024
P&V,NORTH AREA RANGERS,SUPPLIES AND SERVICES,PEST CONTROL,4625,P122060-SERVICE-Pest Control - Ware Town Centre - Feb,25/02/2024 00:00,282497,70,VE0006,VERMINATE CITY & RURAL PEST CONTROL LTD,29/01/2024 00:00,25/02/2024 00:00,P11-2024
P&V,NORTH AREA RANGERS,SUPPLIES AND SERVICES,PEST CONTROL,4625,P122082-SERVICE-Pest Control - North Sites - Nov,25/02/2024 00:00,282498,73.33,VE0006,VERMINATE CITY & RURAL PEST CONTROL LTD,29/01/2024 00:00,25/02/2024 00:00,P11-2024
P&V,SOUTH AREA RANGERS,SUPPLIES AND SERVICES,PEST CONTROL,4625,P122058-SERVICE-Pest Control - Tottenham Marshes - Jan,14/02/2024 00:00,282422,70,VE0006,VERMINATE CITY & RURAL PEST CONTROL LTD,29/01/2024 00:00,25/02/2024 00:00,P11-2024
P&V,SOUTH AREA RANGERS,SUPPLIES AND SERVICES,PEST CONTROL,4625,P122058-SERVICE-Pest Control - Tottenham Marshes - Feb,25/02/2024 00:00,282502,70,VE0006,VERMINATE CITY & RURAL PEST CONTROL LTD,29/01/2024 00:00,25/02/2024 00:00,P11-2024
P&V,ABBEY GARDENS,SUPPLIES AND SERVICES,PEST CONTROL,4625,P122082-SERVICE-Pest Control - North Sites - Mar,14/02/2024 00:00,282417,36.67,VE0006,VERMINATE CITY & RURAL PEST CONTROL LTD,29/01/2024 00:00,25/02/2024 00:00,P11-2024
P&V,ABBEY GARDENS,SUPPLIES AND SERVICES,PEST CONTROL,4625,P122082-SERVICE-Pest Control - North Sites - Nov,14/02/2024 00:00,282417,36.67,VE0006,VERMINATE CITY & RURAL PEST CONTROL LTD,29/01/2024 00:00,25/02/2024 00:00,P11-2024
P&V,RIVER LEE COUNTRY PARK,SUPPLIES AND SERVICES,PEST CONTROL,4625,P122082-SERVICE-Pest Control - North Sites - Feb,06/02/2024 00:00,282029,73.33,VE0006,VERMINATE CITY & RURAL PEST CONTROL LTD,29/01/2024 00:00,25/02/2024 00:00,P11-2024
P&V,RIVER LEE COUNTRY PARK,SUPPLIES AND SERVICES,PEST CONTROL,4625,P122082-SERVICE-Pest Control - North Sites - Mar,14/02/2024 00:00,282417,73.33,VE0006,VERMINATE CITY & RURAL PEST CONTROL LTD,29/01/2024 00:00,25/02/2024 00:00,P11-2024
P&V,RIVER LEE COUNTRY PARK,SUPPLIES AND SERVICES,PEST CONTROL,4625,P122082-SERVICE-Pest Control - North Sites - Nov,25/02/2024 00:00,282498,73.33,VE0006,VERMINATE CITY & RURAL PEST CONTROL LTD,29/01/2024 00:00,25/02/2024 00:00,P11-2024
P&V,RIVER LEE COUNTRY PARK,SUPPLIES AND SERVICES,PEST CONTROL,4625,P122082-SERVICE-Pest Control - North Sites - Dec,25/02/2024 00:00,282498,73.33,VE0006,VERMINATE CITY & RURAL PEST CONTROL LTD,29/01/2024 00:00,25/02/2024 00:00,P11-2024
P&V,FORMER LV LIDO SITE,SUPPLIES AND SERVICES,PEST CONTROL,4625,P122082-SERVICE-Pest Control - North Sites - Jan,06/02/2024 00:00,282029,36.67,VE0006,VERMINATE CITY & RURAL PEST CONTROL LTD,29/01/2024 00:00,25/02/2024 00:00,P11-2024
P&V,FORMER LV LIDO SITE,SUPPLIES AND SERVICES,PEST CONTROL,4625,P122082-SERVICE-Pest Control - North Sites - Feb,06/02/2024 00:00,282029,36.67,VE0006,VERMINATE CITY & RURAL PEST CONTROL LTD,29/01/2024 00:00,25/02/2024 00:00,P11-2024
P&V,FORMER LV LIDO SITE,SUPPLIES AND SERVICES,PEST CONTROL,4625,P122082-SERVICE-Pest Control - North Sites - Nov,25/02/2024 00:00,282498,0.01,VE0006,VERMINATE CITY & RURAL PEST CONTROL LTD,29/01/2024 00:00,25/02/2024 00:00,P11-2024
P&V,MYDDELTON HOUSE,SUPPLIES AND SERVICES,CASH COLLECTIONS,4642,P121351-SERVICE-Myddelton House,13/02/2024 00:00,248047,26,G40445,G4S CASH SOLUTIONS (UK) LTD,29/01/2024 00:00,25/02/2024 00:00,P11-2024
P&V,MYDDELTON HOUSE,SUPPLIES AND SERVICES,CASH COLLECTIONS,4642,P121351-SERVICE-Myddelton House,13/02/2024 00:00,248853,13,G40445,G4S CASH SOLUTIONS (UK) LTD,29/01/2024 00:00,25/02/2024 00:00,P11-2024
P&V,MYDDELTON HOUSE,SUPPLIES AND SERVICES,CASH COLLECTIONS,4642,P121351-SERVICE-Myddelton House,13/02/2024 00:00,250186,13,G40445,G4S CASH SOLUTIONS (UK) LTD,29/01/2024 00:00,25/02/2024 00:00,P11-2024
P&V,MYDDELTON HOUSE,SUPPLIES AND SERVICES,CASH COLLECTIONS,4642,P121351-SERVICE-Myddelton House,13/02/2024 00:00,251324,39,G40445,G4S CASH SOLUTIONS (UK) LTD,29/01/2024 00:00,25/02/2024 00:00,P11-2024
P&V,MYDDELTON HOUSE,SUPPLIES AND SERVICES,CASH COLLECTIONS,4642,P121351-SERVICE-Myddelton House,13/02/2024 00:00,255301,65,G40445,G4S CASH SOLUTIONS (UK) LTD,29/01/2024 00:00,25/02/2024 00:00,P11-2024
P&V,MYDDELTON HOUSE,SUPPLIES AND SERVICES,CASH COLLECTIONS,4642,P121351-SERVICE-Myddelton House,14/02/2024 00:00,256651,39,G40445,G4S CASH SOLUTIONS (UK) LTD,29/01/2024 00:00,25/02/2024 00:00,P11-2024
P&V,MYDDELTON HOUSE,SUPPLIES AND SERVICES,CASH COLLECTIONS,4642,P121351-SERVICE-Myddelton House,14/02/2024 00:00,257844,26,G40445,G4S CASH SOLUTIONS (UK) LTD,29/01/2024 00:00,25/02/2024 00:00,P11-2024
P&V,MYDDELTON HOUSE,SUPPLIES AND SERVICES,CASH COLLECTIONS,4642,P121351-SERVICE-Myddelton House,14/02/2024 00:00,259036,13,G40445,G4S CASH SOLUTIONS (UK) LTD,29/01/2024 00:00,25/02/2024 00:00,P11-2024
P&V,MYDDELTON HOUSE,SUPPLIES AND SERVICES,CASH COLLECTIONS,4642,P121351-SERVICE-Myddelton House,14/02/2024 00:00,260218,13,G40445,G4S CASH SOLUTIONS (UK) LTD,29/01/2024 00:00,25/02/2024 00:00,P11-2024
P&V,MYDDELTON HOUSE,SUPPLIES AND SERVICES,CASH COLLECTIONS,4642,P121351-SERVICE-Myddelton House,14/02/2024 00:00,261802,13,G40445,G4S CASH SOLUTIONS (UK) LTD,29/01/2024 00:00,25/02/2024 00:00,P11-2024
P&V,MYDDELTON HOUSE,SUPPLIES AND SERVICES,CASH COLLECTIONS,4642,P121351-SERVICE-Myddelton House,14/02/2024 00:00,262917,26,G40445,G4S CASH SOLUTIONS (UK) LTD,29/01/2024 00:00,25/02/2024 00:00,P11-2024
P&V,MYDDELTON HOUSE,SUPPLIES AND SERVICES,CASH COLLECTIONS,4642,P121351-SERVICE-Myddelton House,14/02/2024 00:00,263973,13,G40445,G4S CASH SOLUTIONS (UK) LTD,29/01/2024 00:00,25/02/2024 00:00,P11-2024
P&V,MYDDELTON HOUSE,SUPPLIES AND SERVICES,CASH COLLECTIONS,4642,P121351-SERVICE-Myddelton House,14/02/2024 00:00,265804,13,G40445,G4S CASH SOLUTIONS (UK) LTD,29/01/2024 00:00,25/02/2024 00:00,P11-2024
P&V,MYDDELTON HOUSE,SUPPLIES AND SERVICES,CASH COLLECTIONS,4642,P121351-SERVICE-Myddelton House,14/02/2024 00:00,266745,13,G40445,G4S CASH SOLUTIONS (UK) LTD,29/01/2024 00:00,25/02/2024 00:00,P11-2024
P&V,MYDDELTON HOUSE,SUPPLIES AND SERVICES,CASH COLLECTIONS,4642,P121351-SERVICE-Myddelton House,14/02/2024 00:00,267682,13,G40445,G4S CASH SOLUTIONS (UK) LTD,29/01/2024 00:00,25/02/2024 00:00,P11-2024
P&V,MYDDELTON HOUSE,SUPPLIES AND SERVICES,CASH COLLECTIONS,4642,P121351-SERVICE-Myddelton House,14/02/2024 00:00,268523,13,G40445,G4S CASH SOLUTIONS (UK) LTD,29/01/2024 00:00,25/02/2024 00:00,P11-2024
P&V,MYDDELTON HOUSE,SUPPLIES AND SERVICES,CASH COLLECTIONS,4642,P121351-SERVICE-Myddelton House,14/02/2024 00:00,269414,13,G40445,G4S CASH SOLUTIONS (UK) LTD,29/01/2024 00:00,25/02/2024 00:00,P11-2024
P&V,MYDDELTON HOUSE,SUPPLIES AND SERVICES,CASH COLLECTIONS,4642,G4S CASH SOLUTIONS (UK) LTD,14/02/2024 00:00,270165,26,G40445,G4S CASH SOLUTIONS (UK) LTD,29/01/2024 00:00,25/02/2024 00:00,P11-2024
P&V,MYDDELTON HOUSE,SUPPLIES AND SERVICES,CASH COLLECTIONS,4642,P121351-SERVICE-Myddelton House,14/02/2024 00:00,276905,14.56,G40445,G4S CASH SOLUTIONS (UK) LTD,29/01/2024 00:00,25/02/2024 00:00,P11-2024
P&V,MYDDELTON HOUSE,SUPPLIES AND SERVICES,CASH COLLECTIONS,4642,CASH COLLECTION-Dec 2023,06/02/2024 00:00,281542,-12.43,SE0692,SECURITY PLUS LTD,29/01/2024 00:00,25/02/2024 00:00,P11-2024
P&V,MYDDELTON HOUSE,SUPPLIES AND SERVICES,CASH COLLECTIONS,4642,P124863-SERVICE-Mydelton House,06/02/2024 00:00,281542,12.43,SE0692,SECURITY PLUS LTD,29/01/2024 00:00,25/02/2024 00:00,P11-2024
P&V,MYDDELTON HOUSE,SUPPLIES AND SERVICES,CASH COLLECTIONS,4642,P121351-SERVICE-Myddelton House,13/02/2024 00:00,282276,-65,G40445,G4S CASH SOLUTIONS (UK) LTD,29/01/2024 00:00,25/02/2024 00:00,P11-2024
P&V,MYDDELTON HOUSE,SUPPLIES AND SERVICES,CASH COLLECTIONS,4642,P125007-SERVICE-Mydelton House gardens,20/02/2024 00:00,282451,24.86,SE0692,SECURITY PLUS LTD,29/01/2024 00:00,25/02/2024 00:00,P11-2024
P&V,MYDDELTON HOUSE,SUPPLIES AND SERVICES,CASH COLLECTIONS,4642,CASH COLLECTION-JAN 2024,20/02/2024 00:00,282451,-24.86,SE0692,SECURITY PLUS LTD,29/01/2024 00:00,25/02/2024 00:00,P11-2024
,LEE VALLEY MARINA SPRINGFIELD,SUPPLIES AND SERVICES,CASH COLLECTIONS,4642,P121351-SERVICE-Stanstead marina,13/02/2024 00:00,248047,26,G40445,G4S CASH SOLUTIONS (UK) LTD,29/01/2024 00:00,25/02/2024 00:00,P11-2024
,LEE VALLEY MARINA SPRINGFIELD,SUPPLIES AND SERVICES,CASH COLLECTIONS,4642,P121351-SERVICE-Stanstead marina,13/02/2024 00:00,248853,13,G40445,G4S CASH SOLUTIONS (UK) LTD,29/01/2024 00:00,25/02/2024 00:00,P11-2024
,LEE VALLEY MARINA SPRINGFIELD,SUPPLIES AND SERVICES,CASH COLLECTIONS,4642,P121351-SERVICE-Stanstead marina,13/02/2024 00:00,250186,39,G40445,G4S CASH SOLUTIONS (UK) LTD,29/01/2024 00:00,25/02/2024 00:00,P11-2024
,LEE VALLEY MARINA SPRINGFIELD,SUPPLIES AND SERVICES,CASH COLLECTIONS,4642,P121351-SERVICE-Stanstead marina,13/02/2024 00:00,251324,13,G40445,G4S CASH SOLUTIONS (UK) LTD,29/01/2024 00:00,25/02/2024 00:00,P11-2024
,LEE VALLEY MARINA SPRINGFIELD,SUPPLIES AND SERVICES,CASH COLLECTIONS,4642,P121351-SERVICE-Stanstead marina,13/02/2024 00:00,255301,13,G40445,G4S CASH SOLUTIONS (UK) LTD,29/01/2024 00:00,25/02/2024 00:00,P11-2024
,LEE VALLEY MARINA SPRINGFIELD,SUPPLIES AND SERVICES,CASH COLLECTIONS,4642,P121351-SERVICE-Stanstead marina,14/02/2024 00:00,256651,13,G40445,G4S CASH SOLUTIONS (UK) LTD,29/01/2024 00:00,25/02/2024 00:00,P11-2024
,LEE VALLEY MARINA SPRINGFIELD,SUPPLIES AND SERVICES,CASH COLLECTIONS,4642,P121351-SERVICE-Stanstead marina,14/02/2024 00:00,257844,26,G40445,G4S CASH SOLUTIONS (UK) LTD,29/01/2024 00:00,25/02/2024 00:00,P11-2024
,LEE VALLEY MARINA SPRINGFIELD,SUPPLIES AND SERVICES,CASH COLLECTIONS,4642,P121351-SERVICE-Stanstead marina,14/02/2024 00:00,260218,13,G40445,G4S CASH SOLUTIONS (UK) LTD,29/01/2024 00:00,25/02/2024 00:00,P11-2024
,LEE VALLEY MARINA SPRINGFIELD,SUPPLIES AND SERVICES,CASH COLLECTIONS,4642,P121351-SERVICE-Stanstead marina,14/02/2024 00:00,261802,13,G40445,G4S CASH SOLUTIONS (UK) LTD,29/01/2024 00:00,25/02/2024 00:00,P11-2024
,LEE VALLEY MARINA SPRINGFIELD,SUPPLIES AND SERVICES,CASH COLLECTIONS,4642,P121351-SERVICE-Stanstead marina,14/02/2024 00:00,263973,13,G40445,G4S CASH SOLUTIONS (UK) LTD,29/01/2024 00:00,25/02/2024 00:00,P11-2024
,LEE VALLEY MARINA SPRINGFIELD,SUPPLIES AND SERVICES,CASH COLLECTIONS,4642,CASH COLLECTION-Dec 2023,06/02/2024 00:00,281542,-12.43,SE0692,SECURITY PLUS LTD,29/01/2024 00:00,25/02/2024 00:00,P11-2024
,LEE VALLEY MARINA SPRINGFIELD,SUPPLIES AND SERVICES,CASH COLLECTIONS,4642,CASH COLLECTION-Dec 2023,06/02/2024 00:00,281542,24.86,SE0692,SECURITY PLUS LTD,29/01/2024 00:00,25/02/2024 00:00,P11-2024
,LEE VALLEY MARINA SPRINGFIELD,SUPPLIES AND SERVICES,CASH COLLECTIONS,4642,P124863-SERVICE-Stanstead Marina,06/02/2024 00:00,281542,12.43,SE0692,SECURITY PLUS LTD,29/01/2024 00:00,25/02/2024 00:00,P11-2024
,LEE VALLEY MARINA SPRINGFIELD,SUPPLIES AND SERVICES,CASH COLLECTIONS,4642,P121351-SERVICE-Stanstead marina,14/02/2024 00:00,282277,-91,G40445,G4S CASH SOLUTIONS (UK) LTD,29/01/2024 00:00,25/02/2024 00:00,P11-2024
,LEE VALLEY MARINA SPRINGFIELD,SUPPLIES AND SERVICES,CASH COLLECTIONS,4642,P125007-SERVICE-Springfield marina,20/02/2024 00:00,282451,37.29,SE0692,SECURITY PLUS LTD,29/01/2024 00:00,25/02/2024 00:00,P11-2024
,LEE VALLEY MARINA STANSTEAD,SUPPLIES AND SERVICES,CASH COLLECTIONS,4642,P121351-SERVICE-Stanstead Cash collection,14/02/2024 00:00,250187,65,G40445,G4S CASH SOLUTIONS (UK) LTD,29/01/2024 00:00,25/02/2024 00:00,P11-2024
,LEE VALLEY MARINA STANSTEAD,SUPPLIES AND SERVICES,CASH COLLECTIONS,4642,P121351-SERVICE-Stanstead Cash collection,14/02/2024 00:00,251331,52,G40445,G4S CASH SOLUTIONS (UK) LTD,29/01/2024 00:00,25/02/2024 00:00,P11-2024
,LEE VALLEY MARINA STANSTEAD,SUPPLIES AND SERVICES,CASH COLLECTIONS,4642,P121351-SERVICE-Springfield marina,13/02/2024 00:00,254117,-13,G40445,G4S CASH SOLUTIONS (UK) LTD,29/01/2024 00:00,25/02/2024 00:00,P11-2024
,LEE VALLEY MARINA STANSTEAD,SUPPLIES AND SERVICES,CASH COLLECTIONS,4642,P121351-SERVICE-Springfield marina,13/02/2024 00:00,255301,26,G40445,G4S CASH SOLUTIONS (UK) LTD,29/01/2024 00:00,25/02/2024 00:00,P11-2024
,LEE VALLEY MARINA STANSTEAD,SUPPLIES AND SERVICES,CASH COLLECTIONS,4642,P121351-SERVICE-Stanstead Cash collection,14/02/2024 00:00,256651,65,G40445,G4S CASH SOLUTIONS (UK) LTD,29/01/2024 00:00,25/02/2024 00:00,P11-2024
,LEE VALLEY MARINA STANSTEAD,SUPPLIES AND SERVICES,CASH COLLECTIONS,4642,P121351-SERVICE-Stanstead Cash collection,14/02/2024 00:00,257844,39,G40445,G4S CASH SOLUTIONS (UK) LTD,29/01/2024 00:00,25/02/2024 00:00,P11-2024
,LEE VALLEY MARINA STANSTEAD,SUPPLIES AND SERVICES,CASH COLLECTIONS,4642,P121351-SERVICE-Stanstead Cash collection,14/02/2024 00:00,259036,39,G40445,G4S CASH SOLUTIONS (UK) LTD,29/01/2024 00:00,25/02/2024 00:00,P11-2024
,LEE VALLEY MARINA STANSTEAD,SUPPLIES AND SERVICES,CASH COLLECTIONS,4642,P121351-SERVICE-Stanstead Cash collection,14/02/2024 00:00,260218,52,G40445,G4S CASH SOLUTIONS (UK) LTD,29/01/2024 00:00,25/02/2024 00:00,P11-2024
,LEE VALLEY MARINA STANSTEAD,SUPPLIES AND SERVICES,CASH COLLECTIONS,4642,P121351-SERVICE-Stanstead Cash collection,14/02/2024 00:00,261802,65,G40445,G4S CASH SOLUTIONS (UK) LTD,29/01/2024 00:00,25/02/2024 00:00,P11-2024
,LEE VALLEY MARINA STANSTEAD,SUPPLIES AND SERVICES,CASH COLLECTIONS,4642,P121351-SERVICE-Stanstead Cash collection,14/02/2024 00:00,262917,52,G40445,G4S CASH SOLUTIONS (UK) LTD,29/01/2024 00:00,25/02/2024 00:00,P11-2024
,LEE VALLEY MARINA STANSTEAD,SUPPLIES AND SERVICES,CASH COLLECTIONS,4642,P121351-SERVICE-Stanstead Cash collection,14/02/2024 00:00,263973,52,G40445,G4S CASH SOLUTIONS (UK) LTD,29/01/2024 00:00,25/02/2024 00:00,P11-2024
,LEE VALLEY MARINA STANSTEAD,SUPPLIES AND SERVICES,CASH COLLECTIONS,4642,P121351-SERVICE-Springfield marina,13/02/2024 00:00,265015,13,G40445,G4S CASH SOLUTIONS (UK) LTD,29/01/2024 00:00,25/02/2024 00:00,P11-2024
,LEE VALLEY MARINA STANSTEAD,SUPPLIES AND SERVICES,CASH COLLECTIONS,4642,P121351-SERVICE-Stanstead Cash collection,14/02/2024 00:00,265804,13,G40445,G4S CASH SOLUTIONS (UK) LTD,29/01/2024 00:00,25/02/2024 00:00,P11-2024
,LEE VALLEY MARINA STANSTEAD,SUPPLIES AND SERVICES,CASH COLLECTIONS,4642,P121351-SERVICE-Stanstead Cash collection,14/02/2024 00:00,266745,52,G40445,G4S CASH SOLUTIONS (UK) LTD,29/01/2024 00:00,25/02/2024 00:00,P11-2024
,LEE VALLEY MARINA STANSTEAD,SUPPLIES AND SERVICES,CASH COLLECTIONS,4642,P121351-SERVICE-Springfield marina,13/02/2024 00:00,267119,-13,G40445,G4S CASH SOLUTIONS (UK) LTD,29/01/2024 00:00,25/02/2024 00:00,P11-2024
,LEE VALLEY MARINA STANSTEAD,SUPPLIES AND SERVICES,CASH COLLECTIONS,4642,P121351-SERVICE-Stanstead Cash collection,14/02/2024 00:00,267682,26,G40445,G4S CASH SOLUTIONS (UK) LTD,29/01/2024 00:00,25/02/2024 00:00,P11-2024
,LEE VALLEY MARINA STANSTEAD,SUPPLIES AND SERVICES,CASH COLLECTIONS,4642,P121351-SERVICE-Stanstead Cash collection,14/02/2024 00:00,268523,26,G40445,G4S CASH SOLUTIONS (UK) LTD,29/01/2024 00:00,25/02/2024 00:00,P11-2024
,LEE VALLEY MARINA STANSTEAD,SUPPLIES AND SERVICES,CASH COLLECTIONS,4642,P121351-SERVICE-Stanstead Cash collection,14/02/2024 00:00,269414,65,G40445,G4S CASH SOLUTIONS (UK) LTD,29/01/2024 00:00,25/02/2024 00:00,P11-2024
,LEE VALLEY MARINA STANSTEAD,SUPPLIES AND SERVICES,CASH COLLECTIONS,4642,G4S CASH SOLUTIONS (UK) LTD,14/02/2024 00:00,270165,26,G40445,G4S CASH SOLUTIONS (UK) LTD,29/01/2024 00:00,25/02/2024 00:00,P11-2024
,LEE VALLEY MARINA STANSTEAD,SUPPLIES AND SERVICES,CASH COLLECTIONS,4642,P121351-SERVICE-Stanstead Cash collection,14/02/2024 00:00,271803,14.56,G40445,G4S CASH SOLUTIONS (UK) LTD,29/01/2024 00:00,25/02/2024 00:00,P11-2024
,LEE VALLEY MARINA STANSTEAD,SUPPLIES AND SERVICES,CASH COLLECTIONS,4642,P121351-SERVICE-Stanstead Cash collection,14/02/2024 00:00,272946,14.56,G40445,G4S CASH SOLUTIONS (UK) LTD,29/01/2024 00:00,25/02/2024 00:00,P11-2024
,LEE VALLEY MARINA STANSTEAD,SUPPLIES AND SERVICES,CASH COLLECTIONS,4642,P121351-SERVICE-Stanstead Cash collection,14/02/2024 00:00,276904,14.56,G40445,G4S CASH SOLUTIONS (UK) LTD,29/01/2024 00:00,25/02/2024 00:00,P11-2024
,LEE VALLEY MARINA STANSTEAD,SUPPLIES AND SERVICES,CASH COLLECTIONS,4642,P121351-SERVICE-Stanstead Cash collection,14/02/2024 00:00,276905,29.12,G40445,G4S CASH SOLUTIONS (UK) LTD,29/01/2024 00:00,25/02/2024 00:00,P11-2024
,LEE VALLEY MARINA STANSTEAD,SUPPLIES AND SERVICES,CASH COLLECTIONS,4642,CASH COLLECTION-Dec 2023,06/02/2024 00:00,281542,12.43,SE0692,SECURITY PLUS LTD,29/01/2024 00:00,25/02/2024 00:00,P11-2024
,LEE VALLEY MARINA STANSTEAD,SUPPLIES AND SERVICES,CASH COLLECTIONS,4642,CASH COLLECTION-Dec 2023,06/02/2024 00:00,281542,-24.86,SE0692,SECURITY PLUS LTD,29/01/2024 00:00,25/02/2024 00:00,P11-2024
,LEE VALLEY MARINA STANSTEAD,SUPPLIES AND SERVICES,CASH COLLECTIONS,4642,P124863-SERVICE-Springfield Marina,06/02/2024 00:00,281542,24.86,SE0692,SECURITY PLUS LTD,29/01/2024 00:00,25/02/2024 00:00,P11-2024
,LEE VALLEY MARINA STANSTEAD,SUPPLIES AND SERVICES,CASH COLLECTIONS,4642,P121351-SERVICE-Stanstead Cash collection,14/02/2024 00:00,282277,-39,G40445,G4S CASH SOLUTIONS (UK) LTD,29/01/2024 00:00,25/02/2024 00:00,P11-2024
,LEE VALLEY MARINA STANSTEAD,SUPPLIES AND SERVICES,CASH COLLECTIONS,4642,P125007-SERVICE-Stanstead Marina,20/02/2024 00:00,282451,37.29,SE0692,SECURITY PLUS LTD,29/01/2024 00:00,25/02/2024 00:00,P11-2024
,LEE VALLEY CAMPSITE,SUPPLIES AND SERVICES,CASH COLLECTIONS,4642,P121351-SERVICE-Sewardstone campsite,14/02/2024 00:00,250187,65,G40445,G4S CASH SOLUTIONS (UK) LTD,29/01/2024 00:00,25/02/2024 00:00,P11-2024
,LEE VALLEY CAMPSITE,SUPPLIES AND SERVICES,CASH COLLECTIONS,4642,P121351-SERVICE-Sewardstone campsite,14/02/2024 00:00,251331,52,G40445,G4S CASH SOLUTIONS (UK) LTD,29/01/2024 00:00,25/02/2024 00:00,P11-2024
,LEE VALLEY CAMPSITE,SUPPLIES AND SERVICES,CASH COLLECTIONS,4642,P121351-SERVICE-Sewardstone campsite,13/02/2024 00:00,255301,52,G40445,G4S CASH SOLUTIONS (UK) LTD,29/01/2024 00:00,25/02/2024 00:00,P11-2024
,LEE VALLEY CAMPSITE,SUPPLIES AND SERVICES,CASH COLLECTIONS,4642,P121351-SERVICE-Sewardstone campsite,14/02/2024 00:00,256651,65,G40445,G4S CASH SOLUTIONS (UK) LTD,29/01/2024 00:00,25/02/2024 00:00,P11-2024
,LEE VALLEY CAMPSITE,SUPPLIES AND SERVICES,CASH COLLECTIONS,4642,P121351-SERVICE-Sewardstone campsite,14/02/2024 00:00,257844,39,G40445,G4S CASH SOLUTIONS (UK) LTD,29/01/2024 00:00,25/02/2024 00:00,P11-2024
,LEE VALLEY CAMPSITE,SUPPLIES AND SERVICES,CASH COLLECTIONS,4642,P121351-SERVICE-Sewardstone campsite,14/02/2024 00:00,259036,52,G40445,G4S CASH SOLUTIONS (UK) LTD,29/01/2024 00:00,25/02/2024 00:00,P11-2024
,LEE VALLEY CAMPSITE,SUPPLIES AND SERVICES,CASH COLLECTIONS,4642,P121351-SERVICE-Sewardstone campsite,14/02/2024 00:00,260218,13,G40445,G4S CASH SOLUTIONS (UK) LTD,29/01/2024 00:00,25/02/2024 00:00,P11-2024
,LEE VALLEY CAMPSITE,SUPPLIES AND SERVICES,CASH COLLECTIONS,4642,P121351-SERVICE-Sewardstone campsite,14/02/2024 00:00,261802,52,G40445,G4S CASH SOLUTIONS (UK) LTD,29/01/2024 00:00,25/02/2024 00:00,P11-2024
,LEE VALLEY CAMPSITE,SUPPLIES AND SERVICES,CASH COLLECTIONS,4642,P121351-SERVICE-Sewardstone campsite,14/02/2024 00:00,262917,52,G40445,G4S CASH SOLUTIONS (UK) LTD,29/01/2024 00:00,25/02/2024 00:00,P11-2024
,LEE VALLEY CAMPSITE,SUPPLIES AND SERVICES,CASH COLLECTIONS,4642,P121351-SERVICE-Sewardstone campsite,14/02/2024 00:00,263973,52,G40445,G4S CASH SOLUTIONS (UK) LTD,29/01/2024 00:00,25/02/2024 00:00,P11-2024
,LEE VALLEY CAMPSITE,SUPPLIES AND SERVICES,CASH COLLECTIONS,4642,P121351-SERVICE-Sewardstone campsite,13/02/2024 00:00,265015,13,G40445,G4S CASH SOLUTIONS (UK) LTD,29/01/2024 00:00,25/02/2024 00:00,P11-2024
,LEE VALLEY CAMPSITE,SUPPLIES AND SERVICES,CASH COLLECTIONS,4642,P121351-SERVICE-Sewardstone campsite,14/02/2024 00:00,265804,52,G40445,G4S CASH SOLUTIONS (UK) LTD,29/01/2024 00:00,25/02/2024 00:00,P11-2024
,LEE VALLEY CAMPSITE,SUPPLIES AND SERVICES,CASH COLLECTIONS,4642,P121351-SERVICE-Sewardstone campsite,14/02/2024 00:00,266745,52,G40445,G4S CASH SOLUTIONS (UK) LTD,29/01/2024 00:00,25/02/2024 00:00,P11-2024
,LEE VALLEY CAMPSITE,SUPPLIES AND SERVICES,CASH COLLECTIONS,4642,P121351-SERVICE-Sewardstone campsite,14/02/2024 00:00,267682,52,G40445,G4S CASH SOLUTIONS (UK) LTD,29/01/2024 00:00,25/02/2024 00:00,P11-2024
,LEE VALLEY CAMPSITE,SUPPLIES AND SERVICES,CASH COLLECTIONS,4642,P121351-SERVICE-Sewardstone campsite,14/02/2024 00:00,268523,39,G40445,G4S CASH SOLUTIONS (UK) LTD,29/01/2024 00:00,25/02/2024 00:00,P11-2024
,LEE VALLEY CAMPSITE,SUPPLIES AND SERVICES,CASH COLLECTIONS,4642,P121351-SERVICE-Sewardstone campsite,14/02/2024 00:00,269414,52,G40445,G4S CASH SOLUTIONS (UK) LTD,29/01/2024 00:00,25/02/2024 00:00,P11-2024
,LEE VALLEY CAMPSITE,SUPPLIES AND SERVICES,CASH COLLECTIONS,4642,G4S CASH SOLUTIONS (UK) LTD,14/02/2024 00:00,270165,39,G40445,G4S CASH SOLUTIONS (UK) LTD,29/01/2024 00:00,25/02/2024 00:00,P11-2024
,LEE VALLEY CAMPSITE,SUPPLIES AND SERVICES,CASH COLLECTIONS,4642,P121351-SERVICE-Sewardstone campsite,14/02/2024 00:00,271803,14.56,G40445,G4S CASH SOLUTIONS (UK) LTD,29/01/2024 00:00,25/02/2024 00:00,P11-2024
,LEE VALLEY CAMPSITE,SUPPLIES AND SERVICES,CASH COLLECTIONS,4642,P121351-SERVICE-Sewardstone campsite,14/02/2024 00:00,272946,14.56,G40445,G4S CASH SOLUTIONS (UK) LTD,29/01/2024 00:00,25/02/2024 00:00,P11-2024
,LEE VALLEY CAMPSITE,SUPPLIES AND SERVICES,CASH COLLECTIONS,4642,P121351-SERVICE-Sewardstone campsite,14/02/2024 00:00,276905,29.12,G40445,G4S CASH SOLUTIONS (UK) LTD,29/01/2024 00:00,25/02/2024 00:00,P11-2024
,LEE VALLEY CAMPSITE,SUPPLIES AND SERVICES,CASH COLLECTIONS,4642,P124863-SERVICE-Sewardstone Campsite,06/02/2024 00:00,281542,37.29,SE0692,SECURITY PLUS LTD,29/01/2024 00:00,25/02/2024 00:00,P11-2024
,LEE VALLEY CAMPSITE,SUPPLIES AND SERVICES,CASH COLLECTIONS,4642,P121351-SERVICE-Sewardstone campsite,14/02/2024 00:00,282277,-195,G40445,G4S CASH SOLUTIONS (UK) LTD,29/01/2024 00:00,25/02/2024 00:00,P11-2024
,LEE VALLEY CAMPSITE,SUPPLIES AND SERVICES,CASH COLLECTIONS,4642,P125007-SERVICE-Sewardstone campsite,20/02/2024 00:00,282451,24.86,SE0692,SECURITY PLUS LTD,29/01/2024 00:00,25/02/2024 00:00,P11-2024
,LEE VALLEY CARAVAN PARK,SUPPLIES AND SERVICES,CASH COLLECTIONS,4642,P121351-SERVICE-Dobbs Weir Campsite,14/02/2024 00:00,250187,65,G40445,G4S CASH SOLUTIONS (UK) LTD,29/01/2024 00:00,25/02/2024 00:00,P11-2024
,LEE VALLEY CARAVAN PARK,SUPPLIES AND SERVICES,CASH COLLECTIONS,4642,P121351-SERVICE-Dobbs Weir Campsite,14/02/2024 00:00,251331,52,G40445,G4S CASH SOLUTIONS (UK) LTD,29/01/2024 00:00,25/02/2024 00:00,P11-2024
,LEE VALLEY CARAVAN PARK,SUPPLIES AND SERVICES,CASH COLLECTIONS,4642,P121351-SERVICE-Dobbs Weir Campsite,13/02/2024 00:00,252549,-13,G40445,G4S CASH SOLUTIONS (UK) LTD,29/01/2024 00:00,25/02/2024 00:00,P11-2024
,LEE VALLEY CARAVAN PARK,SUPPLIES AND SERVICES,CASH COLLECTIONS,4642,P121351-SERVICE-Dobbs Weir Campsite,13/02/2024 00:00,255301,26,G40445,G4S CASH SOLUTIONS (UK) LTD,29/01/2024 00:00,25/02/2024 00:00,P11-2024
,LEE VALLEY CARAVAN PARK,SUPPLIES AND SERVICES,CASH COLLECTIONS,4642,P121351-SERVICE-Dobbs Weir Campsite,14/02/2024 00:00,256651,65,G40445,G4S CASH SOLUTIONS (UK) LTD,29/01/2024 00:00,25/02/2024 00:00,P11-2024
,LEE VALLEY CARAVAN PARK,SUPPLIES AND SERVICES,CASH COLLECTIONS,4642,P121351-SERVICE-Dobbs Weir Campsite,14/02/2024 00:00,257844,39,G40445,G4S CASH SOLUTIONS (UK) LTD,29/01/2024 00:00,25/02/2024 00:00,P11-2024
,LEE VALLEY CARAVAN PARK,SUPPLIES AND SERVICES,CASH COLLECTIONS,4642,P121351-SERVICE-Dobbs Weir Campsite,14/02/2024 00:00,259036,52,G40445,G4S CASH SOLUTIONS (UK) LTD,29/01/2024 00:00,25/02/2024 00:00,P11-2024
,LEE VALLEY CARAVAN PARK,SUPPLIES AND SERVICES,CASH COLLECTIONS,4642,P121351-SERVICE-Dobbs Weir Campsite,14/02/2024 00:00,260218,39,G40445,G4S CASH SOLUTIONS (UK) LTD,29/01/2024 00:00,25/02/2024 00:00,P11-2024
,LEE VALLEY CARAVAN PARK,SUPPLIES AND SERVICES,CASH COLLECTIONS,4642,P121351-SERVICE-Dobbs Weir Campsite,14/02/2024 00:00,261802,65,G40445,G4S CASH SOLUTIONS (UK) LTD,29/01/2024 00:00,25/02/2024 00:00,P11-2024
,LEE VALLEY CARAVAN PARK,SUPPLIES AND SERVICES,CASH COLLECTIONS,4642,P121351-SERVICE-Dobbs Weir Campsite,14/02/2024 00:00,262917,52,G40445,G4S CASH SOLUTIONS (UK) LTD,29/01/2024 00:00,25/02/2024 00:00,P11-2024
,LEE VALLEY CARAVAN PARK,SUPPLIES AND SERVICES,CASH COLLECTIONS,4642,P121351-SERVICE-Dobbs Weir Campsite,14/02/2024 00:00,263973,65,G40445,G4S CASH SOLUTIONS (UK) LTD,29/01/2024 00:00,25/02/2024 00:00,P11-2024
,LEE VALLEY CARAVAN PARK,SUPPLIES AND SERVICES,CASH COLLECTIONS,4642,P121351-SERVICE-Dobbs Weir Campsite,13/02/2024 00:00,265015,13,G40445,G4S CASH SOLUTIONS (UK) LTD,29/01/2024 00:00,25/02/2024 00:00,P11-2024
,LEE VALLEY CARAVAN PARK,SUPPLIES AND SERVICES,CASH COLLECTIONS,4642,P121351-SERVICE-Dobbs Weir Campsite,14/02/2024 00:00,265804,39,G40445,G4S CASH SOLUTIONS (UK) LTD,29/01/2024 00:00,25/02/2024 00:00,P11-2024
,LEE VALLEY CARAVAN PARK,SUPPLIES AND SERVICES,CASH COLLECTIONS,4642,P121351-SERVICE-Dobbs Weir Campsite,14/02/2024 00:00,266745,65,G40445,G4S CASH SOLUTIONS (UK) LTD,29/01/2024 00:00,25/02/2024 00:00,P11-2024
,LEE VALLEY CARAVAN PARK,SUPPLIES AND SERVICES,CASH COLLECTIONS,4642,P121351-SERVICE-Dobbs Weir Campsite,13/02/2024 00:00,267119,-13,G40445,G4S CASH SOLUTIONS (UK) LTD,29/01/2024 00:00,25/02/2024 00:00,P11-2024
,LEE VALLEY CARAVAN PARK,SUPPLIES AND SERVICES,CASH COLLECTIONS,4642,P121351-SERVICE-Dobbs Weir Campsite,14/02/2024 00:00,267682,39,G40445,G4S CASH SOLUTIONS (UK) LTD,29/01/2024 00:00,25/02/2024 00:00,P11-2024
,LEE VALLEY CARAVAN PARK,SUPPLIES AND SERVICES,CASH COLLECTIONS,4642,P121351-SERVICE-Dobbs Weir Campsite,14/02/2024 00:00,268523,52,G40445,G4S CASH SOLUTIONS (UK) LTD,29/01/2024 00:00,25/02/2024 00:00,P11-2024
,LEE VALLEY CARAVAN PARK,SUPPLIES AND SERVICES,CASH COLLECTIONS,4642,P121351-SERVICE-Dobbs Weir Campsite,14/02/2024 00:00,269414,52,G40445,G4S CASH SOLUTIONS (UK) LTD,29/01/2024 00:00,25/02/2024 00:00,P11-2024
,LEE VALLEY CARAVAN PARK,SUPPLIES AND SERVICES,CASH COLLECTIONS,4642,G4S CASH SOLUTIONS (UK) LTD,14/02/2024 00:00,270165,39,G40445,G4S CASH SOLUTIONS (UK) LTD,29/01/2024 00:00,25/02/2024 00:00,P11-2024
,LEE VALLEY CARAVAN PARK,SUPPLIES AND SERVICES,CASH COLLECTIONS,4642,P121351-SERVICE-Dobbs Weir Campsite,14/02/2024 00:00,271803,14.56,G40445,G4S CASH SOLUTIONS (UK) LTD,29/01/2024 00:00,25/02/2024 00:00,P11-2024
,LEE VALLEY CARAVAN PARK,SUPPLIES AND SERVICES,CASH COLLECTIONS,4642,P121351-SERVICE-Dobbs Weir Campsite,14/02/2024 00:00,272946,14.56,G40445,G4S CASH SOLUTIONS (UK) LTD,29/01/2024 00:00,25/02/2024 00:00,P11-2024
,LEE VALLEY CARAVAN PARK,SUPPLIES AND SERVICES,CASH COLLECTIONS,4642,P121351-SERVICE-Dobbs Weir Campsite,14/02/2024 00:00,276905,29.12,G40445,G4S CASH SOLUTIONS (UK) LTD,29/01/2024 00:00,25/02/2024 00:00,P11-2024
,LEE VALLEY CARAVAN PARK,SUPPLIES AND SERVICES,CASH COLLECTIONS,4642,P124863-SERVICE-Dobbs Weir Campsite,06/02/2024 00:00,281542,37.29,SE0692,SECURITY PLUS LTD,29/01/2024 00:00,25/02/2024 00:00,P11-2024
,LEE VALLEY CARAVAN PARK,SUPPLIES AND SERVICES,CASH COLLECTIONS,4642,P121351-SERVICE-Dobbs Weir Campsite,14/02/2024 00:00,282277,-195,G40445,G4S CASH SOLUTIONS (UK) LTD,29/01/2024 00:00,25/02/2024 00:00,P11-2024
,LEE VALLEY CARAVAN PARK,SUPPLIES AND SERVICES,CASH COLLECTIONS,4642,P125007-SERVICE-Dobbs Weir Caravan park,20/02/2024 00:00,282451,62.15,SE0692,SECURITY PLUS LTD,29/01/2024 00:00,25/02/2024 00:00,P11-2024
P&V,MYDDELTON HOUSE GARDENS,SUPPLIES AND SERVICES,CASH COLLECTIONS,4642,CASH COLLECTION-Dec 2023,06/02/2024 00:00,281542,6.21,SE0692,SECURITY PLUS LTD,29/01/2024 00:00,25/02/2024 00:00,P11-2024
P&V,MYDDELTON HOUSE GARDENS,SUPPLIES AND SERVICES,CASH COLLECTIONS,4642,CASH COLLECTION-JAN 2024,20/02/2024 00:00,282451,12.43,SE0692,SECURITY PLUS LTD,29/01/2024 00:00,25/02/2024 00:00,P11-2024
P&V,MYDDLETON HSE HERITAGE CENTRE,SUPPLIES AND SERVICES,CASH COLLECTIONS,4642,CASH COLLECTION-Dec 2023,06/02/2024 00:00,281542,6.22,SE0692,SECURITY PLUS LTD,29/01/2024 00:00,25/02/2024 00:00,P11-2024
P&V,MYDDLETON HSE HERITAGE CENTRE,SUPPLIES AND SERVICES,CASH COLLECTIONS,4642,CASH COLLECTION-JAN 2024,20/02/2024 00:00,282451,12.43,SE0692,SECURITY PLUS LTD,29/01/2024 00:00,25/02/2024 00:00,P11-2024
,LEE VALLEY VELOPARK,SUPPLIES AND SERVICES,CASH COLLECTIONS,4642,P121351-SERVICE-Velopark,13/02/2024 00:00,248047,26,G40445,G4S CASH SOLUTIONS (UK) LTD,29/01/2024 00:00,25/02/2024 00:00,P11-2024
,LEE VALLEY VELOPARK,SUPPLIES AND SERVICES,CASH COLLECTIONS,4642,P121351-SERVICE-Velopark,13/02/2024 00:00,248853,13,G40445,G4S CASH SOLUTIONS (UK) LTD,29/01/2024 00:00,25/02/2024 00:00,P11-2024
,LEE VALLEY VELOPARK,SUPPLIES AND SERVICES,CASH COLLECTIONS,4642,P121351-SERVICE-Velopark,13/02/2024 00:00,250186,13,G40445,G4S CASH SOLUTIONS (UK) LTD,29/01/2024 00:00,25/02/2024 00:00,P11-2024
,LEE VALLEY VELOPARK,SUPPLIES AND SERVICES,CASH COLLECTIONS,4642,P121351-SERVICE-Velopark,13/02/2024 00:00,251324,13,G40445,G4S CASH SOLUTIONS (UK) LTD,29/01/2024 00:00,25/02/2024 00:00,P11-2024
,LEE VALLEY VELOPARK,SUPPLIES AND SERVICES,CASH COLLECTIONS,4642,P121351-SERVICE-Velopark,13/02/2024 00:00,255301,13,G40445,G4S CASH SOLUTIONS (UK) LTD,29/01/2024 00:00,25/02/2024 00:00,P11-2024
,LEE VALLEY VELOPARK,SUPPLIES AND SERVICES,CASH COLLECTIONS,4642,P121351-SERVICE-Velopark,14/02/2024 00:00,257844,13,G40445,G4S CASH SOLUTIONS (UK) LTD,29/01/2024 00:00,25/02/2024 00:00,P11-2024
,LEE VALLEY VELOPARK,SUPPLIES AND SERVICES,CASH COLLECTIONS,4642,P121351-SERVICE-Velopark,14/02/2024 00:00,260218,13,G40445,G4S CASH SOLUTIONS (UK) LTD,29/01/2024 00:00,25/02/2024 00:00,P11-2024
,LEE VALLEY VELOPARK,SUPPLIES AND SERVICES,CASH COLLECTIONS,4642,P121351-SERVICE-Velopark,14/02/2024 00:00,282277,-39,G40445,G4S CASH SOLUTIONS (UK) LTD,29/01/2024 00:00,25/02/2024 00:00,P11-2024
,LV HOCKEY AND TENNIS CENTRE,SUPPLIES AND SERVICES,CASH COLLECTIONS,4642,P121351-SERVICE-HTC,13/02/2024 00:00,248047,26,G40445,G4S CASH SOLUTIONS (UK) LTD,29/01/2024 00:00,25/02/2024 00:00,P11-2024
,LV HOCKEY AND TENNIS CENTRE,SUPPLIES AND SERVICES,CASH COLLECTIONS,4642,P121351-SERVICE-HTC,13/02/2024 00:00,248853,13,G40445,G4S CASH SOLUTIONS (UK) LTD,29/01/2024 00:00,25/02/2024 00:00,P11-2024
,LV HOCKEY AND TENNIS CENTRE,SUPPLIES AND SERVICES,CASH COLLECTIONS,4642,P121351-SERVICE-HTC,13/02/2024 00:00,250186,13,G40445,G4S CASH SOLUTIONS (UK) LTD,29/01/2024 00:00,25/02/2024 00:00,P11-2024
,LV HOCKEY AND TENNIS CENTRE,SUPPLIES AND SERVICES,CASH COLLECTIONS,4642,P121351-SERVICE-HTC,13/02/2024 00:00,251324,13,G40445,G4S CASH SOLUTIONS (UK) LTD,29/01/2024 00:00,25/02/2024 00:00,P11-2024
,LV HOCKEY AND TENNIS CENTRE,SUPPLIES AND SERVICES,CASH COLLECTIONS,4642,P121351-SERVICE-HTC,13/02/2024 00:00,251368,-13,G40445,G4S CASH SOLUTIONS (UK) LTD,29/01/2024 00:00,25/02/2024 00:00,P11-2024
,LV HOCKEY AND TENNIS CENTRE,SUPPLIES AND SERVICES,CASH COLLECTIONS,4642,P121351-SERVICE-HTC,13/02/2024 00:00,255301,13,G40445,G4S CASH SOLUTIONS (UK) LTD,29/01/2024 00:00,25/02/2024 00:00,P11-2024
,LV HOCKEY AND TENNIS CENTRE,SUPPLIES AND SERVICES,CASH COLLECTIONS,4642,P121351-SERVICE-HTC,14/02/2024 00:00,257844,13,G40445,G4S CASH SOLUTIONS (UK) LTD,29/01/2024 00:00,25/02/2024 00:00,P11-2024
,LV HOCKEY AND TENNIS CENTRE,SUPPLIES AND SERVICES,CASH COLLECTIONS,4642,P121351-SERVICE-HTC,14/02/2024 00:00,260218,13,G40445,G4S CASH SOLUTIONS (UK) LTD,29/01/2024 00:00,25/02/2024 00:00,P11-2024
,LV HOCKEY AND TENNIS CENTRE,SUPPLIES AND SERVICES,CASH COLLECTIONS,4642,P121351-SERVICE-HTC,14/02/2024 00:00,261802,13,G40445,G4S CASH SOLUTIONS (UK) LTD,29/01/2024 00:00,25/02/2024 00:00,P11-2024
,LV HOCKEY AND TENNIS CENTRE,SUPPLIES AND SERVICES,CASH COLLECTIONS,4642,P121351-SERVICE-HTC,14/02/2024 00:00,262917,13,G40445,G4S CASH SOLUTIONS (UK) LTD,29/01/2024 00:00,25/02/2024 00:00,P11-2024
,LV HOCKEY AND TENNIS CENTRE,SUPPLIES AND SERVICES,CASH COLLECTIONS,4642,P121351-SERVICE-HTC,14/02/2024 00:00,263973,13,G40445,G4S CASH SOLUTIONS (UK) LTD,29/01/2024 00:00,25/02/2024 00:00,P11-2024
,LV HOCKEY AND TENNIS CENTRE,SUPPLIES AND SERVICES,CASH COLLECTIONS,4642,P121351-SERVICE-HTC,13/02/2024 00:00,265015,13,G40445,G4S CASH SOLUTIONS (UK) LTD,29/01/2024 00:00,25/02/2024 00:00,P11-2024
,LV HOCKEY AND TENNIS CENTRE,SUPPLIES AND SERVICES,CASH COLLECTIONS,4642,P121351-SERVICE-HTC,14/02/2024 00:00,265804,13,G40445,G4S CASH SOLUTIONS (UK) LTD,29/01/2024 00:00,25/02/2024 00:00,P11-2024
,LV HOCKEY AND TENNIS CENTRE,SUPPLIES AND SERVICES,CASH COLLECTIONS,4642,P121351-SERVICE-HTC,14/02/2024 00:00,266745,13,G40445,G4S CASH SOLUTIONS (UK) LTD,29/01/2024 00:00,25/02/2024 00:00,P11-2024
,LV HOCKEY AND TENNIS CENTRE,SUPPLIES AND SERVICES,CASH COLLECTIONS,4642,P121351-SERVICE-HTC,14/02/2024 00:00,267682,13,G40445,G4S CASH SOLUTIONS (UK) LTD,29/01/2024 00:00,25/02/2024 00:00,P11-2024
,LV HOCKEY AND TENNIS CENTRE,SUPPLIES AND SERVICES,CASH COLLECTIONS,4642,P121351-SERVICE-HTC,14/02/2024 00:00,268523,13,G40445,G4S CASH SOLUTIONS (UK) LTD,29/01/2024 00:00,25/02/2024 00:00,P11-2024
,LV HOCKEY AND TENNIS CENTRE,SUPPLIES AND SERVICES,CASH COLLECTIONS,4642,P121351-SERVICE-HTC,14/02/2024 00:00,269414,13,G40445,G4S CASH SOLUTIONS (UK) LTD,29/01/2024 00:00,25/02/2024 00:00,P11-2024
,LV HOCKEY AND TENNIS CENTRE,SUPPLIES AND SERVICES,CASH COLLECTIONS,4642,G4S CASH SOLUTIONS (UK) LTD,14/02/2024 00:00,270165,13,G40445,G4S CASH SOLUTIONS (UK) LTD,29/01/2024 00:00,25/02/2024 00:00,P11-2024
,LV HOCKEY AND TENNIS CENTRE,SUPPLIES AND SERVICES,CASH COLLECTIONS,4642,P121351-SERVICE-HTC,14/02/2024 00:00,282277,-143,G40445,G4S CASH SOLUTIONS (UK) LTD,29/01/2024 00:00,25/02/2024 00:00,P11-2024
,LEE VALLEY RIDING CENTRE,SUPPLIES AND SERVICES,CASH COLLECTIONS,4642,P121351-SERVICE-Riding Centre,13/02/2024 00:00,248047,26,G40445,G4S CASH SOLUTIONS (UK) LTD,29/01/2024 00:00,25/02/2024 00:00,P11-2024
,LEE VALLEY RIDING CENTRE,SUPPLIES AND SERVICES,CASH COLLECTIONS,4642,P121351-SERVICE-Riding Centre,13/02/2024 00:00,248853,13,G40445,G4S CASH SOLUTIONS (UK) LTD,29/01/2024 00:00,25/02/2024 00:00,P11-2024
,LEE VALLEY RIDING CENTRE,SUPPLIES AND SERVICES,CASH COLLECTIONS,4642,P121351-SERVICE-Riding Centre,13/02/2024 00:00,250186,13,G40445,G4S CASH SOLUTIONS (UK) LTD,29/01/2024 00:00,25/02/2024 00:00,P11-2024
,LEE VALLEY RIDING CENTRE,SUPPLIES AND SERVICES,CASH COLLECTIONS,4642,P121351-SERVICE-Riding Centre,13/02/2024 00:00,251324,13,G40445,G4S CASH SOLUTIONS (UK) LTD,29/01/2024 00:00,25/02/2024 00:00,P11-2024
,LEE VALLEY RIDING CENTRE,SUPPLIES AND SERVICES,CASH COLLECTIONS,4642,P121351-SERVICE-Riding Centre,14/02/2024 00:00,256651,13,G40445,G4S CASH SOLUTIONS (UK) LTD,29/01/2024 00:00,25/02/2024 00:00,P11-2024
,LEE VALLEY RIDING CENTRE,SUPPLIES AND SERVICES,CASH COLLECTIONS,4642,P121351-SERVICE-Riding Centre,14/02/2024 00:00,257844,13,G40445,G4S CASH SOLUTIONS (UK) LTD,29/01/2024 00:00,25/02/2024 00:00,P11-2024
,LEE VALLEY RIDING CENTRE,SUPPLIES AND SERVICES,CASH COLLECTIONS,4642,P121351-SERVICE-Riding Centre,14/02/2024 00:00,282277,-91,G40445,G4S CASH SOLUTIONS (UK) LTD,29/01/2024 00:00,25/02/2024 00:00,P11-2024
,LEE VALLEY ICE CENTRE,SUPPLIES AND SERVICES,CASH COLLECTIONS,4642,P121351-SERVICE-Ice Centre,13/02/2024 00:00,248047,26,G40445,G4S CASH SOLUTIONS (UK) LTD,29/01/2024 00:00,25/02/2024 00:00,P11-2024
,LEE VALLEY ICE CENTRE,SUPPLIES AND SERVICES,CASH COLLECTIONS,4642,P121351-SERVICE-Ice Centre,13/02/2024 00:00,248853,13,G40445,G4S CASH SOLUTIONS (UK) LTD,29/01/2024 00:00,25/02/2024 00:00,P11-2024
,LEE VALLEY ICE CENTRE,SUPPLIES AND SERVICES,CASH COLLECTIONS,4642,P121351-SERVICE-Ice Centre,13/02/2024 00:00,250186,13,G40445,G4S CASH SOLUTIONS (UK) LTD,29/01/2024 00:00,25/02/2024 00:00,P11-2024
,LEE VALLEY ICE CENTRE,SUPPLIES AND SERVICES,CASH COLLECTIONS,4642,P121351-SERVICE-Ice Centre,14/02/2024 00:00,250187,39,G40445,G4S CASH SOLUTIONS (UK) LTD,29/01/2024 00:00,25/02/2024 00:00,P11-2024
,LEE VALLEY ICE CENTRE,SUPPLIES AND SERVICES,CASH COLLECTIONS,4642,P121351-SERVICE-Ice Centre,13/02/2024 00:00,251324,13,G40445,G4S CASH SOLUTIONS (UK) LTD,29/01/2024 00:00,25/02/2024 00:00,P11-2024
,LEE VALLEY ICE CENTRE,SUPPLIES AND SERVICES,CASH COLLECTIONS,4642,P121351-SERVICE-Ice Centre,14/02/2024 00:00,251331,26,G40445,G4S CASH SOLUTIONS (UK) LTD,29/01/2024 00:00,25/02/2024 00:00,P11-2024
,LEE VALLEY ICE CENTRE,SUPPLIES AND SERVICES,CASH COLLECTIONS,4642,P121351-SERVICE-Ice Centre,13/02/2024 00:00,255301,13,G40445,G4S CASH SOLUTIONS (UK) LTD,29/01/2024 00:00,25/02/2024 00:00,P11-2024
,LEE VALLEY ICE CENTRE,SUPPLIES AND SERVICES,CASH COLLECTIONS,4642,P121351-SERVICE-Ice Centre,14/02/2024 00:00,256651,13,G40445,G4S CASH SOLUTIONS (UK) LTD,29/01/2024 00:00,25/02/2024 00:00,P11-2024
,LEE VALLEY ICE CENTRE,SUPPLIES AND SERVICES,CASH COLLECTIONS,4642,P121351-SERVICE-Ice Centre,14/02/2024 00:00,257844,13,G40445,G4S CASH SOLUTIONS (UK) LTD,29/01/2024 00:00,25/02/2024 00:00,P11-2024
,LEE VALLEY ICE CENTRE,SUPPLIES AND SERVICES,CASH COLLECTIONS,4642,P121351-SERVICE-Ice Centre,14/02/2024 00:00,265804,13,G40445,G4S CASH SOLUTIONS (UK) LTD,29/01/2024 00:00,25/02/2024 00:00,P11-2024
,LEE VALLEY ICE CENTRE,SUPPLIES AND SERVICES,CASH COLLECTIONS,4642,P121351-SERVICE-Ice Centre,14/02/2024 00:00,282277,-221,G40445,G4S CASH SOLUTIONS (UK) LTD,29/01/2024 00:00,25/02/2024 00:00,P11-2024
,LV LEISURE CENTRE CAMPSITE,SUPPLIES AND SERVICES,CASH COLLECTIONS,4642,G4S CASH SOLUTIONS (UK) LTD,14/02/2024 00:00,250187,65,G40445,G4S CASH SOLUTIONS (UK) LTD,29/01/2024 00:00,25/02/2024 00:00,P11-2024
,LV LEISURE CENTRE CAMPSITE,SUPPLIES AND SERVICES,CASH COLLECTIONS,4642,G4S CASH SOLUTIONS (UK) LTD,14/02/2024 00:00,251331,52,G40445,G4S CASH SOLUTIONS (UK) LTD,29/01/2024 00:00,25/02/2024 00:00,P11-2024
,LV LEISURE CENTRE CAMPSITE,SUPPLIES AND SERVICES,CASH COLLECTIONS,4642,G4S CASH SOLUTIONS (UK) LTD,13/02/2024 00:00,251368,-13,G40445,G4S CASH SOLUTIONS (UK) LTD,29/01/2024 00:00,25/02/2024 00:00,P11-2024
,LV LEISURE CENTRE CAMPSITE,SUPPLIES AND SERVICES,CASH COLLECTIONS,4642,G4S CASH SOLUTIONS (UK) LTD,13/02/2024 00:00,252549,-13,G40445,G4S CASH SOLUTIONS (UK) LTD,29/01/2024 00:00,25/02/2024 00:00,P11-2024
,LV LEISURE CENTRE CAMPSITE,SUPPLIES AND SERVICES,CASH COLLECTIONS,4642,G4S CASH SOLUTIONS (UK) LTD,13/02/2024 00:00,254117,-13,G40445,G4S CASH SOLUTIONS (UK) LTD,29/01/2024 00:00,25/02/2024 00:00,P11-2024
,LV LEISURE CENTRE CAMPSITE,SUPPLIES AND SERVICES,CASH COLLECTIONS,4642,G4S CASH SOLUTIONS (UK) LTD,13/02/2024 00:00,255301,39,G40445,G4S CASH SOLUTIONS (UK) LTD,29/01/2024 00:00,25/02/2024 00:00,P11-2024
,LV LEISURE CENTRE CAMPSITE,SUPPLIES AND SERVICES,CASH COLLECTIONS,4642,G4S CASH SOLUTIONS (UK) LTD,14/02/2024 00:00,256651,65,G40445,G4S CASH SOLUTIONS (UK) LTD,29/01/2024 00:00,25/02/2024 00:00,P11-2024
,LV LEISURE CENTRE CAMPSITE,SUPPLIES AND SERVICES,CASH COLLECTIONS,4642,G4S CASH SOLUTIONS (UK) LTD,14/02/2024 00:00,257844,39,G40445,G4S CASH SOLUTIONS (UK) LTD,29/01/2024 00:00,25/02/2024 00:00,P11-2024
,LV LEISURE CENTRE CAMPSITE,SUPPLIES AND SERVICES,CASH COLLECTIONS,4642,G4S CASH SOLUTIONS (UK) LTD,14/02/2024 00:00,259036,52,G40445,G4S CASH SOLUTIONS (UK) LTD,29/01/2024 00:00,25/02/2024 00:00,P11-2024
,LV LEISURE CENTRE CAMPSITE,SUPPLIES AND SERVICES,CASH COLLECTIONS,4642,G4S CASH SOLUTIONS (UK) LTD,14/02/2024 00:00,260218,52,G40445,G4S CASH SOLUTIONS (UK) LTD,29/01/2024 00:00,25/02/2024 00:00,P11-2024
,LV LEISURE CENTRE CAMPSITE,SUPPLIES AND SERVICES,CASH COLLECTIONS,4642,G4S CASH SOLUTIONS (UK) LTD,14/02/2024 00:00,261802,65,G40445,G4S CASH SOLUTIONS (UK) LTD,29/01/2024 00:00,25/02/2024 00:00,P11-2024
,LV LEISURE CENTRE CAMPSITE,SUPPLIES AND SERVICES,CASH COLLECTIONS,4642,G4S CASH SOLUTIONS (UK) LTD,14/02/2024 00:00,263973,52,G40445,G4S CASH SOLUTIONS (UK) LTD,29/01/2024 00:00,25/02/2024 00:00,P11-2024
,LV LEISURE CENTRE CAMPSITE,SUPPLIES AND SERVICES,CASH COLLECTIONS,4642,G4S CASH SOLUTIONS (UK) LTD,13/02/2024 00:00,265015,13,G40445,G4S CASH SOLUTIONS (UK) LTD,29/01/2024 00:00,25/02/2024 00:00,P11-2024
,LV LEISURE CENTRE CAMPSITE,SUPPLIES AND SERVICES,CASH COLLECTIONS,4642,G4S CASH SOLUTIONS (UK) LTD,14/02/2024 00:00,265804,52,G40445,G4S CASH SOLUTIONS (UK) LTD,29/01/2024 00:00,25/02/2024 00:00,P11-2024
,LV LEISURE CENTRE CAMPSITE,SUPPLIES AND SERVICES,CASH COLLECTIONS,4642,G4S CASH SOLUTIONS (UK) LTD,14/02/2024 00:00,266745,78,G40445,G4S CASH SOLUTIONS (UK) LTD,29/01/2024 00:00,25/02/2024 00:00,P11-2024
,LV LEISURE CENTRE CAMPSITE,SUPPLIES AND SERVICES,CASH COLLECTIONS,4642,G4S CASH SOLUTIONS (UK) LTD,13/02/2024 00:00,267119,-13,G40445,G4S CASH SOLUTIONS (UK) LTD,29/01/2024 00:00,25/02/2024 00:00,P11-2024
,LV LEISURE CENTRE CAMPSITE,SUPPLIES AND SERVICES,CASH COLLECTIONS,4642,G4S CASH SOLUTIONS (UK) LTD,14/02/2024 00:00,267682,52,G40445,G4S CASH SOLUTIONS (UK) LTD,29/01/2024 00:00,25/02/2024 00:00,P11-2024
,LV LEISURE CENTRE CAMPSITE,SUPPLIES AND SERVICES,CASH COLLECTIONS,4642,G4S CASH SOLUTIONS (UK) LTD,14/02/2024 00:00,268523,39,G40445,G4S CASH SOLUTIONS (UK) LTD,29/01/2024 00:00,25/02/2024 00:00,P11-2024
,LV LEISURE CENTRE CAMPSITE,SUPPLIES AND SERVICES,CASH COLLECTIONS,4642,G4S CASH SOLUTIONS (UK) LTD,14/02/2024 00:00,269414,65,G40445,G4S CASH SOLUTIONS (UK) LTD,29/01/2024 00:00,25/02/2024 00:00,P11-2024
,LV LEISURE CENTRE CAMPSITE,SUPPLIES AND SERVICES,CASH COLLECTIONS,4642,G4S CASH SOLUTIONS (UK) LTD,14/02/2024 00:00,270165,39,G40445,G4S CASH SOLUTIONS (UK) LTD,29/01/2024 00:00,25/02/2024 00:00,P11-2024
,LV LEISURE CENTRE CAMPSITE,SUPPLIES AND SERVICES,CASH COLLECTIONS,4642,G4S CASH SOLUTIONS (UK) LTD,14/02/2024 00:00,272946,14.56,G40445,G4S CASH SOLUTIONS (UK) LTD,29/01/2024 00:00,25/02/2024 00:00,P11-2024
,LV LEISURE CENTRE CAMPSITE,SUPPLIES AND SERVICES,CASH COLLECTIONS,4642,Various sites- cash bag collection-Jan23,14/02/2024 00:00,276905,29.12,G40445,G4S CASH SOLUTIONS (UK) LTD,29/01/2024 00:00,25/02/2024 00:00,P11-2024
,LV LEISURE CENTRE CAMPSITE,SUPPLIES AND SERVICES,CASH COLLECTIONS,4642,P124863-SERVICE-Edmondton Campsite,06/02/2024 00:00,281542,37.29,SE0692,SECURITY PLUS LTD,29/01/2024 00:00,25/02/2024 00:00,P11-2024
,LV LEISURE CENTRE CAMPSITE,SUPPLIES AND SERVICES,CASH COLLECTIONS,4642,G4S CASH SOLUTIONS (UK) LTD,14/02/2024 00:00,282277,-273,G40445,G4S CASH SOLUTIONS (UK) LTD,29/01/2024 00:00,25/02/2024 00:00,P11-2024
,LV LEISURE CENTRE CAMPSITE,SUPPLIES AND SERVICES,CASH COLLECTIONS,4642,P125007-SERVICE-Edmonton campsite,20/02/2024 00:00,282451,49.72,SE0692,SECURITY PLUS LTD,29/01/2024 00:00,25/02/2024 00:00,P11-2024
,LV LEISURE CENTRE GOLF COURSE,SUPPLIES AND SERVICES,CASH COLLECTIONS,4642,G4S CASH SOLUTIONS (UK) LTD,14/02/2024 00:00,250187,-65,G40445,G4S CASH SOLUTIONS (UK) LTD,29/01/2024 00:00,25/02/2024 00:00,P11-2024
,LV LEISURE CENTRE GOLF COURSE,SUPPLIES AND SERVICES,CASH COLLECTIONS,4642,P121351-SERVICE-Edmonton Campsite,14/02/2024 00:00,250187,65,G40445,G4S CASH SOLUTIONS (UK) LTD,29/01/2024 00:00,25/02/2024 00:00,P11-2024
,LV LEISURE CENTRE GOLF COURSE,SUPPLIES AND SERVICES,CASH COLLECTIONS,4642,P121351-SERVICE-Edmonton Campsite,14/02/2024 00:00,251331,52,G40445,G4S CASH SOLUTIONS (UK) LTD,29/01/2024 00:00,25/02/2024 00:00,P11-2024
,LV LEISURE CENTRE GOLF COURSE,SUPPLIES AND SERVICES,CASH COLLECTIONS,4642,G4S CASH SOLUTIONS (UK) LTD,14/02/2024 00:00,251331,-52,G40445,G4S CASH SOLUTIONS (UK) LTD,29/01/2024 00:00,25/02/2024 00:00,P11-2024
,LV LEISURE CENTRE GOLF COURSE,SUPPLIES AND SERVICES,CASH COLLECTIONS,4642,P121351-SERVICE-Edmonton Campsite,13/02/2024 00:00,251368,-13,G40445,G4S CASH SOLUTIONS (UK) LTD,29/01/2024 00:00,25/02/2024 00:00,P11-2024
,LV LEISURE CENTRE GOLF COURSE,SUPPLIES AND SERVICES,CASH COLLECTIONS,4642,G4S CASH SOLUTIONS (UK) LTD,13/02/2024 00:00,251368,13,G40445,G4S CASH SOLUTIONS (UK) LTD,29/01/2024 00:00,25/02/2024 00:00,P11-2024
,LV LEISURE CENTRE GOLF COURSE,SUPPLIES AND SERVICES,CASH COLLECTIONS,4642,G4S CASH SOLUTIONS (UK) LTD,13/02/2024 00:00,252549,13,G40445,G4S CASH SOLUTIONS (UK) LTD,29/01/2024 00:00,25/02/2024 00:00,P11-2024
,LV LEISURE CENTRE GOLF COURSE,SUPPLIES AND SERVICES,CASH COLLECTIONS,4642,P121351-SERVICE-Edmonton Campsite,13/02/2024 00:00,252549,-13,G40445,G4S CASH SOLUTIONS (UK) LTD,29/01/2024 00:00,25/02/2024 00:00,P11-2024
,LV LEISURE CENTRE GOLF COURSE,SUPPLIES AND SERVICES,CASH COLLECTIONS,4642,P121351-SERVICE-Edmonton Campsite,13/02/2024 00:00,254117,-13,G40445,G4S CASH SOLUTIONS (UK) LTD,29/01/2024 00:00,25/02/2024 00:00,P11-2024
,LV LEISURE CENTRE GOLF COURSE,SUPPLIES AND SERVICES,CASH COLLECTIONS,4642,G4S CASH SOLUTIONS (UK) LTD,13/02/2024 00:00,254117,13,G40445,G4S CASH SOLUTIONS (UK) LTD,29/01/2024 00:00,25/02/2024 00:00,P11-2024
,LV LEISURE CENTRE GOLF COURSE,SUPPLIES AND SERVICES,CASH COLLECTIONS,4642,P121351-SERVICE-Edmonton Campsite,13/02/2024 00:00,255301,39,G40445,G4S CASH SOLUTIONS (UK) LTD,29/01/2024 00:00,25/02/2024 00:00,P11-2024
,LV LEISURE CENTRE GOLF COURSE,SUPPLIES AND SERVICES,CASH COLLECTIONS,4642,G4S CASH SOLUTIONS (UK) LTD,13/02/2024 00:00,255301,-39,G40445,G4S CASH SOLUTIONS (UK) LTD,29/01/2024 00:00,25/02/2024 00:00,P11-2024
,LV LEISURE CENTRE GOLF COURSE,SUPPLIES AND SERVICES,CASH COLLECTIONS,4642,P121351-SERVICE-Edmonton Campsite,14/02/2024 00:00,256651,65,G40445,G4S CASH SOLUTIONS (UK) LTD,29/01/2024 00:00,25/02/2024 00:00,P11-2024
,LV LEISURE CENTRE GOLF COURSE,SUPPLIES AND SERVICES,CASH COLLECTIONS,4642,G4S CASH SOLUTIONS (UK) LTD,14/02/2024 00:00,256651,-65,G40445,G4S CASH SOLUTIONS (UK) LTD,29/01/2024 00:00,25/02/2024 00:00,P11-2024
,LV LEISURE CENTRE GOLF COURSE,SUPPLIES AND SERVICES,CASH COLLECTIONS,4642,P121351-SERVICE-Edmonton Campsite,14/02/2024 00:00,257844,39,G40445,G4S CASH SOLUTIONS (UK) LTD,29/01/2024 00:00,25/02/2024 00:00,P11-2024
,LV LEISURE CENTRE GOLF COURSE,SUPPLIES AND SERVICES,CASH COLLECTIONS,4642,G4S CASH SOLUTIONS (UK) LTD,14/02/2024 00:00,257844,-39,G40445,G4S CASH SOLUTIONS (UK) LTD,29/01/2024 00:00,25/02/2024 00:00,P11-2024
,LV LEISURE CENTRE GOLF COURSE,SUPPLIES AND SERVICES,CASH COLLECTIONS,4642,P121351-SERVICE-Edmonton Campsite,14/02/2024 00:00,259036,52,G40445,G4S CASH SOLUTIONS (UK) LTD,29/01/2024 00:00,25/02/2024 00:00,P11-2024
,LV LEISURE CENTRE GOLF COURSE,SUPPLIES AND SERVICES,CASH COLLECTIONS,4642,G4S CASH SOLUTIONS (UK) LTD,14/02/2024 00:00,259036,-52,G40445,G4S CASH SOLUTIONS (UK) LTD,29/01/2024 00:00,25/02/2024 00:00,P11-2024
,LV LEISURE CENTRE GOLF COURSE,SUPPLIES AND SERVICES,CASH COLLECTIONS,4642,P121351-SERVICE-Edmonton Campsite,14/02/2024 00:00,260218,52,G40445,G4S CASH SOLUTIONS (UK) LTD,29/01/2024 00:00,25/02/2024 00:00,P11-2024
,LV LEISURE CENTRE GOLF COURSE,SUPPLIES AND SERVICES,CASH COLLECTIONS,4642,G4S CASH SOLUTIONS (UK) LTD,14/02/2024 00:00,260218,-52,G40445,G4S CASH SOLUTIONS (UK) LTD,29/01/2024 00:00,25/02/2024 00:00,P11-2024
,LV LEISURE CENTRE GOLF COURSE,SUPPLIES AND SERVICES,CASH COLLECTIONS,4642,G4S CASH SOLUTIONS (UK) LTD,14/02/2024 00:00,261802,-65,G40445,G4S CASH SOLUTIONS (UK) LTD,29/01/2024 00:00,25/02/2024 00:00,P11-2024
,LV LEISURE CENTRE GOLF COURSE,SUPPLIES AND SERVICES,CASH COLLECTIONS,4642,P121351-SERVICE-Edmonton Campsite,14/02/2024 00:00,261802,65,G40445,G4S CASH SOLUTIONS (UK) LTD,29/01/2024 00:00,25/02/2024 00:00,P11-2024
,LV LEISURE CENTRE GOLF COURSE,SUPPLIES AND SERVICES,CASH COLLECTIONS,4642,G4S CASH SOLUTIONS (UK) LTD,14/02/2024 00:00,262917,-52,G40445,G4S CASH SOLUTIONS (UK) LTD,29/01/2024 00:00,25/02/2024 00:00,P11-2024
,LV LEISURE CENTRE GOLF COURSE,SUPPLIES AND SERVICES,CASH COLLECTIONS,4642,G4S CASH SOLUTIONS (UK) LTD,14/02/2024 00:00,262917,52,G40445,G4S CASH SOLUTIONS (UK) LTD,29/01/2024 00:00,25/02/2024 00:00,P11-2024
,LV LEISURE CENTRE GOLF COURSE,SUPPLIES AND SERVICES,CASH COLLECTIONS,4642,P121351-SERVICE-Edmonton Campsite,14/02/2024 00:00,262917,52,G40445,G4S CASH SOLUTIONS (UK) LTD,29/01/2024 00:00,25/02/2024 00:00,P11-2024
,LV LEISURE CENTRE GOLF COURSE,SUPPLIES AND SERVICES,CASH COLLECTIONS,4642,G4S CASH SOLUTIONS (UK) LTD,14/02/2024 00:00,263973,-52,G40445,G4S CASH SOLUTIONS (UK) LTD,29/01/2024 00:00,25/02/2024 00:00,P11-2024
,LV LEISURE CENTRE GOLF COURSE,SUPPLIES AND SERVICES,CASH COLLECTIONS,4642,P121351-SERVICE-Edmonton Campsite,14/02/2024 00:00,263973,52,G40445,G4S CASH SOLUTIONS (UK) LTD,29/01/2024 00:00,25/02/2024 00:00,P11-2024
,LV LEISURE CENTRE GOLF COURSE,SUPPLIES AND SERVICES,CASH COLLECTIONS,4642,G4S CASH SOLUTIONS (UK) LTD,13/02/2024 00:00,265015,-13,G40445,G4S CASH SOLUTIONS (UK) LTD,29/01/2024 00:00,25/02/2024 00:00,P11-2024
,LV LEISURE CENTRE GOLF COURSE,SUPPLIES AND SERVICES,CASH COLLECTIONS,4642,P121351-SERVICE-Edmonton Campsite,13/02/2024 00:00,265015,13,G40445,G4S CASH SOLUTIONS (UK) LTD,29/01/2024 00:00,25/02/2024 00:00,P11-2024
,LV LEISURE CENTRE GOLF COURSE,SUPPLIES AND SERVICES,CASH COLLECTIONS,4642,P121351-SERVICE-Edmonton Campsite,14/02/2024 00:00,265804,52,G40445,G4S CASH SOLUTIONS (UK) LTD,29/01/2024 00:00,25/02/2024 00:00,P11-2024
,LV LEISURE CENTRE GOLF COURSE,SUPPLIES AND SERVICES,CASH COLLECTIONS,4642,G4S CASH SOLUTIONS (UK) LTD,14/02/2024 00:00,265804,-52,G40445,G4S CASH SOLUTIONS (UK) LTD,29/01/2024 00:00,25/02/2024 00:00,P11-2024
,LV LEISURE CENTRE GOLF COURSE,SUPPLIES AND SERVICES,CASH COLLECTIONS,4642,G4S CASH SOLUTIONS (UK) LTD,14/02/2024 00:00,266745,-78,G40445,G4S CASH SOLUTIONS (UK) LTD,29/01/2024 00:00,25/02/2024 00:00,P11-2024
,LV LEISURE CENTRE GOLF COURSE,SUPPLIES AND SERVICES,CASH COLLECTIONS,4642,P121351-SERVICE-Edmonton Campsite,14/02/2024 00:00,266745,78,G40445,G4S CASH SOLUTIONS (UK) LTD,29/01/2024 00:00,25/02/2024 00:00,P11-2024
,LV LEISURE CENTRE GOLF COURSE,SUPPLIES AND SERVICES,CASH COLLECTIONS,4642,P121351-SERVICE-Edmonton Campsite,13/02/2024 00:00,267119,-13,G40445,G4S CASH SOLUTIONS (UK) LTD,29/01/2024 00:00,25/02/2024 00:00,P11-2024
,LV LEISURE CENTRE GOLF COURSE,SUPPLIES AND SERVICES,CASH COLLECTIONS,4642,G4S CASH SOLUTIONS (UK) LTD,13/02/2024 00:00,267119,13,G40445,G4S CASH SOLUTIONS (UK) LTD,29/01/2024 00:00,25/02/2024 00:00,P11-2024
,LV LEISURE CENTRE GOLF COURSE,SUPPLIES AND SERVICES,CASH COLLECTIONS,4642,P121351-SERVICE-Edmonton Campsite,14/02/2024 00:00,267682,52,G40445,G4S CASH SOLUTIONS (UK) LTD,29/01/2024 00:00,25/02/2024 00:00,P11-2024
,LV LEISURE CENTRE GOLF COURSE,SUPPLIES AND SERVICES,CASH COLLECTIONS,4642,G4S CASH SOLUTIONS (UK) LTD,14/02/2024 00:00,267682,-52,G40445,G4S CASH SOLUTIONS (UK) LTD,29/01/2024 00:00,25/02/2024 00:00,P11-2024
,LV LEISURE CENTRE GOLF COURSE,SUPPLIES AND SERVICES,CASH COLLECTIONS,4642,G4S CASH SOLUTIONS (UK) LTD,14/02/2024 00:00,268523,-39,G40445,G4S CASH SOLUTIONS (UK) LTD,29/01/2024 00:00,25/02/2024 00:00,P11-2024
,LV LEISURE CENTRE GOLF COURSE,SUPPLIES AND SERVICES,CASH COLLECTIONS,4642,P121351-SERVICE-Edmonton Campsite,14/02/2024 00:00,268523,39,G40445,G4S CASH SOLUTIONS (UK) LTD,29/01/2024 00:00,25/02/2024 00:00,P11-2024
,LV LEISURE CENTRE GOLF COURSE,SUPPLIES AND SERVICES,CASH COLLECTIONS,4642,P121351-SERVICE-Edmonton Campsite,14/02/2024 00:00,269414,65,G40445,G4S CASH SOLUTIONS (UK) LTD,29/01/2024 00:00,25/02/2024 00:00,P11-2024
,LV LEISURE CENTRE GOLF COURSE,SUPPLIES AND SERVICES,CASH COLLECTIONS,4642,G4S CASH SOLUTIONS (UK) LTD,14/02/2024 00:00,269414,-65,G40445,G4S CASH SOLUTIONS (UK) LTD,29/01/2024 00:00,25/02/2024 00:00,P11-2024
,LV LEISURE CENTRE GOLF COURSE,SUPPLIES AND SERVICES,CASH COLLECTIONS,4642,P121351-SERVICE-Edmonton Campsite,14/02/2024 00:00,272946,14.56,G40445,G4S CASH SOLUTIONS (UK) LTD,29/01/2024 00:00,25/02/2024 00:00,P11-2024
,LV LEISURE CENTRE GOLF COURSE,SUPPLIES AND SERVICES,CASH COLLECTIONS,4642,G4S CASH SOLUTIONS (UK) LTD,14/02/2024 00:00,272946,-14.56,G40445,G4S CASH SOLUTIONS (UK) LTD,29/01/2024 00:00,25/02/2024 00:00,P11-2024
,LV LEISURE CENTRE GOLF COURSE,SUPPLIES AND SERVICES,CASH COLLECTIONS,4642,Various sites- cash bag collection-Jan23,14/02/2024 00:00,276905,-29.12,G40445,G4S CASH SOLUTIONS (UK) LTD,29/01/2024 00:00,25/02/2024 00:00,P11-2024
,LV LEISURE CENTRE GOLF COURSE,SUPPLIES AND SERVICES,CASH COLLECTIONS,4642,P121351-SERVICE-Edmonton Campsite,14/02/2024 00:00,276905,29.12,G40445,G4S CASH SOLUTIONS (UK) LTD,29/01/2024 00:00,25/02/2024 00:00,P11-2024
,LV LEISURE CENTRE GOLF COURSE,SUPPLIES AND SERVICES,CASH COLLECTIONS,4642,G4S CASH SOLUTIONS (UK) LTD,14/02/2024 00:00,282277,273,G40445,G4S CASH SOLUTIONS (UK) LTD,29/01/2024 00:00,25/02/2024 00:00,P11-2024
,LV LEISURE CENTRE GOLF COURSE,SUPPLIES AND SERVICES,CASH COLLECTIONS,4642,P121351-SERVICE-Edmonton Campsite,14/02/2024 00:00,282277,-273,G40445,G4S CASH SOLUTIONS (UK) LTD,29/01/2024 00:00,25/02/2024 00:00,P11-2024
,LEE VALLEY ATHLETICS CENTRE,SUPPLIES AND SERVICES,CASH COLLECTIONS,4642,P121351-SERVICE-LVAC,13/02/2024 00:00,248047,26,G40445,G4S CASH SOLUTIONS (UK) LTD,29/01/2024 00:00,25/02/2024 00:00,P11-2024
,LEE VALLEY ATHLETICS CENTRE,SUPPLIES AND SERVICES,CASH COLLECTIONS,4642,P121351-SERVICE-LVAC,13/02/2024 00:00,248853,13,G40445,G4S CASH SOLUTIONS (UK) LTD,29/01/2024 00:00,25/02/2024 00:00,P11-2024
,LEE VALLEY ATHLETICS CENTRE,SUPPLIES AND SERVICES,CASH COLLECTIONS,4642,P121351-SERVICE-LVAC,13/02/2024 00:00,250186,13,G40445,G4S CASH SOLUTIONS (UK) LTD,29/01/2024 00:00,25/02/2024 00:00,P11-2024
,LEE VALLEY ATHLETICS CENTRE,SUPPLIES AND SERVICES,CASH COLLECTIONS,4642,P121351-SERVICE-LVAC,13/02/2024 00:00,250224,-13,G40445,G4S CASH SOLUTIONS (UK) LTD,29/01/2024 00:00,25/02/2024 00:00,P11-2024
,LEE VALLEY ATHLETICS CENTRE,SUPPLIES AND SERVICES,CASH COLLECTIONS,4642,P121351-SERVICE-LVAC,13/02/2024 00:00,251324,13,G40445,G4S CASH SOLUTIONS (UK) LTD,29/01/2024 00:00,25/02/2024 00:00,P11-2024
,LEE VALLEY ATHLETICS CENTRE,SUPPLIES AND SERVICES,CASH COLLECTIONS,4642,P121351-SERVICE-LVAC,14/02/2024 00:00,256651,13,G40445,G4S CASH SOLUTIONS (UK) LTD,29/01/2024 00:00,25/02/2024 00:00,P11-2024
,LEE VALLEY ATHLETICS CENTRE,SUPPLIES AND SERVICES,CASH COLLECTIONS,4642,P121351-SERVICE-LVAC,14/02/2024 00:00,257844,13,G40445,G4S CASH SOLUTIONS (UK) LTD,29/01/2024 00:00,25/02/2024 00:00,P11-2024
,LEE VALLEY ATHLETICS CENTRE,SUPPLIES AND SERVICES,CASH COLLECTIONS,4642,P121351-SERVICE-LVAC,14/02/2024 00:00,261802,13,G40445,G4S CASH SOLUTIONS (UK) LTD,29/01/2024 00:00,25/02/2024 00:00,P11-2024
,LEE VALLEY ATHLETICS CENTRE,SUPPLIES AND SERVICES,CASH COLLECTIONS,4642,P121351-SERVICE-LVAC,14/02/2024 00:00,282277,-26,G40445,G4S CASH SOLUTIONS (UK) LTD,29/01/2024 00:00,25/02/2024 00:00,P11-2024
,LEE VALLEY WHITE WATER CENTRE,SUPPLIES AND SERVICES,CASH COLLECTIONS,4642,P121351-SERVICE-WWC,13/02/2024 00:00,248047,13,G40445,G4S CASH SOLUTIONS (UK) LTD,29/01/2024 00:00,25/02/2024 00:00,P11-2024
,LEE VALLEY WHITE WATER CENTRE,SUPPLIES AND SERVICES,CASH COLLECTIONS,4642,P121351-SERVICE-Miscellanous,13/02/2024 00:00,248047,299,G40445,G4S CASH SOLUTIONS (UK) LTD,29/01/2024 00:00,25/02/2024 00:00,P11-2024
,LEE VALLEY WHITE WATER CENTRE,SUPPLIES AND SERVICES,CASH COLLECTIONS,4642,P121351-SERVICE-WWC,13/02/2024 00:00,250186,13,G40445,G4S CASH SOLUTIONS (UK) LTD,29/01/2024 00:00,25/02/2024 00:00,P11-2024
,LEE VALLEY WHITE WATER CENTRE,SUPPLIES AND SERVICES,CASH COLLECTIONS,4642,P121351-SERVICE-WWC,13/02/2024 00:00,255301,13,G40445,G4S CASH SOLUTIONS (UK) LTD,29/01/2024 00:00,25/02/2024 00:00,P11-2024
,LEE VALLEY WHITE WATER CENTRE,SUPPLIES AND SERVICES,CASH COLLECTIONS,4642,P121351-SERVICE-Miscellanous,14/02/2024 00:00,261802,39,G40445,G4S CASH SOLUTIONS (UK) LTD,29/01/2024 00:00,25/02/2024 00:00,P11-2024
,LEE VALLEY WHITE WATER CENTRE,SUPPLIES AND SERVICES,CASH COLLECTIONS,4642,G4S CASH SOLUTIONS (UK) LTD,14/02/2024 00:00,270165,-182,G40445,G4S CASH SOLUTIONS (UK) LTD,29/01/2024 00:00,25/02/2024 00:00,P11-2024
,LEE VALLEY WHITE WATER CENTRE,SUPPLIES AND SERVICES,CASH COLLECTIONS,4642,P121351-SERVICE-Miscellanous,14/02/2024 00:00,270165,182,G40445,G4S CASH SOLUTIONS (UK) LTD,29/01/2024 00:00,25/02/2024 00:00,P11-2024
,LEE VALLEY WHITE WATER CENTRE,SUPPLIES AND SERVICES,CASH COLLECTIONS,4642,P121351-SERVICE-Miscellanous,13/02/2024 00:00,282276,-299,G40445,G4S CASH SOLUTIONS (UK) LTD,29/01/2024 00:00,25/02/2024 00:00,P11-2024
,LEE VALLEY WHITE WATER CENTRE,SUPPLIES AND SERVICES,CASH COLLECTIONS,4642,P121351-SERVICE-WWC,14/02/2024 00:00,282277,-13,G40445,G4S CASH SOLUTIONS (UK) LTD,29/01/2024 00:00,25/02/2024 00:00,P11-2024
R&B,FINANCE & RESOURCES MANAGEMENT,SUPPLIES AND SERVICES,DEBT RECOVERY FEES,4646,P121343-SERVICE-DEBT RECOVERY FEES 2023/2024,25/02/2024 00:00,282846,342.89,LE0069,LEGAL RECOVERIES AND COLLECTIONS LIMITED,29/01/2024 00:00,25/02/2024 00:00,P11-2024
P&V,NORTH AREA RANGERS,SUPPLIES AND SERVICES,SECURITY,4650,P124148-SERVICE-Security - North of Park,06/02/2024 00:00,281926,245.76,PA0059,PARKGUARD LTD,29/01/2024 00:00,25/02/2024 00:00,P11-2024
P&V,NORTH AREA RANGERS,SUPPLIES AND SERVICES,SECURITY,4650,P124148-SERVICE-Security - North of Park,06/02/2024 00:00,281926,5773.81,PA0059,PARKGUARD LTD,29/01/2024 00:00,25/02/2024 00:00,P11-2024
P&V,NORTH AREA RANGERS,SUPPLIES AND SERVICES,SECURITY,4650,P124148-SERVICE-Security - North of Park,06/02/2024 00:00,281926,1593.23,PA0059,PARKGUARD LTD,29/01/2024 00:00,25/02/2024 00:00,P11-2024
P&V,NORTH AREA RANGERS,SUPPLIES AND SERVICES,SECURITY,4650,P124148-SERVICE-Security - North of Park,25/02/2024 00:00,282758,4459.97,PA0059,PARKGUARD LTD,29/01/2024 00:00,25/02/2024 00:00,P11-2024
P&V,NORTH AREA RANGERS,SUPPLIES AND SERVICES,SECURITY,4650,P124148-SERVICE-Security - North of Park,25/02/2024 00:00,282758,4539.55,PA0059,PARKGUARD LTD,29/01/2024 00:00,25/02/2024 00:00,P11-2024
P&V,SOUTH AREA RANGERS,SUPPLIES AND SERVICES,SECURITY,4650,P124149-SERVICE-Security - South of Park,06/02/2024 00:00,281927,6239.69,PA0059,PARKGUARD LTD,29/01/2024 00:00,25/02/2024 00:00,P11-2024
P&V,SOUTH AREA RANGERS,SUPPLIES AND SERVICES,SECURITY,4650,P124149-SERVICE-Security - South of Park,06/02/2024 00:00,281927,8164.29,PA0059,PARKGUARD LTD,29/01/2024 00:00,25/02/2024 00:00,P11-2024
P&V,SOUTH AREA RANGERS,SUPPLIES AND SERVICES,SECURITY,4650,P124149-SERVICE-Security - South of Park,25/02/2024 00:00,282759,8434.5,PA0059,PARKGUARD LTD,29/01/2024 00:00,25/02/2024 00:00,P11-2024
P&V,SOUTH AREA RANGERS,SUPPLIES AND SERVICES,SECURITY,4650,P124149-SERVICE-Security - South of Park,25/02/2024 00:00,282759,3885.96,PA0059,PARKGUARD LTD,29/01/2024 00:00,25/02/2024 00:00,P11-2024
CEO,PR/COMMUNICATIONS,SUPPLIES AND SERVICES,ADVERTISING - AWARENESS,4656,P123061-SERVICE-Great British Staycations 2024 magazine,06/02/2024 00:00,281053,870,NE0160,NEWSQUEST MEDIA GROUP,29/01/2024 00:00,25/02/2024 00:00,P11-2024
CEO,PR/COMMUNICATIONS,SUPPLIES AND SERVICES,ARTWORK,4664,P123924-SERVICE-Business plan design x 2,13/02/2024 00:00,281043,840,TO0631,TOP FLOOR CREATIVE,29/01/2024 00:00,25/02/2024 00:00,P11-2024
CEO,PR/COMMUNICATIONS,SUPPLIES AND SERVICES,ARTWORK,4664,P124154-SERVICE-Business card redesign,07/02/2024 00:00,282155,152,BL0393,BLUE SEA DESIGN,29/01/2024 00:00,25/02/2024 00:00,P11-2024
CEO,PR/COMMUNICATIONS,SUPPLIES AND SERVICES,PHOTOGRAPHY,4665,P124898-SERVICE-Shaun Dawson profile - Lee Valley Ice Centre,25/02/2024 00:00,282375,270,UN0090,UNITED NATIONAL PHOTOGRAPHERS LTD,29/01/2024 00:00,25/02/2024 00:00,P11-2024
CEO,LEGAL SERVICES,SUPPLIES AND SERVICES,OFFSITE ARCHIVED STORAGE,4667,P124982-SERVICE-Off Site storage January 2024,14/02/2024 00:00,282259,13.37,DA0154,RESTORE PLC,29/01/2024 00:00,25/02/2024 00:00,P11-2024
CEO,LEGAL SERVICES,SUPPLIES AND SERVICES,OFFSITE ARCHIVED STORAGE,4667,P124982-SERVICE-Off Site storage January 2024,20/02/2024 00:00,282494,-13.37,DA0154,RESTORE PLC,29/01/2024 00:00,25/02/2024 00:00,P11-2024
CEO,LEGAL SERVICES,SUPPLIES AND SERVICES,OFFSITE ARCHIVED STORAGE,4667,P125004-SERVICE-Off site archiving January 2024,20/02/2024 00:00,282495,418.29,DA0154,RESTORE PLC,29/01/2024 00:00,25/02/2024 00:00,P11-2024
,LEE VALLEY CARAVAN PARK,SUPPLIES AND SERVICES,ENTERTAINMENT & OTHER LICENCES,4711,P124977-SERVICE-Annual T.V. licence,14/02/2024 00:00,282395,477,TV0648,TV LICENSING-COMMERCIAL,29/01/2024 00:00,25/02/2024 00:00,P11-2024
P&V,LEE VALLEY FARM HOLYFIELDHALL,THIRD PARTY PAYMENTS,VETERINARY SERVICES,4718,P125000-SERVICE-Vets,20/02/2024 00:00,282406,198.38,HA0443,HAMPDEN VETERINARY HOSPITAL,29/01/2024 00:00,25/02/2024 00:00,P11-2024
P&V,YOUTH AND SCHOOLS,SUPPLIES AND SERVICES,ACTIVITIES (SCHOOLS),4725,P124665-SERVICE-12 x 175970 heavy duty sampling trays,13/02/2024 00:00,281754,75,NH0175,NHBS,29/01/2024 00:00,25/02/2024 00:00,P11-2024
P&V,YOUTH AND SCHOOLS,SUPPLIES AND SERVICES,ACTIVITIES (SCHOOLS),4725,P124665-SERVICE-3 x 202236 bug pots,13/02/2024 00:00,281754,24.06,NH0175,NHBS,29/01/2024 00:00,25/02/2024 00:00,P11-2024
P&V,YOUTH AND SCHOOLS,SUPPLIES AND SERVICES,ACTIVITIES (SCHOOLS),4725,P124665-SERVICE-12 x 176018 Professional Sweep net,13/02/2024 00:00,281754,569.52,NH0175,NHBS,29/01/2024 00:00,25/02/2024 00:00,P11-2024
P&V,YOUTH AND SCHOOLS,SUPPLIES AND SERVICES,FACILITIES HIRE,4752,P124559-SERVICE-Room Hire Abbey Farm House,20/02/2024 00:00,282658,783.23,WA0108,WALTHAM ABBEY PAROCHIAL CHURCH COUNCIL,29/01/2024 00:00,25/02/2024 00:00,P11-2024
P&V,YOUTH AND SCHOOLS,SUPPLIES AND SERVICES,FACILITIES HIRE,4752,P124560-SERVICE-Room Hire Abbey Farm House,20/02/2024 00:00,282659,1402.8,WA0108,WALTHAM ABBEY PAROCHIAL CHURCH COUNCIL,29/01/2024 00:00,25/02/2024 00:00,P11-2024
P&V,MYDDLETON HSE HERITAGE CENTRE,SUPPLIES AND SERVICES,NET CATERING PURCHASES,4777,BTR-food/drinks,13/02/2024 00:00,282133,220.55,JJ0188,JJ FOOD SERVICE LIMITED,29/01/2024 00:00,25/02/2024 00:00,P11-2024
P&V,MYDDLETON HSE HERITAGE CENTRE,SUPPLIES AND SERVICES,NET CATERING PURCHASES,4777,BTR-food/drinks,13/02/2024 00:00,282133,60.96,JJ0188,JJ FOOD SERVICE LIMITED,29/01/2024 00:00,25/02/2024 00:00,P11-2024
P&V,MYDDLETON HSE HERITAGE CENTRE,SUPPLIES AND SERVICES,NET CATERING PURCHASES,4777,BTR-food/drinks,13/02/2024 00:00,282133,-281.51,JJ0188,JJ FOOD SERVICE LIMITED,29/01/2024 00:00,25/02/2024 00:00,P11-2024
P&V,MYDDLETON HSE HERITAGE CENTRE,SUPPLIES AND SERVICES,NET CATERING PURCHASES,4777,P124241-SERVICE-food and drinks,13/02/2024 00:00,282133,281.51,JJ0188,JJ FOOD SERVICE LIMITED,29/01/2024 00:00,25/02/2024 00:00,P11-2024
P&V,MYDDLETON HSE HERITAGE CENTRE,SUPPLIES AND SERVICES,NET CATERING PURCHASES,4777,P124717-SERVICE-CATERING GOODS,13/02/2024 00:00,282134,134.18,JJ0188,JJ FOOD SERVICE LIMITED,29/01/2024 00:00,25/02/2024 00:00,P11-2024
P&V,MYDDLETON HSE HERITAGE CENTRE,SUPPLIES AND SERVICES,NET CATERING PURCHASES,4777,P124241-SERVICE-food and drinks,13/02/2024 00:00,282135,57.97,JJ0188,JJ FOOD SERVICE LIMITED,29/01/2024 00:00,25/02/2024 00:00,P11-2024
P&V,MYDDLETON HSE HERITAGE CENTRE,SUPPLIES AND SERVICES,NET CATERING PURCHASES,4777,BTR-food/drink,13/02/2024 00:00,282136,35.37,JJ0188,JJ FOOD SERVICE LIMITED,29/01/2024 00:00,25/02/2024 00:00,P11-2024
P&V,MYDDLETON HSE HERITAGE CENTRE,SUPPLIES AND SERVICES,NET CATERING PURCHASES,4777,P124241-SERVICE-food and drinks,13/02/2024 00:00,282136,57.72,JJ0188,JJ FOOD SERVICE LIMITED,29/01/2024 00:00,25/02/2024 00:00,P11-2024
P&V,MYDDLETON HSE HERITAGE CENTRE,SUPPLIES AND SERVICES,NET CATERING PURCHASES,4777,BTR-food/drink,13/02/2024 00:00,282136,22.35,JJ0188,JJ FOOD SERVICE LIMITED,29/01/2024 00:00,25/02/2024 00:00,P11-2024
P&V,MYDDLETON HSE HERITAGE CENTRE,SUPPLIES AND SERVICES,NET CATERING PURCHASES,4777,P123945-SERVICE-FOOD,13/02/2024 00:00,282136,81.8,JJ0188,JJ FOOD SERVICE LIMITED,29/01/2024 00:00,25/02/2024 00:00,P11-2024
P&V,MYDDLETON HSE HERITAGE CENTRE,SUPPLIES AND SERVICES,NET CATERING PURCHASES,4777,BTR-food/drink,13/02/2024 00:00,282136,-57.72,JJ0188,JJ FOOD SERVICE LIMITED,29/01/2024 00:00,25/02/2024 00:00,P11-2024
P&V,MYDDLETON HSE HERITAGE CENTRE,SUPPLIES AND SERVICES,NET CATERING PURCHASES,4777,BTR-food/drinks,13/02/2024 00:00,282146,131.04,360001,BIDFOOD,29/01/2024 00:00,25/02/2024 00:00,P11-2024
P&V,MYDDLETON HSE HERITAGE CENTRE,SUPPLIES AND SERVICES,NET CATERING PURCHASES,4777,BTR-food/drinks,13/02/2024 00:00,282146,584.5,360001,BIDFOOD,29/01/2024 00:00,25/02/2024 00:00,P11-2024
P&V,MYDDLETON HSE HERITAGE CENTRE,SUPPLIES AND SERVICES,NET CATERING PURCHASES,4777,P124830-SERVICE-FOOD,13/02/2024 00:00,282146,715.54,360001,BIDFOOD,29/01/2024 00:00,25/02/2024 00:00,P11-2024
P&V,MYDDLETON HSE HERITAGE CENTRE,SUPPLIES AND SERVICES,NET CATERING PURCHASES,4777,BTR-food/drinks,13/02/2024 00:00,282146,-715.54,360001,BIDFOOD,29/01/2024 00:00,25/02/2024 00:00,P11-2024
P&V,MYDDLETON HSE HERITAGE CENTRE,SUPPLIES AND SERVICES,NET CATERING PURCHASES,4777,BTR-food/drinks,13/02/2024 00:00,282147,41.98,360001,BIDFOOD,29/01/2024 00:00,25/02/2024 00:00,P11-2024
P&V,MYDDLETON HSE HERITAGE CENTRE,SUPPLIES AND SERVICES,NET CATERING PURCHASES,4777,BTR-food/drinks,13/02/2024 00:00,282147,269.41,360001,BIDFOOD,29/01/2024 00:00,25/02/2024 00:00,P11-2024
P&V,MYDDLETON HSE HERITAGE CENTRE,SUPPLIES AND SERVICES,NET CATERING PURCHASES,4777,P124715-SERVICE-catering goods,13/02/2024 00:00,282147,311.39,360001,BIDFOOD,29/01/2024 00:00,25/02/2024 00:00,P11-2024
P&V,MYDDLETON HSE HERITAGE CENTRE,SUPPLIES AND SERVICES,NET CATERING PURCHASES,4777,BTR-food/drinks,13/02/2024 00:00,282147,-311.39,360001,BIDFOOD,29/01/2024 00:00,25/02/2024 00:00,P11-2024
P&V,MYDDLETON HSE HERITAGE CENTRE,SUPPLIES AND SERVICES,NET CATERING PURCHASES,4777,P124830-SERVICE-FOOD,13/02/2024 00:00,282361,275.23,360001,BIDFOOD,29/01/2024 00:00,25/02/2024 00:00,P11-2024
P&V,MYDDLETON HSE HERITAGE CENTRE,SUPPLIES AND SERVICES,NET CATERING PURCHASES,4777,P124611-SERVICE-coffee,20/02/2024 00:00,282393,138,TU0194,TUDOR TEA & COFFEE,29/01/2024 00:00,25/02/2024 00:00,P11-2024
P&V,MYDDLETON HSE HERITAGE CENTRE,SUPPLIES AND SERVICES,NET CATERING PURCHASES,4777,BTR-FOOD/DRINKS,20/02/2024 00:00,282415,-679.77,360001,BIDFOOD,29/01/2024 00:00,25/02/2024 00:00,P11-2024
P&V,MYDDLETON HSE HERITAGE CENTRE,SUPPLIES AND SERVICES,NET CATERING PURCHASES,4777,BTR-FOOD/DRINKS,20/02/2024 00:00,282415,245.85,360001,BIDFOOD,29/01/2024 00:00,25/02/2024 00:00,P11-2024
P&V,MYDDLETON HSE HERITAGE CENTRE,SUPPLIES AND SERVICES,NET CATERING PURCHASES,4777,P124878-SERVICE-caterning goods,20/02/2024 00:00,282415,679.77,360001,BIDFOOD,29/01/2024 00:00,25/02/2024 00:00,P11-2024
P&V,MYDDLETON HSE HERITAGE CENTRE,SUPPLIES AND SERVICES,NET CATERING PURCHASES,4777,BTR-FOOD/DRINKS,20/02/2024 00:00,282415,433.92,360001,BIDFOOD,29/01/2024 00:00,25/02/2024 00:00,P11-2024
P&V,MYDDLETON HSE HERITAGE CENTRE,SUPPLIES AND SERVICES,NET CATERING PURCHASES,4777,P124961-SERVICE-food/drinks VC 12.2.24,20/02/2024 00:00,282684,320.69,360001,BIDFOOD,29/01/2024 00:00,25/02/2024 00:00,P11-2024
P&V,MYDDLETON HSE HERITAGE CENTRE,SUPPLIES AND SERVICES,NET CATERING PURCHASES,4777,BTR-FOOD/DRINKS,20/02/2024 00:00,282684,229.78,360001,BIDFOOD,29/01/2024 00:00,25/02/2024 00:00,P11-2024
P&V,MYDDLETON HSE HERITAGE CENTRE,SUPPLIES AND SERVICES,NET CATERING PURCHASES,4777,BTR-FOOD/DRINKS,20/02/2024 00:00,282684,-320.69,360001,BIDFOOD,29/01/2024 00:00,25/02/2024 00:00,P11-2024
P&V,MYDDLETON HSE HERITAGE CENTRE,SUPPLIES AND SERVICES,NET CATERING PURCHASES,4777,BTR-FOOD/DRINKS,20/02/2024 00:00,282684,90.91,360001,BIDFOOD,29/01/2024 00:00,25/02/2024 00:00,P11-2024
P&V,MYDDLETON HSE HERITAGE CENTRE,SUPPLIES AND SERVICES,NET CATERING PURCHASES,4777,BTR-FOOD/DRINKS,20/02/2024 00:00,282685,-292.1,360001,BIDFOOD,29/01/2024 00:00,25/02/2024 00:00,P11-2024
P&V,MYDDLETON HSE HERITAGE CENTRE,SUPPLIES AND SERVICES,NET CATERING PURCHASES,4777,BTR-FOOD/DRINKS,20/02/2024 00:00,282685,277.05,360001,BIDFOOD,29/01/2024 00:00,25/02/2024 00:00,P11-2024
P&V,MYDDLETON HSE HERITAGE CENTRE,SUPPLIES AND SERVICES,NET CATERING PURCHASES,4777,BTR-FOOD/DRINKS,20/02/2024 00:00,282685,15.05,360001,BIDFOOD,29/01/2024 00:00,25/02/2024 00:00,P11-2024
P&V,MYDDLETON HSE HERITAGE CENTRE,SUPPLIES AND SERVICES,NET CATERING PURCHASES,4777,P124878-SERVICE-caterning goods,20/02/2024 00:00,282685,292.1,360001,BIDFOOD,29/01/2024 00:00,25/02/2024 00:00,P11-2024
P&V,MYDDLETON HSE HERITAGE CENTRE,SUPPLIES AND SERVICES,NET CATERING PURCHASES,4777,BTR-FOOD/DRINKS,20/02/2024 00:00,282686,294.92,360001,BIDFOOD,29/01/2024 00:00,25/02/2024 00:00,P11-2024
P&V,MYDDLETON HSE HERITAGE CENTRE,SUPPLIES AND SERVICES,NET CATERING PURCHASES,4777,BTR-FOOD/DRINKS,20/02/2024 00:00,282686,65.17,360001,BIDFOOD,29/01/2024 00:00,25/02/2024 00:00,P11-2024
P&V,MYDDLETON HSE HERITAGE CENTRE,SUPPLIES AND SERVICES,NET CATERING PURCHASES,4777,P124961-SERVICE-food/drinks VC 12.2.24,20/02/2024 00:00,282686,360.09,360001,BIDFOOD,29/01/2024 00:00,25/02/2024 00:00,P11-2024
P&V,MYDDLETON HSE HERITAGE CENTRE,SUPPLIES AND SERVICES,NET CATERING PURCHASES,4777,BTR-FOOD/DRINKS,20/02/2024 00:00,282686,-360.09,360001,BIDFOOD,29/01/2024 00:00,25/02/2024 00:00,P11-2024
P&V,MYDDLETON HSE HERITAGE CENTRE,SUPPLIES AND SERVICES,NET CATERING PURCHASES,4777,P124961-SERVICE-food/drinks VC 12.2.24,20/02/2024 00:00,282724,341.34,360001,BIDFOOD,29/01/2024 00:00,25/02/2024 00:00,P11-2024
P&V,MYDDLETON HSE HERITAGE CENTRE,SUPPLIES AND SERVICES,NET CATERING PURCHASES,4777,P124961-SERVICE-food/drinks VC 12.2.24,20/02/2024 00:00,282725,-25.97,360001,BIDFOOD,29/01/2024 00:00,25/02/2024 00:00,P11-2024
P&V,MYDDLETON HSE HERITAGE CENTRE,SUPPLIES AND SERVICES,NET CATERING PURCHASES,4777,P124830-SERVICE-FOOD,25/02/2024 00:00,282770,9.23,360001,BIDFOOD,29/01/2024 00:00,25/02/2024 00:00,P11-2024
P&V,MYDDLETON HSE HERITAGE CENTRE,SUPPLIES AND SERVICES,NET CATERING PURCHASES,4777,P125019-SERVICE-catering goods,25/02/2024 00:00,282770,445.66,360001,BIDFOOD,29/01/2024 00:00,25/02/2024 00:00,P11-2024
P&V,MYDDLETON HSE HERITAGE CENTRE,SUPPLIES AND SERVICES,NET CATERING PURCHASES,4777,P124961-SERVICE-food/drinks VC 12.2.24,25/02/2024 00:00,282770,3.85,360001,BIDFOOD,29/01/2024 00:00,25/02/2024 00:00,P11-2024
P&V,MYDDLETON HSE HERITAGE CENTRE,SUPPLIES AND SERVICES,NET CATERING PURCHASES,4777,P124878-SERVICE-caterning goods,25/02/2024 00:00,282770,28.13,360001,BIDFOOD,29/01/2024 00:00,25/02/2024 00:00,P11-2024
P&V,MYDDLETON HSE HERITAGE CENTRE,SUPPLIES AND SERVICES,NET CATERING PURCHASES,4777,BTR-FOOD/DRINKS,25/02/2024 00:00,282770,-445.66,360001,BIDFOOD,29/01/2024 00:00,25/02/2024 00:00,P11-2024
P&V,MYDDLETON HSE HERITAGE CENTRE,SUPPLIES AND SERVICES,NET CATERING PURCHASES,4777,P124715-SERVICE-catering goods,25/02/2024 00:00,282770,30.18,360001,BIDFOOD,29/01/2024 00:00,25/02/2024 00:00,P11-2024
P&V,MYDDLETON HSE HERITAGE CENTRE,SUPPLIES AND SERVICES,NET CATERING PURCHASES,4777,BTR-FOOD/DRINKS,25/02/2024 00:00,282770,280.57,360001,BIDFOOD,29/01/2024 00:00,25/02/2024 00:00,P11-2024
P&V,MYDDLETON HSE HERITAGE CENTRE,SUPPLIES AND SERVICES,NET CATERING PURCHASES,4777,BTR-FOOD/DRINKS,25/02/2024 00:00,282770,165.09,360001,BIDFOOD,29/01/2024 00:00,25/02/2024 00:00,P11-2024
P&V,MYDDLETON HSE HERITAGE CENTRE,SUPPLIES AND SERVICES,NET CATERING PURCHASES,4777,BTR-FOOD/DRINKS,25/02/2024 00:00,282951,256.56,360001,BIDFOOD,29/01/2024 00:00,25/02/2024 00:00,P11-2024
P&V,MYDDLETON HSE HERITAGE CENTRE,SUPPLIES AND SERVICES,NET CATERING PURCHASES,4777,BTR-FOOD/DRINKS,25/02/2024 00:00,282951,-728.72,360001,BIDFOOD,29/01/2024 00:00,25/02/2024 00:00,P11-2024
P&V,MYDDLETON HSE HERITAGE CENTRE,SUPPLIES AND SERVICES,NET CATERING PURCHASES,4777,BTR-FOOD/DRINKS,25/02/2024 00:00,282951,472.16,360001,BIDFOOD,29/01/2024 00:00,25/02/2024 00:00,P11-2024
P&V,MYDDLETON HSE HERITAGE CENTRE,SUPPLIES AND SERVICES,NET CATERING PURCHASES,4777,P125019-SERVICE-catering goods,25/02/2024 00:00,282951,728.72,360001,BIDFOOD,29/01/2024 00:00,25/02/2024 00:00,P11-2024
P&V,MYDDLETON HSE HERITAGE CENTRE,SUPPLIES AND SERVICES,NET CATERING PURCHASES,4777,REFER TO COP 282951,25/02/2024 00:00,282952,-59.31,360001,BIDFOOD,29/01/2024 00:00,25/02/2024 00:00,P11-2024
P&V,MYDDLETON HSE HERITAGE CENTRE,SUPPLIES AND SERVICES,NET CATERING PURCHASES,4777,REFER TO COP 282951,25/02/2024 00:00,282952,106.8,360001,BIDFOOD,29/01/2024 00:00,25/02/2024 00:00,P11-2024
P&V,MYDDLETON HSE HERITAGE CENTRE,SUPPLIES AND SERVICES,NET CATERING PURCHASES,4777,REFER TO COP 282951,25/02/2024 00:00,282952,-47.49,360001,BIDFOOD,29/01/2024 00:00,25/02/2024 00:00,P11-2024
P&V,MYDDLETON HSE HERITAGE CENTRE,SUPPLIES AND SERVICES,NET CATERING PURCHASES,4777,P125019-SERVICE-catering goods,25/02/2024 00:00,282952,-106.8,360001,BIDFOOD,29/01/2024 00:00,25/02/2024 00:00,P11-2024
P&V,MYDDLETON HSE HERITAGE CENTRE,SUPPLIES AND SERVICES,NET CATERING PURCHASES,4777,P125019-SERVICE-catering goods,25/02/2024 00:00,282953,302.85,360001,BIDFOOD,29/01/2024 00:00,25/02/2024 00:00,P11-2024
,LEE VALLEY MARINA SPRINGFIELD,SUPPLIES AND SERVICES,TRADING AC - EXTERNAL PURCHASE,4875,P124790-SERVICE-Customer order,06/02/2024 00:00,281997,707.37,MI0200,MIDLAND CHANDLERS LIMITED,29/01/2024 00:00,25/02/2024 00:00,P11-2024
,LEE VALLEY MARINA SPRINGFIELD,SUPPLIES AND SERVICES,TRADING AC - EXTERNAL PURCHASE,4875,P124799-SERVICE-Chandlery Stock,06/02/2024 00:00,282014,459.22,MI0200,MIDLAND CHANDLERS LIMITED,29/01/2024 00:00,25/02/2024 00:00,P11-2024
,LEE VALLEY MARINA SPRINGFIELD,SUPPLIES AND SERVICES,TRADING AC - EXTERNAL PURCHASE,4875,P124799-SERVICE-Chandlery Stock,06/02/2024 00:00,282125,2.7,MI0200,MIDLAND CHANDLERS LIMITED,29/01/2024 00:00,25/02/2024 00:00,P11-2024
,LEE VALLEY MARINA SPRINGFIELD,SUPPLIES AND SERVICES,TRADING AC - EXTERNAL PURCHASE,4875,P124505-SERVICE-Kindling,06/02/2024 00:00,282143,19,SM0664,KG SMITH & SON,29/01/2024 00:00,25/02/2024 00:00,P11-2024
,LEE VALLEY MARINA SPRINGFIELD,SUPPLIES AND SERVICES,TRADING AC - EXTERNAL PURCHASE,4875,P124505-SERVICE-Coal and Gas,06/02/2024 00:00,282143,1950.5,SM0664,KG SMITH & SON,29/01/2024 00:00,25/02/2024 00:00,P11-2024
,LEE VALLEY MARINA SPRINGFIELD,SUPPLIES AND SERVICES,TRADING AC - EXTERNAL PURCHASE,4875,Springfield-propane,06/02/2024 00:00,282143,511,SM0664,KG SMITH & SON,29/01/2024 00:00,25/02/2024 00:00,P11-2024
,LEE VALLEY MARINA SPRINGFIELD,SUPPLIES AND SERVICES,TRADING AC - EXTERNAL PURCHASE,4875,Springfield-propane,06/02/2024 00:00,282143,1439.5,SM0664,KG SMITH & SON,29/01/2024 00:00,25/02/2024 00:00,P11-2024
,LEE VALLEY MARINA SPRINGFIELD,SUPPLIES AND SERVICES,TRADING AC - EXTERNAL PURCHASE,4875,Springfield-propane,06/02/2024 00:00,282143,-1950.5,SM0664,KG SMITH & SON,29/01/2024 00:00,25/02/2024 00:00,P11-2024
,LEE VALLEY MARINA SPRINGFIELD,SUPPLIES AND SERVICES,TRADING AC - EXTERNAL PURCHASE,4875,P124505-SERVICE-Coal and Gas,06/02/2024 00:00,282144,-36.5,SM0664,KG SMITH & SON,29/01/2024 00:00,25/02/2024 00:00,P11-2024
,LEE VALLEY MARINA SPRINGFIELD,SUPPLIES AND SERVICES,TRADING AC - EXTERNAL PURCHASE,4875,P124505-SERVICE-Kindling,20/02/2024 00:00,282145,160,SM0664,KG SMITH & SON,29/01/2024 00:00,25/02/2024 00:00,P11-2024
,LEE VALLEY MARINA SPRINGFIELD,SUPPLIES AND SERVICES,TRADING AC - EXTERNAL PURCHASE,4875,P124837-SERVICE-Electrical and gas supplies,06/02/2024 00:00,282159,85.69,AQ0033,LKQ AQUAFAX LIMITED,29/01/2024 00:00,25/02/2024 00:00,P11-2024
,LEE VALLEY MARINA SPRINGFIELD,SUPPLIES AND SERVICES,TRADING AC - EXTERNAL PURCHASE,4875,P124837-SERVICE-Electrical and gas supplies,06/02/2024 00:00,282160,170.63,AQ0033,LKQ AQUAFAX LIMITED,29/01/2024 00:00,25/02/2024 00:00,P11-2024
,LEE VALLEY MARINA SPRINGFIELD,SUPPLIES AND SERVICES,TRADING AC - EXTERNAL PURCHASE,4875,P124837-SERVICE-Electrical and gas supplies,06/02/2024 00:00,282161,5.16,AQ0033,LKQ AQUAFAX LIMITED,29/01/2024 00:00,25/02/2024 00:00,P11-2024
,LEE VALLEY MARINA SPRINGFIELD,SUPPLIES AND SERVICES,TRADING AC - EXTERNAL PURCHASE,4875,"P124796-SERVICE-To suply  90 lengths T&G 15mm Thick,",07/02/2024 00:00,282241,868.09,RO0323,E ROBERT TIMBER LTD,29/01/2024 00:00,25/02/2024 00:00,P11-2024
,LEE VALLEY MARINA SPRINGFIELD,SUPPLIES AND SERVICES,TRADING AC - EXTERNAL PURCHASE,4875,P124839-SERVICE-Chandlery Stock various,13/02/2024 00:00,282251,288.47,MI0200,MIDLAND CHANDLERS LIMITED,29/01/2024 00:00,25/02/2024 00:00,P11-2024
,LEE VALLEY MARINA SPRINGFIELD,SUPPLIES AND SERVICES,TRADING AC - EXTERNAL PURCHASE,4875,P124799-SERVICE-Chandlery Stock,13/02/2024 00:00,282255,2.7,MI0200,MIDLAND CHANDLERS LIMITED,29/01/2024 00:00,25/02/2024 00:00,P11-2024
,LEE VALLEY MARINA SPRINGFIELD,SUPPLIES AND SERVICES,TRADING AC - EXTERNAL PURCHASE,4875,P124714-SERVICE-Electrical and engineering items,13/02/2024 00:00,282269,157.75,AS0036,ASAP SUPPLIES,29/01/2024 00:00,25/02/2024 00:00,P11-2024
,LEE VALLEY MARINA SPRINGFIELD,SUPPLIES AND SERVICES,TRADING AC - EXTERNAL PURCHASE,4875,P124873-SERVICE-Chimneys,13/02/2024 00:00,282270,605.37,MI0200,MIDLAND CHANDLERS LIMITED,29/01/2024 00:00,25/02/2024 00:00,P11-2024
,LEE VALLEY MARINA SPRINGFIELD,SUPPLIES AND SERVICES,TRADING AC - EXTERNAL PURCHASE,4875,P124973-SERVICE-Chandlery Stock,20/02/2024 00:00,282512,424.02,MI0200,MIDLAND CHANDLERS LIMITED,29/01/2024 00:00,25/02/2024 00:00,P11-2024
,LEE VALLEY MARINA SPRINGFIELD,SUPPLIES AND SERVICES,TRADING AC - EXTERNAL PURCHASE,4875,"P124844-SERVICE-Coal, gas and kindling",20/02/2024 00:00,282538,1935,SM0664,KG SMITH & SON,29/01/2024 00:00,25/02/2024 00:00,P11-2024
,LEE VALLEY MARINA SPRINGFIELD,SUPPLIES AND SERVICES,TRADING AC - EXTERNAL PURCHASE,4875,P124989-SERVICE-Gas and electrical supplies,20/02/2024 00:00,282628,173.44,AQ0033,LKQ AQUAFAX LIMITED,29/01/2024 00:00,25/02/2024 00:00,P11-2024
,LEE VALLEY MARINA SPRINGFIELD,SUPPLIES AND SERVICES,TRADING AC - EXTERNAL PURCHASE,4875,P124989-SERVICE-Gas and electrical supplies,20/02/2024 00:00,282629,3.39,AQ0033,LKQ AQUAFAX LIMITED,29/01/2024 00:00,25/02/2024 00:00,P11-2024
,LEE VALLEY MARINA SPRINGFIELD,SUPPLIES AND SERVICES,TRADING AC - EXTERNAL PURCHASE,4875,P124949-SERVICE-Diesel - 85.15 per litre,25/02/2024 00:00,282681,7637.96,SP0543,SPEEDY FUELS LIMITED,29/01/2024 00:00,25/02/2024 00:00,P11-2024
,LEE VALLEY MARINA SPRINGFIELD,SUPPLIES AND SERVICES,TRADING AC - EXTERNAL PURCHASE,4875,P125028-SERVICE-Chandlery Stock,25/02/2024 00:00,282727,959.59,MI0200,MIDLAND CHANDLERS LIMITED,29/01/2024 00:00,25/02/2024 00:00,P11-2024
,LEE VALLEY MARINA SPRINGFIELD,SUPPLIES AND SERVICES,TRADING AC - EXTERNAL PURCHASE,4875,P125013-SERVICE-tools and painting equipment,25/02/2024 00:00,282729,318.1,CE0510,CENTURION EUROPE LIMITED,29/01/2024 00:00,25/02/2024 00:00,P11-2024
,LEE VALLEY MARINA SPRINGFIELD,SUPPLIES AND SERVICES,TRADING AC - EXTERNAL PURCHASE,4875,SPRINGFIELD-CHANDLERY STOCK,25/02/2024 00:00,282754,694.5,SM0664,KG SMITH & SON,29/01/2024 00:00,25/02/2024 00:00,P11-2024
,LEE VALLEY MARINA SPRINGFIELD,SUPPLIES AND SERVICES,TRADING AC - EXTERNAL PURCHASE,4875,SPRINGFIELD-CHANDLERY STOCK,25/02/2024 00:00,282754,1120,SM0664,KG SMITH & SON,29/01/2024 00:00,25/02/2024 00:00,P11-2024
,LEE VALLEY MARINA SPRINGFIELD,SUPPLIES AND SERVICES,TRADING AC - EXTERNAL PURCHASE,4875,SPRINGFIELD-CHANDLERY STOCK,25/02/2024 00:00,282754,-1814.5,SM0664,KG SMITH & SON,29/01/2024 00:00,25/02/2024 00:00,P11-2024
,LEE VALLEY MARINA SPRINGFIELD,SUPPLIES AND SERVICES,TRADING AC - EXTERNAL PURCHASE,4875,P125017-SERVICE-Coal gas and heatlogs,25/02/2024 00:00,282754,1814.5,SM0664,KG SMITH & SON,29/01/2024 00:00,25/02/2024 00:00,P11-2024
,LEE VALLEY MARINA SPRINGFIELD,SUPPLIES AND SERVICES,TRADING AC - EXTERNAL PURCHASE,4875,P125017-SERVICE-Additional gas bottle ordered,25/02/2024 00:00,282754,16.5,SM0664,KG SMITH & SON,29/01/2024 00:00,25/02/2024 00:00,P11-2024
,LEE VALLEY MARINA SPRINGFIELD,SUPPLIES AND SERVICES,TRADING AC - EXTERNAL PURCHASE,4875,P125036-SERVICE-Chandlery Stock,25/02/2024 00:00,282760,243.7,MI0200,MIDLAND CHANDLERS LIMITED,29/01/2024 00:00,25/02/2024 00:00,P11-2024
,LEE VALLEY MARINA SPRINGFIELD,SUPPLIES AND SERVICES,TRADING AC - EXTERNAL PURCHASE,4875,P125036-SERVICE-Chandlery Stock,25/02/2024 00:00,282847,7.05,MI0200,MIDLAND CHANDLERS LIMITED,29/01/2024 00:00,25/02/2024 00:00,P11-2024
,LEE VALLEY MARINA SPRINGFIELD,SUPPLIES AND SERVICES,TRADING AC - EXTERNAL PURCHASE,4875,P125086-SERVICE-Electrical and gas fittings,25/02/2024 00:00,282888,16.64,AQ0033,LKQ AQUAFAX LIMITED,29/01/2024 00:00,25/02/2024 00:00,P11-2024
